{"text_format":"1","workbook":"xlsx","n_sheets":62,"sheets":["modList00","Инструкция","Лог обновления","Титульный","Территории","Перечень тарифов","Форма 1.0.1 | Т-ВО","Форма 3.2 | Т-ВО","Форма 1.0.1 | Т-транс","Форма 3.2 | Т-транс","Форма 1.0.1 | Т-подкл(инд)","Форма 3.4 | Т-подкл(инд)","Форма 1.0.1 | Т-подкл","Форма 3.4 | Т-подкл","Форма 1.0.1 | Форма 3.9","Форма 3.9","Форма 1.0.1 | Форма 3.10","Форма 3.10","Форма 1.0.2","Сведения об изменении","Комментарии","Проверка","modListTempFilter","modCheckCyan","REESTR_LINK","REESTR_DS","modHTTP","modfrmRezimChoose","modSheetMain","REESTR_VT","REESTR_VED","modfrmReestrObj","AllSheetsInThisWorkbook","et_union_vert","modInstruction","modRegion","modReestr","modfrmReestr","modUpdTemplMain","REESTR_ORG","modClassifierValidate","modProv","modHyp","modServiceModule","modList01","modList02","modList03","et_union_hor","REESTR_MO_FILTER","REESTR_MO","TEHSHEET","modInfo","modList05","modList06","modList07","modList11","modList12","modfrmDateChoose","modComm","modThisWorkbook","modfrmReestrMR","modfrmCheckUpdates"],"not_rendered":{"charts":0,"images":20,"macros":1,"external_links":0,"defined_names":562,"comments":0,"pivot_tables":0},"unopened":[],"bounds":{"document_bytes":16777216,"sheet_cells":100000,"rows_first":2000,"rows_last":500,"rows_between":2000,"halvings":0,"cell_chars":16384,"cell_head_chars":4096},"cells_cut":0,"cells_raw":0,"read":"whole","date_system":"1900"}

{"sheet":"modList00","index":0,"n_rows":0,"n_cols":0,"rows_kept":0,"cut":false,"hidden":true,"merged":[]}

{"sheet":"Инструкция","index":1,"n_rows":102,"n_cols":27,"rows_kept":102,"cut":false,"hidden":false,"merged":[[59,7,59,23],[81,7,81,23],[45,4,56,23],[69,4,69,19],[59,4,59,6],[58,7,58,23],[58,4,58,6],[70,4,70,19],[60,7,60,23],[101,5,101,23],[99,5,99,18],[81,4,81,6],[97,4,97,23],[80,4,80,20],[83,7,83,23],[1,1,1,6],[2,1,2,2],[6,4,18,23],[22,15,22,22],[57,4,57,20],[4,1,4,24],[40,4,44,23],[20,5,20,12],[20,15,20,23],[21,15,21,23],[34,4,38,23],[21,5,21,12],[39,4,39,23]]}
[null,null,null,null,null,null,null,null,null,null,null,null,null,null,null,null,null,null,null,null,null,null,null,null,null,null," (требуется обновление)"]
[null,{"$f":"\"Код отчёта: \" & GetCode()","v":"Код отчёта: FAS.JKH.OPEN.INFO.PRICE.VO"}]
[null,{"$f":"\"Версия \" & GetVersion()","v":"Версия 1.0.1"}]
[]
[null,"Показатели, подлежащие раскрытию в сфере водоотведения (цены и тарифы)"]
[]
[null,null,null,null,"• На рабочем месте должен быть установлен MS Office 2007 SP3, 2010, 2013, 2016 с полной версией MS Excel\n\n• Макросы во время работы должны быть включены (!)\n\n• Для корректной работы отчёта требуется выбрать низкий уровень безопасности\n(В меню MS Excel 2007/2010/2013/2016: Параметры Excel | Центр управления безопасностью | Параметры центра управления безопасностью | Параметры макросов | Включить все макросы | ОК)\n\n• Если Вы работаете в табличном процессоре MS Excel 2007 и выше, то можете использовать для работы формат XLSB (Двоичная книга Excel). При работе в формате XLSB заметно быстрее происходит сохранение файла, а также уменьшается размер по сравнению с форматами XLS и XLSM\n\n• Не рекомендуется снимать защиту с листов и каким-либо образом модифицировать защищаемые формулы и расчётные поля, в противном случае, отчёт будет отклонён системой\n\n• При сохранении не следует выбирать формат XLSX (Книга Excel), так как в указанном формате макросы, необходимые для работы отчёта, безвозвратно удаляются"]
[]
[]
[]
[]
[]
[]
[]
[]
[]
[]
[]
[]
[]
[null,null,null,null,"A"," - необязательные для заполнения",null,null,null,null,null,null,null,null,"A"," - с формулами и константами"]
[null,null,null,null,"A"," - обязательные для заполнения",null,null,null,null,null,null,null,null,"A"," - с выбором значений по двойному клику"]
[]
[]
[]
[]
[]
[]
[]
[]
[]
[]
[]
[]
[null,null,null,null,"Если в предложенном Вам списке необходимая организация, МР/МО отсутствуют, обновите реестры с помощью кнопок\n\nВ результате синхронизации с базой данных список организаций (МР/МО) будет заменён актуальным (механизм синхронизации требует подключения к сети Интернет и основан на использовании протокола HTTPS (TCP порт 443))\n\nЕсли после обновления Вам не удалось найти необходимую организацию в списке, обратитесь к ответственному за поддержание реестра Вашего региона."]
[]
[]
[]
[]
[]
[]
[]
[]
[]
[]
[null,null,null,null,"• При сохранении шаблона осуществляется проверка корректности данных, в том числе на наличие значений в ячейках, обязательных для заполнения\n\n• Если какая-то ячейка не удовлетворяет условию проверки, на лист «Проверка» добавляется гиперссылка на данную ячейку и указывается причина ошибки\n\n• В колонке «Статус» для каждого сообщения возможны 2 значения: ошибка и предупреждение\n\n• При наличии сообщений со статусом «Ошибка» шаблон будет отклонён системой и не будет загружен в хранилище данных, сообщения со статусом «Предупреждение» носят информационный характер, и такой шаблон будет принят системой"]
[]
[]
[]
[]
[]
[]
[]
[]
[]
[]
[]
[null,null,null,null,"Обратиться за помощью в службу технической поддержки"]
[]
[]
[]
[]
[]
[]
[]
[]
[]
[]
[]
[null,null,null,null,"Инструкция по загрузке сопроводительных материалов"]
[null,null,null,null,"Инструкция по работе с отчетной формой"]
[]
[]
[]
[]
[]
[]
[]
[]
[]
[null,null,null,null,"Обратиться за помощью в службу технической поддержки"]
[]
[]
[]
[]
[]
[]
[]
[]
[]
[]
[]
[]
[]
[]
[]
[]
[null,null,null,null,"При наличии подключения к Интернет, можно автоматически проверять наличие доступных обновлений. Выберите способ оповещения о наличии обновлений для отчёта:"]
[]
[null,null,null,null,null,"проверять доступные обновления (рекомендуется)",null,null,null,null,null,null,null,null,null,null,null,null,null,null,null,null,null,null,null,null,"y"]
[]
[null,null,null,null,null,"никогда не проверять наличие обновлений (не рекомендуется)"]

{"sheet":"Лог обновления","index":2,"n_rows":41,"n_cols":3,"rows_kept":41,"cut":false,"hidden":true,"merged":[]}
["Дата/Время","Сообщение","Статус"]
["2018-12-07T11:50:59","Проверка доступных обновлений...","Информация"]
["2018-12-07T11:51:00","Нет доступных обновлений для отчёта с кодом FAS.JKH.OPEN.INFO.PRICE.VO!","Информация"]
["2018-12-07T11:51:16","Проверка доступных обновлений...","Информация"]
["2018-12-07T11:51:17","Нет доступных обновлений для отчёта с кодом FAS.JKH.OPEN.INFO.PRICE.VO!","Информация"]
["2018-12-07T11:52:06","Проверка доступных обновлений...","Информация"]
["2018-12-07T11:52:08","Нет доступных обновлений для отчёта с кодом FAS.JKH.OPEN.INFO.PRICE.VO!","Информация"]
["2018-12-07T12:53:44","Проверка доступных обновлений...","Информация"]
["2018-12-07T12:53:45","Нет доступных обновлений для отчёта с кодом FAS.JKH.OPEN.INFO.PRICE.VO!","Информация"]
["2018-12-07T13:10:19","Проверка доступных обновлений...","Информация"]
["2018-12-07T13:10:20","Нет доступных обновлений для отчёта с кодом FAS.JKH.OPEN.INFO.PRICE.VO!","Информация"]
["2018-12-07T13:10:47","Проверка доступных обновлений...","Информация"]
["2018-12-07T13:10:49","Нет доступных обновлений для отчёта с кодом FAS.JKH.OPEN.INFO.PRICE.VO!","Информация"]
["2018-12-07T13:24:58","Проверка доступных обновлений...","Информация"]
["2018-12-07T13:24:59","Нет доступных обновлений для отчёта с кодом FAS.JKH.OPEN.INFO.PRICE.VO!","Информация"]
["2018-12-07T13:56:33","Проверка доступных обновлений...","Информация"]
["2018-12-07T13:56:35","Нет доступных обновлений для отчёта с кодом FAS.JKH.OPEN.INFO.PRICE.VO!","Информация"]
["2018-12-10T08:37:51","Проверка доступных обновлений...","Информация"]
["2018-12-10T08:37:53","Нет доступных обновлений для отчёта с кодом FAS.JKH.OPEN.INFO.PRICE.VO!","Информация"]
["2018-12-10T09:38:37","Проверка доступных обновлений...","Информация"]
["2018-12-10T09:38:39","Нет доступных обновлений для отчёта с кодом FAS.JKH.OPEN.INFO.PRICE.VO!","Информация"]
["2018-12-10T09:40:17","Проверка доступных обновлений...","Информация"]
["2018-12-10T09:40:18","Нет доступных обновлений для отчёта с кодом FAS.JKH.OPEN.INFO.PRICE.VO!","Информация"]
["2018-12-10T10:52:39","Проверка доступных обновлений...","Информация"]
["2018-12-10T10:52:41","Нет доступных обновлений для отчёта с кодом FAS.JKH.OPEN.INFO.PRICE.VO!","Информация"]
["2018-12-12T09:01:02","Проверка доступных обновлений...","Информация"]
["2018-12-12T09:01:04","Нет доступных обновлений для отчёта с кодом FAS.JKH.OPEN.INFO.PRICE.VO!","Информация"]
["2018-12-12T14:08:36","Проверка доступных обновлений...","Информация"]
["2018-12-12T14:08:38","Нет доступных обновлений для отчёта с кодом FAS.JKH.OPEN.INFO.PRICE.VO!","Информация"]
["2018-12-12T15:29:46","Проверка доступных обновлений...","Информация"]
["2018-12-12T15:29:47","Нет доступных обновлений для отчёта с кодом FAS.JKH.OPEN.INFO.PRICE.VO!","Информация"]
["2018-12-13T13:16:43","Проверка доступных обновлений...","Информация"]
["2018-12-13T13:16:44","Нет доступных обновлений для отчёта с кодом FAS.JKH.OPEN.INFO.PRICE.VO!","Информация"]
["2018-12-13T15:55:30","Проверка доступных обновлений...","Информация"]
["2018-12-13T15:55:31","Нет доступных обновлений для отчёта с кодом FAS.JKH.OPEN.INFO.PRICE.VO!","Информация"]
["2018-12-13T16:13:04","Проверка доступных обновлений...","Информация"]
["2018-12-13T16:13:05","Нет доступных обновлений для отчёта с кодом FAS.JKH.OPEN.INFO.PRICE.VO!","Информация"]
["2018-12-14T11:21:54","Проверка доступных обновлений...","Информация"]
["2018-12-14T11:21:56","Нет доступных обновлений для отчёта с кодом FAS.JKH.OPEN.INFO.PRICE.VO!","Информация"]
["2018-12-14T14:11:17","Проверка доступных обновлений...","Информация"]
["2018-12-14T14:11:18","Нет доступных обновлений для отчёта с кодом FAS.JKH.OPEN.INFO.PRICE.VO!","Информация"]

{"sheet":"Титульный","index":3,"n_rows":44,"n_cols":6,"rows_kept":44,"cut":false,"hidden":false,"merged":[[4,4,4,5],[51,4,51,8]]}
[null,null,null,null,null,30398817]
[null,null,null,null,{"$f":"\"Код шаблона: \" & GetCode()","v":"Код шаблона: FAS.JKH.OPEN.INFO.PRICE.VO"}]
[null,null,null,null,{"$f":"\"Версия \" & GetVersion()","v":"Версия 1.0.1"}]
[]
[null,null,null,null,"Показатели, подлежащие раскрытию в сфере водоотведения (цены и тарифы)"]
[]
[null,null,null,null,"Субъект РФ","Самарская область"]
[]
[null,null,null,null,"Отсутствует Интернет в границах территории МО, где организация осуществляет регулируемые виды деятельности","нет"]
[]
[null,null,null,null,"Начало периода регулирования","01.01.2017"]
[null,null,null,null,"Окончание периода регулирования","31.12.2019"]
[]
[null,null,null,null,"Тип отчета","первичное раскрытие информации"]
[null,null,null,null,"Дата внесения изменений в информацию, подлежащую раскрытию","07.12.2018"]
[null,null,null,null,"Дата периода регулирования, с которой вводятся изменения в тарифы"]
[null,null,null,null,null,"Первичное установление тарифов"]
[null,null,null,null,"Наименование органа регулирования, принявшего решение об утверждении тарифов","Министерство энергетики и ЖКХ Самарской области"]
[null,null,null,null,"Дата документа об утверждении тарифов","16.11.2018"]
[null,null,null,null,"Номер документа об утверждении тарифов","426"]
[null,null,null,null,"Источник официального опубликования решения","Сайт Правительства Самарской области"]
[null,null,null,null,null,"Изменение тарифов"]
[null,null,null,null,"Наименование органа регулирования, принявшего решение об изменении тарифов"]
[null,null,null,null,"Дата принятия решения об изменении тарифов"]
[null,null,null,null,"Номер принятия решения об изменении тарифов"]
[null,null,null,null,"Источник официального опубликования решения"]
[]
[null,null,null,null,"Является ли данное юридическое лицо подразделением (филиалом) другой организации","нет"]
[null,null,null,null,"Наименование организации","АО «ПО КХ г.о. Тольятти»"]
[null,null,null,null,"Наименование филиала"]
[null,null,null,null,"ИНН","6324014124"]
[null,null,null,null,"КПП","632401001"]
[]
[null,null,null,null,"Режим налогообложения","общий"]
[]
[null,null,null,null,"Организация осуществляет подключение к централизованной системе водоотведения","да"]
[]
[null,null,null,null,"Почтовый адрес регулируемой организации","445035, Самарская область, г.о.Тольятти, ул.Комсомольская, д.92, Литера АА1"]
[null,null,null,null,"Фамилия, имя, отчество руководителя","Орехов Владимир Николаевич"]
[null,null,null,null,null,"Ответственный за заполнение формы"]
[null,null,null,null,"Фамилия, имя, отчество","Мурадов Михаил Айдынович"]
[null,null,null,null,"Должность","начальник ПЭО"]
[null,null,null,null,"Контактный телефон","(8482) 772-573"]
[null,null,null,null,"E-mail","muradovma.pokx@yandex.ru"]

{"sheet":"Территории","index":4,"n_rows":15,"n_cols":18,"rows_kept":15,"cut":false,"hidden":false,"merged":[[12,7,13,7],[11,2,13,2],[11,3,13,3],[11,4,13,4],[12,5,13,5],[12,6,13,6],[8,5,8,6],[8,8,8,9],[9,5,9,6],[9,8,9,9],[3,3,3,7],[5,3,5,4],[5,5,5,6],[7,3,7,4],[7,8,7,11],[7,5,7,7]]}
[null,null,null,null,null,null,null,null,null,null,"МО","ОКТМО","МР"]
[]
[]
[null,null,null,"Перечень муниципальных районов и муниципальных образований (территорий действия тарифа)"]
[]
[null,null,null,null,null,"да"]
[]
[null,null,null,"Территория действия тарифа",null,"Муниципальный район",null,null,"Муниципальное образование"]
[null,null,null,"№ п/п","Наименование","№ п/п",null,"Наименование","№ п/п",null,"Наименование","ОКТМО"]
[null,null,null,"1","2","3",null,"4","5",null,"6","7"]
[null,null,null,0,null,null,null,null,null,null,null,null,"размерженный МР",null,null,"флаг используемости территории на листе Перечень тарифов","копия территорий","МР (ОКТМО)"]
[null,"auto",null,1,"городской округ Тольятти, городской округ Тольятти (36740000);",null,0,null,null,"0",null,null,{"$f":"mergeValue(H12)","v":0},null,null,{"$f":"IF(ISERROR(MATCH(Q12,MODesc,0)),\"n\",\"y\")","v":"n"},"городской округ Тольятти, городской округ Тольятти (36740000);",{"$f":"K12&\"(\"&L12&\")\"","v":"()"}]
[null,"auto",null,null,null,null,1,"городской округ Тольятти",null,"0",null,null,{"$f":"mergeValue(H13)","v":"городской округ Тольятти"},null,null,null,null,{"$f":"K13&\"(\"&L13&\")\"","v":"()"}]
[null,"auto",null,null,null,null,null,null,null,1,"городской округ Тольятти","36740000",{"$f":"mergeValue(H14)","v":"городской округ Тольятти"},null,null,null,null,{"$f":"K14&\" (\"&L14&\")\"","v":"городской округ Тольятти (36740000)"}]
[null,"man",null,null,null,null,null,null,null,null,null,null,null,null,null,null,"Добавить территорию действия тарифа"]

{"sheet":"Перечень тарифов","index":5,"n_rows":22,"n_cols":19,"rows_kept":22,"cut":false,"hidden":false,"merged":[[20,13,22,13],[20,14,22,14],[20,8,23,8],[20,9,23,9],[20,10,23,10],[20,11,22,11],[20,12,22,12],[20,3,24,3],[20,4,24,4],[20,5,24,5],[20,6,24,6],[20,7,23,7],[18,7,18,8],[17,11,17,12],[17,15,17,16],[18,11,18,12],[18,15,18,16],[16,18,17,18],[16,14,16,17],[16,10,16,13],[16,6,17,6],[6,6,6,9],[7,6,7,9],[16,9,17,9],[9,6,9,9],[16,7,17,8],[4,3,4,9],[10,4,10,5],[16,3,17,3],[16,4,17,4],[12,4,12,5],[8,6,8,9],[5,3,5,9],[7,4,7,5],[8,4,8,5],[9,4,9,5],[6,4,6,5],[16,5,17,5],[11,4,11,5]]}
[]
[]
[]
[]
[null,null,null,"Перечень тарифов и технологически не связанных между собой централизованных систем водоотведения, в отношении которых предлагаются различные тарифы в сфере водоотведения"]
[]
[]
[]
[]
[]
[]
[]
[]
[]
[]
[]
[null,null,null,"№ п/п","Вид тарифа","Вид деятельности","Наличие двухставочного тарифа","№ п/п",null,"Наименование тарифа","Дифференциация по\n МО (территориям)",null,null,null,"Дифференциация по \nцентрализованным системам водоотведения",null,null,null,"Примечание"]
[null,null,null,null,null,null,null,null,null,null,"да/нет","№ п/п",null,"Описание","да/нет","№ п/п",null,"Описание"]
[null,null,null,"1","2","3","4","5",null,"6","7","8",null,"9","10","11",null,"12","13"]
[null,null,null,0]
[1,null,null,1,"Тариф на водоотведение","Водоотведение","нет",null,1,"Тариф в сфере водоотведения","нет",null,"1",null,"да",null,"1","Централизованная система водоотведения Центрального района"]
[null,null,null,null,null,null,null,null,null,null,null,null,null,null,null,null,"2","Централизованная система водоотведения Комсомольского района"]

{"sheet":"Форма 1.0.1 | Т-ВО","index":6,"n_rows":21,"n_cols":10,"rows_kept":21,"cut":false,"hidden":false,"merged":[[20,6,20,7],[1,5,1,7],[3,5,3,7],[3,8,4,8],[7,0,12,0],[11,2,12,2],[10,1,12,1],[13,0,18,0],[16,1,18,1],[17,2,18,2]]}
["1"]
[null,null,null,null,null,"Форма 1.0.1 Основные параметры раскрываемой информации 1"]
[]
[null,null,null,null,null,"Параметры формы",null,null,"Описание параметров формы"]
[null,null,null,null,null,"№ п/п","Наименование параметра","Информация"]
[null,null,null,null,null,"1",2,3,4,4]
[null,null,null,null,null,1,"Дата заполнения/внесения изменений",{"$f":"IF(dateCh=\"\",\"\",dateCh)","v":"07.12.2018"},"Указывается календарная дата первичного заполнения или внесения изменений в форму в виде «ДД.ММ.ГГГГ»."]
[1,null,null,null,null,{"$f":"\"2.\" &mergeValue(A8)","v":"2.1"},"Наименование централизованной системы коммунальной инфраструктуры",{"$f":"IF('Перечень тарифов'!R21=\"\",\"наименование отсутствует\",\"\" & 'Перечень тарифов'!R21 & \"\")","v":"Централизованная система водоотведения Центрального района"},"Указывается наименование централизованной системы холодного водоснабжения/горячего водоснабжения/водоотведения/теплоснабжения, к которой относится размещаемая информация.\nВ случае наличия нескольких централизованных систем коммунальной инфраструктуры, информация по каждой из них указывается в отдельной строке."]
[null,null,null,null,null,{"$f":"\"3.\" &mergeValue(A9)","v":"3.1"},"Наименование регулируемого вида деятельности",{"$f":"IF('Перечень тарифов'!F21=\"\",\"наименование отсутствует\",\"\" & 'Перечень тарифов'!F21 & \"\")","v":"Водоотведение"},"Указывается наименование вида регулируемой деятельности."]
[null,null,null,null,null,{"$f":"\"4.\"&mergeValue(A10)","v":"4.1"},"Территория оказания услуги по регулируемому виду деятельности","x"]
[null,1,null,null,null,{"$f":"\"4.\"&mergeValue(A11) &\".\"&mergeValue(B11)","v":"4.1.1"},"Субъект Российской Федерации",{"$f":"IF(region_name=\"\",\"\",region_name)","v":"Самарская область"},"Указывается наименование субъекта Российской Федерации"]
[null,null,1,null,null,{"$f":"\"4.\"&mergeValue(A12) &\".\"&mergeValue(B12)&\".\"&mergeValue(C12)","v":"4.1.1.1"},"муниципальный район",{"$f":"IF(Территории!H13=\"\",\"\",\"\" & Территории!H13 & \"\")","v":"городской округ Тольятти"},"Указывается наименование муниципального района, на территории которого организация оказывает услуги по регулируемому виду деятельности."]
[null,null,null,1,null,{"$f":"\"4.\"&mergeValue(A13) &\".\"&mergeValue(B13)&\".\"&mergeValue(C13)&\".\"&mergeValue(D13)","v":"4.1.1.1.1"},"муниципальное образование",{"$f":"IF(Территории!R14=\"\",\"\",\"\" & Территории!R14 & \"\")","v":"городской округ Тольятти (36740000)"},"Указывается наименование и код муниципального района, муниципального образования в соответствии с Общероссийским классификатором территорий муниципальных образований (далее - ОКТМО), входящего в муниципальный район, на территории которого организация оказывает услуги по регулируемому виду деятельности.\nВ случае оказания услуг по регулируемому виду деятельности на территории нескольких муниципальных районов (муниципальных образований) данные по каждому их них указываются в отдельной строке."]
[2,null,null,null,null,{"$f":"\"2.\" &mergeValue(A14)","v":"2.2"},"Наименование централизованной системы коммунальной инфраструктуры",{"$f":"IF('Перечень тарифов'!R22=\"\",\"наименование отсутствует\",\"\" & 'Перечень тарифов'!R22 & \"\")","v":"Централизованная система водоотведения Комсомольского района"},"Указывается наименование централизованной системы холодного водоснабжения/горячего водоснабжения/водоотведения/теплоснабжения, к которой относится размещаемая информация.\nВ случае наличия нескольких централизованных систем коммунальной инфраструктуры, информация по каждой из них указывается в отдельной строке."]
[null,null,null,null,null,{"$f":"\"3.\" &mergeValue(A15)","v":"3.2"},"Наименование регулируемого вида деятельности",{"$f":"IF('Перечень тарифов'!F21=\"\",\"наименование отсутствует\",\"\" & 'Перечень тарифов'!F21 & \"\")","v":"Водоотведение"},"Указывается наименование вида регулируемой деятельности."]
[null,null,null,null,null,{"$f":"\"4.\"&mergeValue(A16)","v":"4.2"},"Территория оказания услуги по регулируемому виду деятельности","x"]
[null,1,null,null,null,{"$f":"\"4.\"&mergeValue(A17) &\".\"&mergeValue(B17)","v":"4.2.1"},"Субъект Российской Федерации",{"$f":"IF(region_name=\"\",\"\",region_name)","v":"Самарская область"},"Указывается наименование субъекта Российской Федерации"]
[null,null,1,null,null,{"$f":"\"4.\"&mergeValue(A18) &\".\"&mergeValue(B18)&\".\"&mergeValue(C18)","v":"4.2.1.1"},"муниципальный район",{"$f":"IF(Территории!H13=\"\",\"\",\"\" & Территории!H13 & \"\")","v":"городской округ Тольятти"},"Указывается наименование муниципального района, на территории которого организация оказывает услуги по регулируемому виду деятельности."]
[null,null,null,1,null,{"$f":"\"4.\"&mergeValue(A19) &\".\"&mergeValue(B19)&\".\"&mergeValue(C19)&\".\"&mergeValue(D19)","v":"4.2.1.1.1"},"муниципальное образование",{"$f":"IF(Территории!R14=\"\",\"\",\"\" & Территории!R14 & \"\")","v":"городской округ Тольятти (36740000)"},"Указывается наименование и код муниципального района, муниципального образования в соответствии с Общероссийским классификатором территорий муниципальных образований (далее - ОКТМО), входящего в муниципальный район, на территории которого организация оказывает услуги по регулируемому виду деятельности.\nВ случае оказания услуг по регулируемому виду деятельности на территории нескольких муниципальных районов (муниципальных образований) данные по каждому их них указываются в отдельной строке."]
[]
[null,null,null,null,null,null,"  1 Информация размещается при раскрытии информации по каждой из форм."]

{"sheet":"Форма 3.2 | Т-ВО","index":7,"n_rows":37,"n_cols":61,"rows_kept":37,"cut":false,"hidden":false,"merged":[[30,57,32,57],[21,9,24,9],[14,15,14,16],[19,14,19,56],[29,9,32,9],[22,57,24,57],[12,57,15,57],[21,14,21,56],[20,14,20,56],[14,22,14,23],[14,24,14,26],[15,25,15,26],[16,25,16,26],[22,27,23,27],[30,24,31,24],[13,34,15,34],[14,29,14,30],[14,31,14,33],[15,32,15,33],[16,32,16,33],[30,31,31,31],[30,32,31,32],[30,33,31,33],[30,34,31,34],[36,12,36,56],[22,18,23,18],[22,20,23,20],[22,13,23,13],[22,19,23,19],[27,14,27,56],[28,14,28,56],[29,14,29,56],[30,13,31,13],[30,17,31,17],[30,18,31,18],[30,19,31,19],[22,17,23,17],[22,24,23,24],[22,25,23,25],[22,26,23,26],[30,20,31,20],[30,25,31,25],[30,26,31,26],[30,27,31,27],[22,31,23,31],[22,32,23,32],[22,33,23,33],[22,34,23,34],[17,0,34,0],[18,1,34,1],[19,2,26,2],[20,3,25,3],[20,8,25,8],[21,4,24,4],[27,2,34,2],[28,3,33,3],[28,8,33,8],[29,4,32,4],[7,14,7,56],[8,14,8,56],[4,11,4,20],[10,11,10,12],[9,14,9,56],[6,14,6,56],[11,14,11,20],[15,18,15,19],[18,14,18,56],[17,14,17,56],[16,18,16,19],[13,20,15,20],[13,56,15,56],[12,11,12,56],[13,13,15,13],[14,17,14,19],[13,14,13,19],[13,11,15,11],[13,12,15,12],[11,21,11,27],[13,21,13,26],[13,27,15,27],[11,28,11,34],[13,28,13,33],[11,35,11,41],[13,35,13,40],[13,41,15,41],[14,36,14,37],[14,38,14,40],[15,39,15,40],[16,39,16,40],[22,38,23,38],[22,39,23,39],[22,40,23,40],[22,41,23,41],[30,38,31,38],[30,39,31,39],[30,40,31,40],[11,49,11,55],[13,49,13,54],[13,55,15,55],[14,50,14,51],[14,52,14,54],[15,53,15,54],[30,41,31,41],[11,42,11,48],[13,42,13,47],[13,48,15,48],[14,43,14,44],[14,45,14,47],[15,46,15,47],[16,46,16,47],[22,45,23,45],[22,46,23,46],[22,47,23,47],[22,48,23,48],[30,45,31,45],[30,46,31,46],[30,47,31,47],[30,48,31,48],[30,52,31,52],[30,53,31,53],[30,54,31,54],[30,55,31,55],[16,53,16,54],[22,52,23,52],[22,53,23,53],[22,54,23,54],[22,55,23,55]]}
[]
[]
[]
[]
[null,null,null,null,null,null,null,null,null,null,null,"Форма 3.2 Информация о величинах тарифов на водоотведение, транспортировку воды1"]
[]
[null,null,null,null,null,null,null,null,null,null,null,null,{"$f":"\"Наименование органа регулирования, принявшего решение об \"&IF(NameOrPr_ch=\"\",\"утверждении\",\"изменении\") & \" тарифов\"","v":"Наименование органа регулирования, принявшего решение об утверждении тарифов"},null,{"$f":"IF(NameOrPr_ch=\"\",IF(NameOrPr=\"\",\"\",NameOrPr),NameOrPr_ch)","v":"Министерство энергетики и ЖКХ Самарской области"}]
[null,null,null,null,null,null,null,null,null,null,null,null,{"$f":"IF(datePr_ch=\"\",\"Дата документа об утверждении тарифов\",\"Дата принятия решения об изменении тарифов\")","v":"Дата документа об утверждении тарифов"},null,{"$f":"IF(datePr_ch=\"\",IF(datePr=\"\",\"\",datePr),datePr_ch)","v":"16.11.2018"}]
[null,null,null,null,null,null,null,null,null,null,null,null,{"$f":"IF(numberPr_ch=\"\",\"Номер документа об утверждении тарифов\",\"Номер принятия решения об изменении тарифов\")","v":"Номер документа об утверждении тарифов"},null,{"$f":"IF(numberPr_ch=\"\",IF(numberPr=\"\",\"\",numberPr),numberPr_ch)","v":"426"}]
[null,null,null,null,null,null,null,null,null,null,null,null,"Источник официального опубликования решения",null,{"$f":"IF(IstPub_ch=\"\",IF(IstPub=\"\",\"\",IstPub),IstPub_ch)","v":"Сайт Правительства Самарской области"}]
[null,null,null,null,null,null,null,null,null,null,null,null,null,null,null,null,null,null,null,null,"dp",null,null,null,null,null,null,"dp",null,null,null,null,null,null,"dp",null,null,null,null,null,null,"dp",null,null,null,null,null,null,"dp",null,null,null,null,null,null,"dp"]
[null,null,null,null,null,null,null,null,null,null,null,null,null,null,null,null,null,null,null,null,null,"О",null,null,null,null,null,null,"О",null,null,null,null,null,null,"О",null,null,null,null,null,null,"О",null,null,null,null,null,null,"О"]
[null,null,null,null,null,null,null,null,null,null,null,"Параметры формы",null,null,null,null,null,null,null,null,null,null,null,null,null,null,null,null,null,null,null,null,null,null,null,null,null,null,null,null,null,null,null,null,null,null,null,null,null,null,null,null,null,null,null,null,null,"Описание параметров формы"]
[null,null,null,null,null,null,null,null,null,null,null,"№ п/п","Параметры дифференциации",null,"Период действия тарифа",null,null,null,null,null,"Наличие других периодов действия тарифа","Период действия тарифа",null,null,null,null,null,"Наличие других периодов действия тарифа","Период действия тарифа",null,null,null,null,null,"Наличие других периодов действия тарифа","Период действия тарифа",null,null,null,null,null,"Наличие других периодов действия тарифа","Период действия тарифа",null,null,null,null,null,"Наличие других периодов действия тарифа","Период действия тарифа",null,null,null,null,null,"Наличие других периодов действия тарифа","Добавить период"]
[null,null,null,null,null,null,null,null,null,null,null,null,null,null,"Одноставочный тариф","Двухставочный тариф",null,"Период действия",null,null,null,"Одноставочный тариф","Двухставочный тариф",null,"Период действия",null,null,null,"Одноставочный тариф","Двухставочный тариф",null,"Период действия",null,null,null,"Одноставочный тариф","Двухставочный тариф",null,"Период действия",null,null,null,"Одноставочный тариф","Двухставочный тариф",null,"Период действия",null,null,null,"Одноставочный тариф","Двухставочный тариф",null,"Период действия"]
[null,null,null,null,null,null,null,null,null,null,null,null,null,null,"Одноставочный тариф, руб./куб. м","ставка платы за объем принятых сточных вод, руб./куб. м","ставка платы за содержание мощности, руб./куб. м в час","дата начала","дата окончания",null,null,"Одноставочный тариф, руб./куб. м","ставка платы за объем принятых сточных вод, руб./куб. м","ставка платы за содержание мощности, руб./куб. м в час","дата начала","дата окончания",null,null,"Одноставочный тариф, руб./куб. м","ставка платы за объем принятых сточных вод, руб./куб. м","ставка платы за содержание мощности, руб./куб. м в час","дата начала","дата окончания",null,null,"Одноставочный тариф, руб./куб. м","ставка платы за объем принятых сточных вод, руб./куб. м","ставка платы за содержание мощности, руб./куб. м в час","дата начала","дата окончания",null,null,"Одноставочный тариф, руб./куб. м","ставка платы за объем принятых сточных вод, руб./куб. м","ставка платы за содержание мощности, руб./куб. м в час","дата начала","дата окончания",null,null,"Одноставочный тариф, руб./куб. м","ставка платы за объем принятых сточных вод, руб./куб. м","ставка платы за содержание мощности, руб./куб. м в час","дата начала","дата окончания"]
[null,null,null,null,null,null,null,null,null,null,1,"1","2",{"$f":"OFFSET(N17,0,-1)","v":"2"},{"$f":"OFFSET(O17,0,-1)+1","v":3},{"$f":"OFFSET(P17,0,-1)+1","v":4},{"$f":"OFFSET(Q17,0,-1)+1","v":5},{"$f":"OFFSET(R17,0,-1)+1","v":6},{"$f":"OFFSET(S17,0,-1)+1","v":7},null,{"$f":"OFFSET(U17,0,-2)+1","v":8},{"$f":"OFFSET(V17,0,-1)+1","v":9},{"$f":"OFFSET(W17,0,-1)+1","v":10},{"$f":"OFFSET(X17,0,-1)+1","v":11},{"$f":"OFFSET(Y17,0,-1)+1","v":12},{"$f":"OFFSET(Z17,0,-1)+1","v":13},null,{"$f":"OFFSET(AB17,0,-2)+1","v":14},{"$f":"OFFSET(AC17,0,-1)+1","v":15},{"$f":"OFFSET(AD17,0,-1)+1","v":16},{"$f":"OFFSET(AE17,0,-1)+1","v":17},{"$f":"OFFSET(AF17,0,-1)+1","v":18},{"$f":"OFFSET(AG17,0,-1)+1","v":19},null,{"$f":"OFFSET(AI17,0,-2)+1","v":20},{"$f":"OFFSET(AJ17,0,-1)+1","v":21},{"$f":"OFFSET(AK17,0,-1)+1","v":22},{"$f":"OFFSET(AL17,0,-1)+1","v":23},{"$f":"OFFSET(AM17,0,-1)+1","v":24},{"$f":"OFFSET(AN17,0,-1)+1","v":25},null,{"$f":"OFFSET(AP17,0,-2)+1","v":26},{"$f":"OFFSET(AQ17,0,-1)+1","v":27},{"$f":"OFFSET(AR17,0,-1)+1","v":28},{"$f":"OFFSET(AS17,0,-1)+1","v":29},{"$f":"OFFSET(AT17,0,-1)+1","v":30},{"$f":"OFFSET(AU17,0,-1)+1","v":31},null,{"$f":"OFFSET(AW17,0,-2)+1","v":32},{"$f":"OFFSET(AX17,0,-1)+1","v":33},{"$f":"OFFSET(AY17,0,-1)+1","v":34},{"$f":"OFFSET(AZ17,0,-1)+1","v":35},{"$f":"OFFSET(BA17,0,-1)+1","v":36},{"$f":"OFFSET(BB17,0,-1)+1","v":37},null,{"$f":"OFFSET(BD17,0,-2)+1","v":38},{"$f":"OFFSET(BE17,0,-1)","v":38},{"$f":"OFFSET(BF17,0,-1)+1","v":39}]
[1,null,null,null,null,null,null,null,null,null,null,{"$f":"mergeValue(A18)","v":1},"Наименование тарифа",null,{"$f":"IF('Перечень тарифов'!J21=\"\",\"\",\"\" & 'Перечень тарифов'!J21 & \"\")","v":"Тариф в сфере водоотведения"},null,null,null,null,null,null,null,null,null,null,null,null,null,null,null,null,null,null,null,null,null,null,null,null,null,null,null,null,null,null,null,null,null,null,null,null,null,null,null,null,null,null,"Указывается наименование тарифа в случае утверждения нескольких тарифов.\nВ случае наличия нескольких тарифов информация по ним указывается в отдельных строках."]
[null,1,null,null,null,null,null,null,null,null,null,{"$f":"mergeValue(A19) &\".\"& mergeValue(B19)","v":"1.1"}]
[null,null,1,null,null,null,null,null,null,null,null,{"$f":"mergeValue(A20) &\".\"& mergeValue(B20)&\".\"& mergeValue(C20)","v":"1.1.1"},"Наименование централизованной системы водоотведения",null,{"$f":"IF('Перечень тарифов'!R21=\"\",\"\",\"\" & 'Перечень тарифов'!R21 & \"\")","v":"Централизованная система водоотведения Центрального района"},null,null,null,null,null,null,null,null,null,null,null,null,null,null,null,null,null,null,null,null,null,null,null,null,null,null,null,null,null,null,null,null,null,null,null,null,null,null,null,null,null,null,"Указывается наименование централизованной системы водоотведения при наличии дифференциации тарифа по централизованным системам водоотведения.\nВ случае дифференциации тарифов по централизованным системам водоотведения информация по ним указывается в отдельных строках."]
[null,null,null,1,null,null,null,null,null,null,null,{"$f":"mergeValue(A21) &\".\"& mergeValue(B21)&\".\"& mergeValue(C21)&\".\"& mergeValue(D21)","v":"1.1.1.1"},"Наименование признака дифференциации",null,null,null,null,null,null,null,null,null,null,null,null,null,null,null,null,null,null,null,null,null,null,null,null,null,null,null,null,null,null,null,null,null,null,null,null,null,null,null,null,null,null,null,null,"Указывается наименование дополнительного признака дифференциации (при наличии).\nДифференциация тарифа осуществляется в соответствии с законодательством в сфере водоснабжении и водоотведении.\nВ случае дифференциации тарифов по дополнительным признакам информация по ним указывается в отдельных строках."]
[null,null,null,null,1,null,null,null,null,null,null,{"$f":"mergeValue(A22) &\".\"& mergeValue(B22)&\".\"& mergeValue(C22)&\".\"& mergeValue(D22)&\".\"& mergeValue(E22)","v":"1.1.1.1.1"},"Группа потребителей",null,"прочие",null,null,null,null,null,null,null,null,null,null,null,null,null,null,null,null,null,null,null,null,null,null,null,null,null,null,null,null,null,null,null,null,null,null,null,null,null,null,null,null,null,null,"Указывается группа потребителей при наличии дифференциации тарифа по группам потребителей.\nЗначение выбирается из перечня: Организации-перепродавцы; Бюджетные организации; Население; Прочие; Без дифференциации.\nВ случае дифференциации тарифов группам потребителей информация по ним указывается в отдельных строках.",null,{"$f":"strCheckUnique(BI22:BI25)","v":""}]
[null,null,null,null,null,1,null,null,null,null,null,{"$f":"mergeValue(A23) &\".\"& mergeValue(B23)&\".\"& mergeValue(C23)&\".\"& mergeValue(D23)&\".\"& mergeValue(E23)&\".\"& mergeValue(F23)","v":"1.1.1.1.1.1"},null,null,2.91,null,null,"01.01.2017","да","30.06.2017","да",3.03,null,null,"01.07.2017","да","31.12.2017","да",3.03,null,null,"01.01.2018","да","30.06.2018","да",3.1,null,null,"01.07.2018","да","31.12.2018","да",3.1,null,null,"01.01.2019","да","30.06.2019","да",3.15,null,null,"01.07.2019","да","31.12.2019","нет",null,"В колонке «Параметр дифференциации тарифов» указывается значение дополнительного признака дифференциации.\nПри утверждении двухставочного тарифа колонка «Одноставочный тариф» не заполняется.\nПри утверждении одноставочного тарифа колонки в блоке «Двухставочный тариф» не заполняются.\nДаты начала и окончания действия тарифов указываются в виде «ДД.ММ.ГГГГ».\nВ случае отсутствия даты окончания действия тарифа в колонке «Дата окончания» указывается «Нет».\nВ случае наличия нескольких значений признака дифференциации тарифов информация по ним указывается в отдельных строках.\nВ случае дифференциации тарифов по периодам действия тарифа информация по ним указывается в отдельных колонках.",{"$f":"strCheckDate(O24:BE24)","v":""},null,{"$f":"IF(M23=\"\",\"\",M23 )","v":""}]
[null,null,null,null,null,null,null,null,null,null,null,null,null,null,null,null,{"$f":"R23 & \"-\" & T23","v":"01.01.2017-30.06.2017"},null,null,null,null,null,null,{"$f":"Y23 & \"-\" & AA23","v":"01.07.2017-31.12.2017"},null,null,null,null,null,null,{"$f":"AF23 & \"-\" & AH23","v":"01.01.2018-30.06.2018"},null,null,null,null,null,null,{"$f":"AM23 & \"-\" & AO23","v":"01.07.2018-31.12.2018"},null,null,null,null,null,null,{"$f":"AT23 & \"-\" & AV23","v":"01.01.2019-30.06.2019"},null,null,null,null,null,null,{"$f":"BA23 & \"-\" & BC23","v":"01.07.2019-31.12.2019"}]
[null,null,null,null,null,null,null,null,null,null,null,null,"Добавить значение признака дифференциации"]
[null,null,null,null,null,null,null,null,null,null,null,null,"Добавить группу потребителей"]
[null,null,null,null,null,null,null,null,null,null,null,null,"Добавить наименование признака дифференциации"]
[null,null,2,null,null,null,null,null,null,null,null,{"$f":"mergeValue(A28) &\".\"& mergeValue(B28)&\".\"& mergeValue(C28)","v":"1.1.2"},"Наименование централизованной системы водоотведения",null,{"$f":"IF('Перечень тарифов'!R22=\"\",\"\",\"\" & 'Перечень тарифов'!R22 & \"\")","v":"Централизованная система водоотведения Комсомольского района"},null,null,null,null,null,null,null,null,null,null,null,null,null,null,null,null,null,null,null,null,null,null,null,null,null,null,null,null,null,null,null,null,null,null,null,null,null,null,null,null,null,null,"Указывается наименование централизованной системы водоотведения при наличии дифференциации тарифа по централизованным системам водоотведения.\nВ случае дифференциации тарифов по централизованным системам водоотведения информация по ним указывается в отдельных строках."]
[null,null,null,1,null,null,null,null,null,null,null,{"$f":"mergeValue(A29) &\".\"& mergeValue(B29)&\".\"& mergeValue(C29)&\".\"& mergeValue(D29)","v":"1.1.2.1"},"Наименование признака дифференциации",null,null,null,null,null,null,null,null,null,null,null,null,null,null,null,null,null,null,null,null,null,null,null,null,null,null,null,null,null,null,null,null,null,null,null,null,null,null,null,null,null,null,null,null,"Указывается наименование дополнительного признака дифференциации (при наличии).\nДифференциация тарифа осуществляется в соответствии с законодательством в сфере водоснабжении и водоотведении.\nВ случае дифференциации тарифов по дополнительным признакам информация по ним указывается в отдельных строках."]
[null,null,null,null,1,null,null,null,null,null,null,{"$f":"mergeValue(A30) &\".\"& mergeValue(B30)&\".\"& mergeValue(C30)&\".\"& mergeValue(D30)&\".\"& mergeValue(E30)","v":"1.1.2.1.1"},"Группа потребителей",null,"прочие",null,null,null,null,null,null,null,null,null,null,null,null,null,null,null,null,null,null,null,null,null,null,null,null,null,null,null,null,null,null,null,null,null,null,null,null,null,null,null,null,null,null,"Указывается группа потребителей при наличии дифференциации тарифа по группам потребителей.\nЗначение выбирается из перечня: Организации-перепродавцы; Бюджетные организации; Население; Прочие; Без дифференциации.\nВ случае дифференциации тарифов группам потребителей информация по ним указывается в отдельных строках.",null,{"$f":"strCheckUnique(BI30:BI33)","v":""}]
[null,null,null,null,null,1,null,null,null,null,null,{"$f":"mergeValue(A31) &\".\"& mergeValue(B31)&\".\"& mergeValue(C31)&\".\"& mergeValue(D31)&\".\"& mergeValue(E31)&\".\"& mergeValue(F31)","v":"1.1.2.1.1.1"},null,null,2.91,null,null,"01.01.2017","да","30.06.2017","да",3.03,null,null,"01.07.2017","да","31.12.2017","да",3.03,null,null,"01.01.2018","да","30.06.2018","да",3.1,null,null,"01.07.2018","да","31.12.2018","да",3.1,null,null,"01.01.2019","да","30.06.2019","да",3.15,null,null,"01.07.2019","да","31.12.2019","нет",null,"В колонке «Параметр дифференциации тарифов» указывается значение дополнительного признака дифференциации.\nПри утверждении двухставочного тарифа колонка «Одноставочный тариф» не заполняется.\nПри утверждении одноставочного тарифа колонки в блоке «Двухставочный тариф» не заполняются.\nДаты начала и окончания действия тарифов указываются в виде «ДД.ММ.ГГГГ».\nВ случае отсутствия даты окончания действия тарифа в колонке «Дата окончания» указывается «Нет».\nВ случае наличия нескольких значений признака дифференциации тарифов информация по ним указывается в отдельных строках.\nВ случае дифференциации тарифов по периодам действия тарифа информация по ним указывается в отдельных колонках.",{"$f":"strCheckDate(O32:BE32)","v":""},null,{"$f":"IF(M31=\"\",\"\",M31 )","v":""}]
[null,null,null,null,null,null,null,null,null,null,null,null,null,null,null,null,{"$f":"R31 & \"-\" & T31","v":"01.01.2017-30.06.2017"},null,null,null,null,null,null,{"$f":"Y31 & \"-\" & AA31","v":"01.07.2017-31.12.2017"},null,null,null,null,null,null,{"$f":"AF31 & \"-\" & AH31","v":"01.01.2018-30.06.2018"},null,null,null,null,null,null,{"$f":"AM31 & \"-\" & AO31","v":"01.07.2018-31.12.2018"},null,null,null,null,null,null,{"$f":"AT31 & \"-\" & AV31","v":"01.01.2019-30.06.2019"},null,null,null,null,null,null,{"$f":"BA31 & \"-\" & BC31","v":"01.07.2019-31.12.2019"}]
[null,null,null,null,null,null,null,null,null,null,null,null,"Добавить значение признака дифференциации"]
[null,null,null,null,null,null,null,null,null,null,null,null,"Добавить группу потребителей"]
[null,null,null,null,"",null,null,null,null,null,null,null,"Добавить наименование признака дифференциации"]
[]
[null,null,null,null,null,null,null,null,null,null,null,null,"1 Для каждого вида тарифа в сфере водоотведения форма заполняется отдельно. При размещении информации по данной форме дополнительно указываются: наименование органа регулирования тарифов, принявшего решение об утверждении(изменении) тарифа, дата и номер документа об утверждении(изменении) тарифа, источник официального опубликования решения."]

{"sheet":"Форма 1.0.1 | Т-транс","index":8,"n_rows":19,"n_cols":10,"rows_kept":19,"cut":false,"hidden":true,"merged":[[18,6,18,7],[1,5,1,7],[3,5,3,7],[3,8,4,8],[7,0,15,0],[11,2,13,2],[12,8,13,8],[10,1,14,1]]}
["2"]
[null,null,null,null,null,"Форма 1.0.1 Основные параметры раскрываемой информации 1"]
[]
[null,null,null,null,null,"Параметры формы",null,null,"Описание параметров формы"]
[null,null,null,null,null,"№ п/п","Наименование параметра","Информация"]
[null,null,null,null,null,"1",2,3,4,4]
[null,null,null,null,null,1,"Дата заполнения/внесения изменений",{"$f":"IF(dateCh=\"\",\"\",dateCh)","v":"07.12.2018"},"Указывается календарная дата первичного заполнения или внесения изменений в форму в виде «ДД.ММ.ГГГГ»."]
[1,null,null,null,null,{"$f":"\"2.\" &mergeValue(A8)","v":"2.1"},"Наименование централизованной системы коммунальной инфраструктуры",null,"Указывается наименование централизованной системы холодного водоснабжения/горячего водоснабжения/водоотведения/теплоснабжения, к которой относится размещаемая информация.\nВ случае наличия нескольких централизованных систем коммунальной инфраструктуры, информация по каждой из них указывается в отдельной строке."]
[null,null,null,null,null,{"$f":"\"3.\" &mergeValue(A9)","v":"3.1"},"Наименование регулируемого вида деятельности",null,"Указывается наименование вида регулируемой деятельности."]
[null,null,null,null,null,{"$f":"\"4.\"&mergeValue(A10)","v":"4.1"},"Территория оказания услуги по регулируемому виду деятельности","x"]
[null,1,null,null,null,{"$f":"\"4.\"&mergeValue(A11) &\".\"&mergeValue(B11)","v":"4.1.1"},"Субъект Российской Федерации",{"$f":"IF(region_name=\"\",\"\",region_name)","v":"Самарская область"},"Указывается наименование субъекта Российской Федерации"]
[null,null,1,null,null,{"$f":"\"4.\"&mergeValue(A12) &\".\"&mergeValue(B12)&\".\"&mergeValue(C12)","v":"4.1.1.1"},"муниципальный район",null,"Указывается наименование муниципального района, на территории которого организация оказывает услуги по регулируемому виду деятельности."]
[null,null,null,1,null,{"$f":"\"4.\"&mergeValue(A13) &\".\"&mergeValue(B13)&\".\"&mergeValue(C13)&\".\"&mergeValue(D13)","v":"4.1.1.1.1"},"муниципальное образование",null,"Указывается наименование и код муниципального района, муниципального образования в соответствии с Общероссийским классификатором территорий муниципальных образований (далее - ОКТМО), входящего в муниципальный район, на территории которого организация оказывает услуги по регулируемому виду деятельности.\nВ случае оказания услуг по регулируемому виду деятельности на территории нескольких муниципальных районов (муниципальных образований) данные по каждому их них указываются в отдельной строке."]
[null,null,null,null,null,null,"Добавить МО"]
[null,null,null,null,null,null,"Добавить МР"]
[null,null,null,null,null,null,"Добавить территорию"]
[null,null,null,null,null,null,"Добавить ЦС"]
[]
[null,null,null,null,null,null,"  1 Информация размещается при раскрытии информации по каждой из форм."]

{"sheet":"Форма 3.2 | Т-транс","index":9,"n_rows":32,"n_cols":26,"rows_kept":32,"cut":false,"hidden":true,"merged":[[13,11,15,11],[13,12,15,12],[18,14,18,21],[17,0,28,0],[18,1,27,1],[19,2,26,2],[20,3,25,3],[20,8,25,8],[22,13,23,13],[21,4,24,4],[17,14,17,21],[13,14,13,19],[14,17,14,19],[13,13,15,13],[13,20,15,20],[31,12,31,21],[21,9,24,9],[20,14,20,21],[19,14,19,21],[22,19,23,19],[21,14,21,21],[22,18,23,18],[22,22,24,22],[4,11,4,20],[14,15,14,16],[15,18,15,19],[22,17,23,17],[22,20,23,20],[10,11,10,12],[6,14,6,21],[13,21,15,21],[12,22,15,22],[7,14,7,21],[8,14,8,21],[9,14,9,21],[16,18,16,19],[12,11,12,21],[11,14,11,20]]}
[]
[]
[]
[]
[null,null,null,null,null,null,null,null,null,null,null,"Форма 3.2 Информация о величинах тарифов на водоотведение, транспортировку воды1"]
[]
[null,null,null,null,null,null,null,null,null,null,null,null,{"$f":"\"Наименование органа регулирования, принявшего решение об \"&IF(NameOrPr_ch=\"\",\"утверждении\",\"изменении\") & \" тарифов\"","v":"Наименование органа регулирования, принявшего решение об утверждении тарифов"},null,{"$f":"IF(NameOrPr_ch=\"\",IF(NameOrPr=\"\",\"\",NameOrPr),NameOrPr_ch)","v":"Министерство энергетики и ЖКХ Самарской области"}]
[null,null,null,null,null,null,null,null,null,null,null,null,{"$f":"IF(datePr_ch=\"\",\"Дата документа об утверждении тарифов\",\"Дата принятия решения об изменении тарифов\")","v":"Дата документа об утверждении тарифов"},null,{"$f":"IF(datePr_ch=\"\",IF(datePr=\"\",\"\",datePr),datePr_ch)","v":"16.11.2018"}]
[null,null,null,null,null,null,null,null,null,null,null,null,{"$f":"IF(numberPr_ch=\"\",\"Номер документа об утверждении тарифов\",\"Номер принятия решения об изменении тарифов\")","v":"Номер документа об утверждении тарифов"},null,{"$f":"IF(numberPr_ch=\"\",IF(numberPr=\"\",\"\",numberPr),numberPr_ch)","v":"426"}]
[null,null,null,null,null,null,null,null,null,null,null,null,"Источник официального опубликования решения",null,{"$f":"IF(IstPub_ch=\"\",IF(IstPub=\"\",\"\",IstPub),IstPub_ch)","v":"Сайт Правительства Самарской области"}]
[null,null,null,null,null,null,null,null,null,null,null,null,null,null,null,null,null,null,null,null,"dp"]
[]
[null,null,null,null,null,null,null,null,null,null,null,"Параметры формы",null,null,null,null,null,null,null,null,null,null,"Описание параметров формы"]
[null,null,null,null,null,null,null,null,null,null,null,"№ п/п","Параметры дифференциации",null,"Период действия тарифа",null,null,null,null,null,"Наличие других периодов действия тарифа","Добавить период"]
[null,null,null,null,null,null,null,null,null,null,null,null,null,null,"Одноставочный тариф","Двухставочный тариф",null,"Период действия"]
[null,null,null,null,null,null,null,null,null,null,null,null,null,null,"Одноставочный тариф, руб./куб. м","ставка платы за объем принятых сточных вод, руб./куб. м","ставка платы за содержание мощности, руб./куб. м в час","дата начала","дата окончания"]
[null,null,null,null,null,null,null,null,null,null,1,"1","2",{"$f":"OFFSET(N17,0,-1)","v":"2"},{"$f":"OFFSET(O17,0,-1)+1","v":3},{"$f":"OFFSET(P17,0,-1)+1","v":4},{"$f":"OFFSET(Q17,0,-1)+1","v":5},{"$f":"OFFSET(R17,0,-1)+1","v":6},{"$f":"OFFSET(S17,0,-1)+1","v":7},null,{"$f":"OFFSET(U17,0,-2)+1","v":8},{"$f":"OFFSET(V17,0,-1)","v":8},{"$f":"OFFSET(W17,0,-1)+1","v":9}]
[1,null,null,null,null,null,null,null,null,null,null,{"$f":"mergeValue(A18)","v":1},"Наименование тарифа",null,null,null,null,null,null,null,null,null,"Указывается наименование тарифа в случае утверждения нескольких тарифов.\nВ случае наличия нескольких тарифов информация по ним указывается в отдельных строках."]
[null,1,null,null,null,null,null,null,null,null,null,{"$f":"mergeValue(A19) &\".\"& mergeValue(B19)","v":"1.1"},"Территория действия тарифа",null,null,null,null,null,null,null,null,null,"Указывается наименование территории действия тарифа при наличии дифференциации тарифа по территориальному признаку.\nВ случае дифференциации тарифов по территориальному признаку информация по ним указывается в отдельных строках."]
[null,null,1,null,null,null,null,null,null,null,null,{"$f":"mergeValue(A20) &\".\"& mergeValue(B20)&\".\"& mergeValue(C20)","v":"1.1.1"},"Наименование централизованной системы водоотведения",null,null,null,null,null,null,null,null,null,"Указывается наименование централизованной системы водоотведения при наличии дифференциации тарифа по централизованным системам водоотведения.\nВ случае дифференциации тарифов по централизованным системам водоотведения информация по ним указывается в отдельных строках."]
[null,null,null,1,null,null,null,null,null,null,null,{"$f":"mergeValue(A21) &\".\"& mergeValue(B21)&\".\"& mergeValue(C21)&\".\"& mergeValue(D21)","v":"1.1.1.1"},"Наименование признака дифференциации",null,null,null,null,null,null,null,null,null,"Указывается наименование дополнительного признака дифференциации (при наличии).\nДифференциация тарифа осуществляется в соответствии с законодательством в сфере водоснабжении и водоотведении.\nВ случае дифференциации тарифов по дополнительным признакам информация по ним указывается в отдельных строках."]
[null,null,null,null,1,null,null,null,null,null,null,{"$f":"mergeValue(A22) &\".\"& mergeValue(B22)&\".\"& mergeValue(C22)&\".\"& mergeValue(D22)&\".\"& mergeValue(E22)","v":"1.1.1.1.1"},"Группа потребителей",null,null,null,null,null,null,null,null,null,"Указывается группа потребителей при наличии дифференциации тарифа по группам потребителей.\nЗначение выбирается из перечня: Организации-перепродавцы; Бюджетные организации; Население; Прочие; Без дифференциации.\nВ случае дифференциации тарифов группам потребителей информация по ним указывается в отдельных строках.",null,{"$f":"strCheckUnique(Z22:Z25)","v":""}]
[null,null,null,null,null,1,null,null,null,null,null,{"$f":"mergeValue(A23) &\".\"& mergeValue(B23)&\".\"& mergeValue(C23)&\".\"& mergeValue(D23)&\".\"& mergeValue(E23)&\".\"& mergeValue(F23)","v":"1.1.1.1.1.1"},null,null,null,null,null,null,"да",null,"нет",null,"В колонке «Параметр дифференциации тарифов» указывается значение дополнительного признака дифференциации.\nПри утверждении двухставочного тарифа колонка «Одноставочный тариф» не заполняется.\nПри утверждении одноставочного тарифа колонки в блоке «Двухставочный тариф» не заполняются.\nДаты начала и окончания действия тарифов указываются в виде «ДД.ММ.ГГГГ».\nВ случае отсутствия даты окончания действия тарифа в колонке «Дата окончания» указывается «Нет».\nВ случае наличия нескольких значений признака дифференциации тарифов информация по ним указывается в отдельных строках.\nВ случае дифференциации тарифов по периодам действия тарифа информация по ним указывается в отдельных колонках.",{"$f":"strCheckDate(O24:V24)","v":""},null,{"$f":"IF(M23=\"\",\"\",M23 )","v":""}]
[null,null,null,null,null,null,null,null,null,null,null,null,null,null,null,null,{"$f":"R23 & \"-\" & T23","v":"-"}]
[null,null,null,null,null,null,null,null,null,null,null,null,"Добавить значение признака дифференциации"]
[null,null,null,null,null,null,null,null,null,null,null,null,"Добавить группу потребителей"]
[null,null,null,null,null,null,null,null,null,null,null,null,"Добавить наименование признака дифференциации"]
[null,null,null,null,null,null,null,null,null,null,null,null,"Добавить наименование системы водоотведения"]
[null,null,null,null,null,null,null,null,null,null,null,null,"Добавить территорию действия тарифа"]
[null,null,null,null,null,null,null,null,null,null,null,null,"Добавить наименование тарифа"]
[]
[null,null,null,null,null,null,null,null,null,null,null,null,"1 Для каждого вида тарифа в сфере водоотведения форма заполняется отдельно. При размещении информации по данной форме дополнительно указываются: наименование органа регулирования тарифов, принявшего решение об утверждении(изменении) тарифа, дата и номер документа об утверждении(изменении) тарифа, источник официального опубликования решения."]

{"sheet":"Форма 1.0.1 | Т-подкл(инд)","index":10,"n_rows":19,"n_cols":10,"rows_kept":19,"cut":false,"hidden":true,"merged":[[18,6,18,7],[1,5,1,7],[3,5,3,7],[3,8,4,8],[7,0,15,0],[11,2,13,2],[12,8,13,8],[10,1,14,1]]}
["9"]
[null,null,null,null,null,"Форма 1.0.1 Основные параметры раскрываемой информации 1"]
[]
[null,null,null,null,null,"Параметры формы",null,null,"Описание параметров формы"]
[null,null,null,null,null,"№ п/п","Наименование параметра","Информация"]
[null,null,null,null,null,"1",2,3,4,4]
[null,null,null,null,null,1,"Дата заполнения/внесения изменений",{"$f":"IF(dateCh=\"\",\"\",dateCh)","v":"07.12.2018"},"Указывается календарная дата первичного заполнения или внесения изменений в форму в виде «ДД.ММ.ГГГГ»."]
[1,null,null,null,null,{"$f":"\"2.\" &mergeValue(A8)","v":"2.1"},"Наименование централизованной системы коммунальной инфраструктуры",null,"Указывается наименование централизованной системы холодного водоснабжения/горячего водоснабжения/водоотведения/теплоснабжения, к которой относится размещаемая информация.\nВ случае наличия нескольких централизованных систем коммунальной инфраструктуры, информация по каждой из них указывается в отдельной строке."]
[null,null,null,null,null,{"$f":"\"3.\" &mergeValue(A9)","v":"3.1"},"Наименование регулируемого вида деятельности",null,"Указывается наименование вида регулируемой деятельности."]
[null,null,null,null,null,{"$f":"\"4.\"&mergeValue(A10)","v":"4.1"},"Территория оказания услуги по регулируемому виду деятельности","x"]
[null,1,null,null,null,{"$f":"\"4.\"&mergeValue(A11) &\".\"&mergeValue(B11)","v":"4.1.1"},"Субъект Российской Федерации",{"$f":"IF(region_name=\"\",\"\",region_name)","v":"Самарская область"},"Указывается наименование субъекта Российской Федерации"]
[null,null,1,null,null,{"$f":"\"4.\"&mergeValue(A12) &\".\"&mergeValue(B12)&\".\"&mergeValue(C12)","v":"4.1.1.1"},"муниципальный район",null,"Указывается наименование муниципального района, на территории которого организация оказывает услуги по регулируемому виду деятельности."]
[null,null,null,1,null,{"$f":"\"4.\"&mergeValue(A13) &\".\"&mergeValue(B13)&\".\"&mergeValue(C13)&\".\"&mergeValue(D13)","v":"4.1.1.1.1"},"муниципальное образование",null,"Указывается наименование и код муниципального района, муниципального образования в соответствии с Общероссийским классификатором территорий муниципальных образований (далее - ОКТМО), входящего в муниципальный район, на территории которого организация оказывает услуги по регулируемому виду деятельности.\nВ случае оказания услуг по регулируемому виду деятельности на территории нескольких муниципальных районов (муниципальных образований) данные по каждому их них указываются в отдельной строке."]
[null,null,null,null,null,null,"Добавить МО"]
[null,null,null,null,null,null,"Добавить МР"]
[null,null,null,null,null,null,"Добавить территорию"]
[null,null,null,null,null,null,"Добавить ЦС"]
[]
[null,null,null,null,null,null,"  1 Информация размещается при раскрытии информации по каждой из форм."]

{"sheet":"Форма 3.4 | Т-подкл(инд)","index":11,"n_rows":32,"n_cols":41,"rows_kept":32,"cut":false,"hidden":true,"merged":[[4,11,4,20],[6,13,6,20],[7,13,7,20],[8,13,8,20],[9,13,9,20],[21,38,26,38],[13,11,13,37],[17,13,17,16],[17,17,17,20],[17,21,17,24],[14,37,16,37],[13,38,16,38],[21,22,22,22],[21,23,22,23],[21,24,22,24],[21,15,24,15],[21,16,24,16],[21,17,24,17],[21,18,23,18],[21,19,23,19],[21,20,23,20],[20,2,26,2],[21,3,25,3],[18,0,28,0],[19,1,27,1],[21,14,24,14],[20,13,20,37],[19,13,19,37],[18,13,18,37],[21,8,25,8],[21,25,22,25],[21,9,25,9],[21,11,25,11],[21,12,25,12],[21,13,25,13],[21,10,25,10],[21,21,23,21],[10,11,10,12],[10,18,10,23],[11,11,11,12],[11,18,11,23],[12,18,12,23],[12,29,12,36],[14,11,16,11],[14,12,16,12],[14,13,16,16],[14,17,16,20],[14,21,16,24],[14,25,16,28],[14,36,16,36],[16,34,16,35],[15,31,15,32],[15,33,15,35],[14,29,14,35],[15,29,15,30]]}
[]
[]
[]
[]
[null,null,null,null,null,null,null,null,null,null,null,"Форма 3.4 Информация о величинах тарифов на подключение к централизованной системе водоотведения1"]
[]
[null,null,null,null,null,null,null,null,null,null,null,null,{"$f":"\"Наименование органа регулирования, принявшего решение об \"&IF(NameOrPr_ch=\"\",\"утверждении\",\"изменении\") & \" тарифов\"","v":"Наименование органа регулирования, принявшего решение об утверждении тарифов"},{"$f":"IF(NameOrPr_ch=\"\",IF(NameOrPr=\"\",\"\",NameOrPr),NameOrPr_ch)","v":"Министерство энергетики и ЖКХ Самарской области"}]
[null,null,null,null,null,null,null,null,null,null,null,null,{"$f":"IF(datePr_ch=\"\",\"Дата документа об утверждении тарифов\",\"Дата принятия решения об изменении тарифов\")","v":"Дата документа об утверждении тарифов"},{"$f":"IF(datePr_ch=\"\",IF(datePr=\"\",\"\",datePr),datePr_ch)","v":"16.11.2018"}]
[null,null,null,null,null,null,null,null,null,null,null,null,{"$f":"IF(numberPr_ch=\"\",\"Номер документа об утверждении тарифов\",\"Номер принятия решения об изменении тарифов\")","v":"Номер документа об утверждении тарифов"},{"$f":"IF(numberPr_ch=\"\",IF(numberPr=\"\",\"\",numberPr),numberPr_ch)","v":"426"}]
[null,null,null,null,null,null,null,null,null,null,null,null,"Источник официального опубликования решения",{"$f":"IF(IstPub_ch=\"\",IF(IstPub=\"\",\"\",IstPub),IstPub_ch)","v":"Сайт Правительства Самарской области"}]
[null,null,null,null,null,null,null,null,null,null,null,null,null,null,null,null,null,null,null,null,null,null,null,null,null,null,null,null,null,"NDS","woNDS","NDS","woNDS"]
[null,null,null,null,null,null,null,null,null,null,null,null,null,null,null,null,null,null,null,null,null,null,null,null,null,null,null,null,null,null,null,null,null,null,null,null,"dp"]
[]
[null,null,null,null,null,null,null,null,null,null,null,"Параметры формы",null,null,null,null,null,null,null,null,null,null,null,null,null,null,null,null,null,null,null,null,null,null,null,null,null,null,"Описание параметров формы"]
[null,null,null,null,null,null,null,null,null,null,null,"№ п/п","Параметр дифференциации тарифа/Заявитель","Подключаемая нагрузка канализационной сети, куб. м/сут",null,null,null,"Диапазон диаметров канализационной сети, мм",null,null,null,"Протяженность канализационной сети, км",null,null,null,"Условия прокладки сетей",null,null,null,"Период действия тарифа",null,null,null,null,null,null,"Наличие других периодов действия тарифа","Добавить период"]
[null,null,null,null,null,null,null,null,null,null,null,null,null,null,null,null,null,null,null,null,null,null,null,null,null,null,null,null,null,"Ставка тарифа за подключаемую нагрузку канализационной сети, тыс. руб./куб. м в сут",null,"Ставка тарифа за протяженность канализационной сети диаметром d, тыс. руб./км",null,"Период действия"]
[null,null,null,null,null,null,null,null,null,null,null,null,null,null,null,null,null,null,null,null,null,null,null,null,null,null,null,null,null,"С НДС","Без НДС","С НДС","Без НДС","Дата начала","Дата окончания"]
[null,null,null,null,null,null,null,null,null,null,1,"1","2",{"$f":"OFFSET(N18,0,-1)+1","v":3},null,null,null,{"$f":"OFFSET(R18,0,-4)+1","v":4},null,null,null,{"$f":"OFFSET(V18,0,-4)+1","v":5},null,null,null,null,null,{"$f":"OFFSET(V18,0,0)+1","v":6},{"$f":"AB18","v":6},{"$f":"OFFSET(AD18,0,-1)+1","v":7},{"$f":"OFFSET(AE18,0,-1)+1","v":8},9,10,11,12,13,{"$f":"OFFSET(AK18,0,-1)+1","v":14},null,15]
[1,null,null,null,null,null,null,null,null,null,null,{"$f":"mergeValue(A19)","v":1},"Наименование тарифа",null,null,null,null,null,null,null,null,null,null,null,null,null,null,null,null,null,null,null,null,null,null,null,null,null,"Указывается наименование тарифа в случае утверждения нескольких тарифов.\nВ случае наличия нескольких тарифов информация по ним указывается в отдельных строках."]
[null,1,null,null,null,null,null,null,null,null,null,{"$f":"mergeValue(A20) &\".\"& mergeValue(B20)","v":"1.1"},"Территория действия тарифа",null,null,null,null,null,null,null,null,null,null,null,null,null,null,null,null,null,null,null,null,null,null,null,null,null,"Указывается наименование территории действия тарифа при наличии дифференциации тарифа по территориальному признаку.\nВ случае дифференциации тарифов по территориальному признаку информация по ним указывается в отдельных строках."]
[null,null,1,null,null,null,null,null,null,null,null,{"$f":"mergeValue(A21) &\".\"& mergeValue(B21)&\".\"& mergeValue(C21)","v":"1.1.1"},"Наименование централизованной системы водоотведения",null,null,null,null,null,null,null,null,null,null,null,null,null,null,null,null,null,null,null,null,null,null,null,null,null,"Указывается наименование централизованной системы водоотведения при наличии дифференциации тарифа по централизованным системам водоотведения.\nВ случае дифференциации тарифов по централизованным системам водоотведения информация по ним указывается в отдельных строках."]
[null,null,null,1,null,null,null,null,null,null,null,{"$f":"mergeValue(A22) &\".\"& mergeValue(B22)&\".\"& mergeValue(C22)&\".\"& mergeValue(D22)","v":"1.1.1.1"},null,"да",null,"1",null,"нет",null,1,null,"нет",null,1,null,"нет",null,1,null,null,null,null,null,null,"да",null,"нет",null,"В колодке «Параметр дифференциации тарифа/Заявитель» указывается наименование категории потребителей, к которой относится тариф.\nДаты начала и окончания указываются в виде «ДД.ММ.ГГГГ».\nВ случае отсутствия даты окончания тарифа в колонке «Дата окончания» указывается «Нет».\nВ случае наличия дифференциации по подключаемой нагрузке, диапазону диаметров, протяженности, условиям прокладки канализационной сети информация по ним указывается в отдельных строках.\nВ случае дифференциации тарифов по периодам действия тарифа информация по ним указывается в отдельных колонках.",{"$f":"strCheckDateOnDP(V22:AL22,List06_9_DP)","v":""},{"$f":"IF(AND(COUNTIF(AP18:AP26,AP22)>1,AP22<>\"\"),\"ErrUnique:HasDoubleConn\",\"\")","v":""}]
[null,null,null,null,null,null,null,null,null,null,null,null,null,null,null,null,null,null,null,null,null,null,null,null,null,null,null,null,null,null,null,null,{"$f":"AH22 & \"-\" & AJ22","v":"-"},null,null,null,"нет"]
[]
[]
[null,null,null,null,null,null,null,null,null,null,null,null,null,null,null,null,"Добавить подключаемую нагрузку"]
[null,null,null,null,null,null,null,null,null,null,null,null,"Добавить строку"]
[null,null,null,null,null,null,null,null,null,null,null,null,"Добавить наименование системы водоотведения"]
[null,null,null,null,null,null,null,null,null,null,null,null,"Добавить территорию действия тарифа"]
[null,null,null,null,null,null,null,null,null,null,null,null,"Добавить наименование тарифа"]
[]
[null,null,null,null,null,null,null,null,null,null,null,null,"1 При размещении информации дополнительно указываются: наименование органа регулирования тарифов, принявшего решение об утверждении(изменении) тарифа, дата и номер документа об утверждении(изменении) тарифа, источник официального опубликования решения."]

{"sheet":"Форма 1.0.1 | Т-подкл","index":12,"n_rows":19,"n_cols":10,"rows_kept":19,"cut":false,"hidden":true,"merged":[[18,6,18,7],[1,5,1,7],[3,5,3,7],[3,8,4,8],[7,0,15,0],[11,2,13,2],[12,8,13,8],[10,1,14,1]]}
["10"]
[null,null,null,null,null,"Форма 1.0.1 Основные параметры раскрываемой информации 1"]
[]
[null,null,null,null,null,"Параметры формы",null,null,"Описание параметров формы"]
[null,null,null,null,null,"№ п/п","Наименование параметра","Информация"]
[null,null,null,null,null,"1",2,3,4,4]
[null,null,null,null,null,1,"Дата заполнения/внесения изменений",{"$f":"IF(dateCh=\"\",\"\",dateCh)","v":"07.12.2018"},"Указывается календарная дата первичного заполнения или внесения изменений в форму в виде «ДД.ММ.ГГГГ»."]
[1,null,null,null,null,{"$f":"\"2.\" &mergeValue(A8)","v":"2.1"},"Наименование централизованной системы коммунальной инфраструктуры",null,"Указывается наименование централизованной системы холодного водоснабжения/горячего водоснабжения/водоотведения/теплоснабжения, к которой относится размещаемая информация.\nВ случае наличия нескольких централизованных систем коммунальной инфраструктуры, информация по каждой из них указывается в отдельной строке."]
[null,null,null,null,null,{"$f":"\"3.\" &mergeValue(A9)","v":"3.1"},"Наименование регулируемого вида деятельности",null,"Указывается наименование вида регулируемой деятельности."]
[null,null,null,null,null,{"$f":"\"4.\"&mergeValue(A10)","v":"4.1"},"Территория оказания услуги по регулируемому виду деятельности","x"]
[null,1,null,null,null,{"$f":"\"4.\"&mergeValue(A11) &\".\"&mergeValue(B11)","v":"4.1.1"},"Субъект Российской Федерации",{"$f":"IF(region_name=\"\",\"\",region_name)","v":"Самарская область"},"Указывается наименование субъекта Российской Федерации"]
[null,null,1,null,null,{"$f":"\"4.\"&mergeValue(A12) &\".\"&mergeValue(B12)&\".\"&mergeValue(C12)","v":"4.1.1.1"},"муниципальный район",null,"Указывается наименование муниципального района, на территории которого организация оказывает услуги по регулируемому виду деятельности."]
[null,null,null,1,null,{"$f":"\"4.\"&mergeValue(A13) &\".\"&mergeValue(B13)&\".\"&mergeValue(C13)&\".\"&mergeValue(D13)","v":"4.1.1.1.1"},"муниципальное образование",null,"Указывается наименование и код муниципального района, муниципального образования в соответствии с Общероссийским классификатором территорий муниципальных образований (далее - ОКТМО), входящего в муниципальный район, на территории которого организация оказывает услуги по регулируемому виду деятельности.\nВ случае оказания услуг по регулируемому виду деятельности на территории нескольких муниципальных районов (муниципальных образований) данные по каждому их них указываются в отдельной строке."]
[null,null,null,null,null,null,"Добавить МО"]
[null,null,null,null,null,null,"Добавить МР"]
[null,null,null,null,null,null,"Добавить территорию"]
[null,null,null,null,null,null,"Добавить ЦС"]
[]
[null,null,null,null,null,null,"  1 Информация размещается при раскрытии информации по каждой из форм."]

{"sheet":"Форма 3.4 | Т-подкл","index":13,"n_rows":32,"n_cols":40,"rows_kept":32,"cut":false,"hidden":true,"merged":[[12,28,12,35],[14,12,16,12],[14,11,16,11],[6,13,6,19],[7,13,7,19],[8,13,8,19],[9,13,9,19],[12,17,12,22],[11,17,11,22],[10,17,10,22],[10,11,10,12],[11,11,11,12],[14,24,16,27],[13,11,13,36],[14,13,16,15],[15,30,15,31],[18,0,28,0],[19,1,27,1],[20,2,26,2],[21,3,25,3],[21,10,25,10],[21,8,25,8],[21,9,25,9],[21,11,25,11],[21,17,23,17],[21,20,23,20],[19,13,19,36],[21,24,22,24],[17,20,17,23],[17,16,17,19],[17,13,17,15],[21,12,25,12],[21,15,24,15],[21,13,24,13],[21,19,23,19],[20,13,20,36],[21,21,22,21],[21,14,24,14],[4,11,4,20],[13,37,16,37],[21,37,26,37],[14,36,16,36],[14,16,16,19],[14,20,16,23],[21,18,23,18],[21,22,22,22],[21,16,24,16],[14,28,14,34],[14,35,16,35],[21,23,22,23],[15,28,15,29],[15,32,15,34],[18,13,18,36],[16,33,16,34]]}
[]
[]
[]
[]
[null,null,null,null,null,null,null,null,null,null,null,"Форма 3.4 Информация о величинах тарифов на подключение к централизованной системе водоотведения1"]
[]
[null,null,null,null,null,null,null,null,null,null,null,null,{"$f":"\"Наименование органа регулирования, принявшего решение об \"&IF(NameOrPr_ch=\"\",\"утверждении\",\"изменении\") & \" тарифов\"","v":"Наименование органа регулирования, принявшего решение об утверждении тарифов"},{"$f":"IF(NameOrPr_ch=\"\",IF(NameOrPr=\"\",\"\",NameOrPr),NameOrPr_ch)","v":"Министерство энергетики и ЖКХ Самарской области"}]
[null,null,null,null,null,null,null,null,null,null,null,null,{"$f":"IF(datePr_ch=\"\",\"Дата документа об утверждении тарифов\",\"Дата принятия решения об изменении тарифов\")","v":"Дата документа об утверждении тарифов"},{"$f":"IF(datePr_ch=\"\",IF(datePr=\"\",\"\",datePr),datePr_ch)","v":"16.11.2018"}]
[null,null,null,null,null,null,null,null,null,null,null,null,{"$f":"IF(numberPr_ch=\"\",\"Номер документа об утверждении тарифов\",\"Номер принятия решения об изменении тарифов\")","v":"Номер документа об утверждении тарифов"},{"$f":"IF(numberPr_ch=\"\",IF(numberPr=\"\",\"\",numberPr),numberPr_ch)","v":"426"}]
[null,null,null,null,null,null,null,null,null,null,null,null,"Источник официального опубликования решения",{"$f":"IF(IstPub_ch=\"\",IF(IstPub=\"\",\"\",IstPub),IstPub_ch)","v":"Сайт Правительства Самарской области"}]
[null,null,null,null,null,null,null,null,null,null,null,null,null,null,null,null,null,null,null,null,null,null,null,null,null,null,null,null,"NDS","woNDS","NDS","woNDS"]
[null,null,null,null,null,null,null,null,null,null,null,null,null,null,null,null,null,null,null,null,null,null,null,null,null,null,null,null,null,null,null,null,null,null,null,"dp"]
[]
[null,null,null,null,null,null,null,null,null,null,null,"Параметры формы",null,null,null,null,null,null,null,null,null,null,null,null,null,null,null,null,null,null,null,null,null,null,null,null,null,"Описание параметров формы"]
[null,null,null,null,null,null,null,null,null,null,null,"№ п/п","Параметр дифференциации тарифа/Заявитель","Подключаемая нагрузка канализационной сети, куб. м/сут",null,null,"Диапазон диаметров канализационной сети, мм",null,null,null,"Протяженность канализационной сети, км",null,null,null,"Условия прокладки сетей",null,null,null,"Период действия тарифа",null,null,null,null,null,null,"Наличие других периодов действия тарифа","Добавить период"]
[null,null,null,null,null,null,null,null,null,null,null,null,null,null,null,null,null,null,null,null,null,null,null,null,null,null,null,null,"Ставка тарифа за подключаемую нагрузку канализационной сети, тыс. руб./куб. м в сут",null,"Ставка тарифа за протяженность канализационной сети диаметром d, тыс. руб./км",null,"Период действия"]
[null,null,null,null,null,null,null,null,null,null,null,null,null,null,null,null,null,null,null,null,null,null,null,null,null,null,null,null,"С НДС","Без НДС","С НДС","Без НДС","Дата начала","Дата окончания"]
[null,null,null,null,null,null,null,null,null,null,1,"1","2",{"$f":"OFFSET(N18,0,-1)+1","v":3},null,null,{"$f":"OFFSET(Q18,0,-3)+1","v":4},null,null,null,{"$f":"OFFSET(U18,0,-4)+1","v":5},null,null,null,null,null,{"$f":"OFFSET(U18,0,0)+1","v":6},{"$f":"AA18","v":6},{"$f":"OFFSET(AC18,0,-1)+1","v":7},8,9,10,11,12,13,14,null,15]
[1,null,null,null,null,null,null,null,null,null,null,{"$f":"mergeValue(A19)","v":1},"Наименование тарифа",null,null,null,null,null,null,null,null,null,null,null,null,null,null,null,null,null,null,null,null,null,null,null,null,"Указывается наименование тарифа в случае утверждения нескольких тарифов.\nВ случае наличия нескольких тарифов информация по ним указывается в отдельных строках."]
[null,1,null,null,null,null,null,null,null,null,null,{"$f":"mergeValue(A20) &\".\"& mergeValue(B20)","v":"1.1"},"Территория действия тарифа",null,null,null,null,null,null,null,null,null,null,null,null,null,null,null,null,null,null,null,null,null,null,null,null,"Указывается наименование территории действия тарифа при наличии дифференциации тарифа по территориальному признаку.\nВ случае дифференциации тарифов по территориальному признаку информация по ним указывается в отдельных строках."]
[null,null,1,null,null,null,null,null,null,null,null,{"$f":"mergeValue(A21) &\".\"& mergeValue(B21)&\".\"& mergeValue(C21)","v":"1.1.1"},"Наименование централизованной системы водоотведения",null,null,null,null,null,null,null,null,null,null,null,null,null,null,null,null,null,null,null,null,null,null,null,null,"Указывается наименование централизованной системы водоотведения при наличии дифференциации тарифа по централизованным системам водоотведения.\nВ случае дифференциации тарифов по централизованным системам водоотведения информация по ним указывается в отдельных строках."]
[null,null,null,1,null,null,null,null,null,null,null,{"$f":"mergeValue(A22) &\".\"& mergeValue(B22)&\".\"& mergeValue(C22)&\".\"& mergeValue(D22)","v":"1.1.1.1"},null,null,"1",null,"нет",null,1,null,"нет",null,"1",null,"нет",null,1,null,null,null,null,null,null,"да",null,"нет",null,"В колодке «Параметр дифференциации тарифа/Заявитель» указывается наименование категории потребителей, к которой относится тариф.\nДаты начала и окончания указываются в виде «ДД.ММ.ГГГГ».\nВ случае отсутствия даты окончания тарифа в колонке «Дата окончания» указывается «Нет».\nВ случае наличия дифференциации по подключаемой нагрузке, диапазону диаметров, протяженности, условиям прокладки канализационной сети информация по ним указывается в отдельных строках.\nВ случае дифференциации тарифов по периодам действия тарифа информация по ним указывается в отдельных колонках.",{"$f":"strCheckDateOnDP(AC22:AK22,List06_10_DP)","v":""},{"$f":"IF(AND(COUNTIF(AO18:AO26,AO22)>1,AO22<>\"\"),\"ErrUnique:HasDoubleConn\",\"\")","v":""}]
[null,null,null,null,null,null,null,null,null,null,null,null,null,null,null,null,null,null,null,null,null,null,null,null,null,null,null,null,null,null,null,{"$f":"AG22 & \"-\" & AI22","v":"-"},null,null,null,"нет"]
[]
[]
[null,null,null,null,null,null,null,null,null,null,null,null,null,null,null,"Добавить подключаемую нагрузку"]
[null,null,null,null,null,null,null,null,null,null,null,null,"Добавить строку"]
[null,null,null,null,null,null,null,null,null,null,null,null,"Добавить наименование системы водоотведения"]
[null,null,null,null,null,null,null,null,null,null,null,null,"Добавить территорию действия тарифа"]
[null,null,null,null,null,null,null,null,null,null,null,null,"Добавить наименование тарифа"]
[]
[null,null,null,null,null,null,null,null,null,null,null,null,"1 При размещении информации дополнительно указываются: наименование органа регулирования тарифов, принявшего решение об утверждении(изменении) тарифа, дата и номер документа об утверждении(изменении) тарифа, источник официального опубликования решения."]

{"sheet":"Форма 1.0.1 | Форма 3.9","index":14,"n_rows":21,"n_cols":10,"rows_kept":21,"cut":false,"hidden":false,"merged":[[20,6,20,7],[1,5,1,7],[3,5,3,7],[3,8,4,8],[7,0,12,0],[10,1,12,1],[11,2,12,2],[13,0,18,0],[16,1,18,1],[17,2,18,2]]}
["11"]
[null,null,null,null,null,"Форма 1.0.1 Основные параметры раскрываемой информации 1"]
[]
[null,null,null,null,null,"Параметры формы",null,null,"Описание параметров формы"]
[null,null,null,null,null,"№ п/п","Наименование параметра","Информация"]
[null,null,null,null,null,"1",2,3,4,4]
[null,null,null,null,null,1,"Дата заполнения/внесения изменений",{"$f":"IF(dateCh=\"\",\"\",dateCh)","v":"07.12.2018"},"Указывается календарная дата первичного заполнения или внесения изменений в форму в виде «ДД.ММ.ГГГГ»."]
[1,null,null,null,null,{"$f":"\"2.\" &mergeValue(A8)","v":"2.1"},"Наименование централизованной системы коммунальной инфраструктуры",{"$f":"IF('Перечень тарифов'!R21=\"\",\"наименование отсутствует\",\"\" & 'Перечень тарифов'!R21 & \"\")","v":"Централизованная система водоотведения Центрального района"},"Указывается наименование централизованной системы холодного водоснабжения/горячего водоснабжения/водоотведения/теплоснабжения, к которой относится размещаемая информация.\nВ случае наличия нескольких централизованных систем коммунальной инфраструктуры, информация по каждой из них указывается в отдельной строке."]
[null,null,null,null,null,{"$f":"\"3.\" &mergeValue(A9)","v":"3.1"},"Наименование регулируемого вида деятельности",{"$f":"IF('Перечень тарифов'!F21=\"\",\"наименование отсутствует\",\"\" & 'Перечень тарифов'!F21 & \"\")","v":"Водоотведение"},"Указывается наименование вида регулируемой деятельности."]
[null,null,null,null,null,{"$f":"\"4.\"&mergeValue(A10)","v":"4.1"},"Территория оказания услуги по регулируемому виду деятельности","x"]
[null,1,null,null,null,{"$f":"\"4.\"&mergeValue(A11) &\".\"&mergeValue(B11)","v":"4.1.1"},"Субъект Российской Федерации",{"$f":"IF(region_name=\"\",\"\",region_name)","v":"Самарская область"},"Указывается наименование субъекта Российской Федерации"]
[null,null,1,null,null,{"$f":"\"4.\"&mergeValue(A12) &\".\"&mergeValue(B12)&\".\"&mergeValue(C12)","v":"4.1.1.1"},"муниципальный район",{"$f":"IF(Территории!H13=\"\",\"\",\"\" & Территории!H13 & \"\")","v":"городской округ Тольятти"},"Указывается наименование муниципального района, на территории которого организация оказывает услуги по регулируемому виду деятельности."]
[null,null,null,1,null,{"$f":"\"4.\"&mergeValue(A13) &\".\"&mergeValue(B13)&\".\"&mergeValue(C13)&\".\"&mergeValue(D13)","v":"4.1.1.1.1"},"муниципальное образование",{"$f":"IF(Территории!R14=\"\",\"\",\"\" & Территории!R14 & \"\")","v":"городской округ Тольятти (36740000)"},"Указывается наименование и код муниципального района, муниципального образования в соответствии с Общероссийским классификатором территорий муниципальных образований (далее - ОКТМО), входящего в муниципальный район, на территории которого организация оказывает услуги по регулируемому виду деятельности.\nВ случае оказания услуг по регулируемому виду деятельности на территории нескольких муниципальных районов (муниципальных образований) данные по каждому их них указываются в отдельной строке."]
[2,null,null,null,null,{"$f":"\"2.\" &mergeValue(A14)","v":"2.2"},"Наименование централизованной системы коммунальной инфраструктуры",{"$f":"IF('Перечень тарифов'!R22=\"\",\"наименование отсутствует\",\"\" & 'Перечень тарифов'!R22 & \"\")","v":"Централизованная система водоотведения Комсомольского района"},"Указывается наименование централизованной системы холодного водоснабжения/горячего водоснабжения/водоотведения/теплоснабжения, к которой относится размещаемая информация.\nВ случае наличия нескольких централизованных систем коммунальной инфраструктуры, информация по каждой из них указывается в отдельной строке."]
[null,null,null,null,null,{"$f":"\"3.\" &mergeValue(A15)","v":"3.2"},"Наименование регулируемого вида деятельности",{"$f":"IF('Перечень тарифов'!F21=\"\",\"наименование отсутствует\",\"\" & 'Перечень тарифов'!F21 & \"\")","v":"Водоотведение"},"Указывается наименование вида регулируемой деятельности."]
[null,null,null,null,null,{"$f":"\"4.\"&mergeValue(A16)","v":"4.2"},"Территория оказания услуги по регулируемому виду деятельности","x"]
[null,1,null,null,null,{"$f":"\"4.\"&mergeValue(A17) &\".\"&mergeValue(B17)","v":"4.2.1"},"Субъект Российской Федерации",{"$f":"IF(region_name=\"\",\"\",region_name)","v":"Самарская область"},"Указывается наименование субъекта Российской Федерации"]
[null,null,1,null,null,{"$f":"\"4.\"&mergeValue(A18) &\".\"&mergeValue(B18)&\".\"&mergeValue(C18)","v":"4.2.1.1"},"муниципальный район",{"$f":"IF(Территории!H13=\"\",\"\",\"\" & Территории!H13 & \"\")","v":"городской округ Тольятти"},"Указывается наименование муниципального района, на территории которого организация оказывает услуги по регулируемому виду деятельности."]
[null,null,null,1,null,{"$f":"\"4.\"&mergeValue(A19) &\".\"&mergeValue(B19)&\".\"&mergeValue(C19)&\".\"&mergeValue(D19)","v":"4.2.1.1.1"},"муниципальное образование",{"$f":"IF(Территории!R14=\"\",\"\",\"\" & Территории!R14 & \"\")","v":"городской округ Тольятти (36740000)"},"Указывается наименование и код муниципального района, муниципального образования в соответствии с Общероссийским классификатором территорий муниципальных образований (далее - ОКТМО), входящего в муниципальный район, на территории которого организация оказывает услуги по регулируемому виду деятельности.\nВ случае оказания услуг по регулируемому виду деятельности на территории нескольких муниципальных районов (муниципальных образований) данные по каждому их них указываются в отдельной строке."]
[]
[null,null,null,null,null,null,"  1 Информация размещается при раскрытии информации по каждой из форм."]

{"sheet":"Форма 3.9","index":15,"n_rows":16,"n_cols":7,"rows_kept":16,"cut":false,"hidden":false,"merged":[[6,3,6,5],[6,6,7,6],[11,6,12,6],[14,6,15,6],[4,3,4,5]]}
[]
[]
[]
[]
[null,null,null,"Форма 3.9 Информация об условиях, на которых осуществляется поставка регулируемых товаров и (или) оказание регулируемых услуг"]
[]
[null,null,null,"Параметры формы",null,null,"Описание параметров формы"]
[null,null,null,"№ п/п","Наименование параметра","Ссылка на документ"]
[null,null,null,"1","2","3","4"]
[null,null,null,1,"Сведения об условиях публичных договоров поставок регулируемых товаров, оказания регулируемых услуг, в том числе договоров о подключении к централизованной системе водоотведения","x"]
[null,null,null,"1.1","форма публичного договора поставки регулируемых товаров, оказания регулируемых услуг","x"]
[null,null,null,"1.1.1","Договор на оказание услуг по водоотведению поверхностных сточных вод","https://portal.eias.ru/Portal/DownloadPage.aspx?type=12&guid=ceb93bb8-547c-4546-99ef-96cf06e4ac51","Указывается форма договора, используемая регулируемой организацией, в виде ссылки на документ, предварительно загруженный в хранилище файлов ФГИС ЕИАС.\nВ случае наличия нескольких форм таких договоров информация по каждой из них указывается в отдельной строке."]
[null,null,null,null,"Добавить сведения"]
[null,null,null,"1.2","договор о подключении к централизованной системе водоотведения","x"]
[null,null,null,"1.2.1","Договор о подключении (технологическом присоединении) к централизованной системе водоотведения","https://portal.eias.ru/Portal/DownloadPage.aspx?type=12&guid=aaa247ae-51ca-4da8-8ed3-4225a54dbb76","Информация размещается в случае, если регулируемая организация осуществляет услуги по подключению (технологическому присоединению) к централизованной системе водоотведения.\nУказывается ссылка на документ, предварительно загруженный в хранилище файлов ФГИС ЕИАС.\nВ случае наличия нескольких договоров о подключении к централизованной системе водоотведения информация по каждому из них указывается в отдельной строке."]
[null,null,null,null,"Добавить сведения"]

{"sheet":"Форма 1.0.1 | Форма 3.10","index":16,"n_rows":21,"n_cols":10,"rows_kept":21,"cut":false,"hidden":false,"merged":[[20,6,20,7],[1,5,1,7],[3,5,3,7],[3,8,4,8],[7,0,12,0],[10,1,12,1],[11,2,12,2],[13,0,18,0],[16,1,18,1],[17,2,18,2]]}
["11"]
[null,null,null,null,null,"Форма 1.0.1 Основные параметры раскрываемой информации 1"]
[]
[null,null,null,null,null,"Параметры формы",null,null,"Описание параметров формы"]
[null,null,null,null,null,"№ п/п","Наименование параметра","Информация"]
[null,null,null,null,null,"1",2,3,4,4]
[null,null,null,null,null,1,"Дата заполнения/внесения изменений",{"$f":"IF(dateCh=\"\",\"\",dateCh)","v":"07.12.2018"},"Указывается календарная дата первичного заполнения или внесения изменений в форму в виде «ДД.ММ.ГГГГ»."]
[1,null,null,null,null,{"$f":"\"2.\" &mergeValue(A8)","v":"2.1"},"Наименование централизованной системы коммунальной инфраструктуры",{"$f":"IF('Перечень тарифов'!R21=\"\",\"наименование отсутствует\",\"\" & 'Перечень тарифов'!R21 & \"\")","v":"Централизованная система водоотведения Центрального района"},"Указывается наименование централизованной системы холодного водоснабжения/горячего водоснабжения/водоотведения/теплоснабжения, к которой относится размещаемая информация.\nВ случае наличия нескольких централизованных систем коммунальной инфраструктуры, информация по каждой из них указывается в отдельной строке."]
[null,null,null,null,null,{"$f":"\"3.\" &mergeValue(A9)","v":"3.1"},"Наименование регулируемого вида деятельности",{"$f":"IF('Перечень тарифов'!F21=\"\",\"наименование отсутствует\",\"\" & 'Перечень тарифов'!F21 & \"\")","v":"Водоотведение"},"Указывается наименование вида регулируемой деятельности."]
[null,null,null,null,null,{"$f":"\"4.\"&mergeValue(A10)","v":"4.1"},"Территория оказания услуги по регулируемому виду деятельности","x"]
[null,1,null,null,null,{"$f":"\"4.\"&mergeValue(A11) &\".\"&mergeValue(B11)","v":"4.1.1"},"Субъект Российской Федерации",{"$f":"IF(region_name=\"\",\"\",region_name)","v":"Самарская область"},"Указывается наименование субъекта Российской Федерации"]
[null,null,1,null,null,{"$f":"\"4.\"&mergeValue(A12) &\".\"&mergeValue(B12)&\".\"&mergeValue(C12)","v":"4.1.1.1"},"муниципальный район",{"$f":"IF(Территории!H13=\"\",\"\",\"\" & Территории!H13 & \"\")","v":"городской округ Тольятти"},"Указывается наименование муниципального района, на территории которого организация оказывает услуги по регулируемому виду деятельности."]
[null,null,null,1,null,{"$f":"\"4.\"&mergeValue(A13) &\".\"&mergeValue(B13)&\".\"&mergeValue(C13)&\".\"&mergeValue(D13)","v":"4.1.1.1.1"},"муниципальное образование",{"$f":"IF(Территории!R14=\"\",\"\",\"\" & Территории!R14 & \"\")","v":"городской округ Тольятти (36740000)"},"Указывается наименование и код муниципального района, муниципального образования в соответствии с Общероссийским классификатором территорий муниципальных образований (далее - ОКТМО), входящего в муниципальный район, на территории которого организация оказывает услуги по регулируемому виду деятельности.\nВ случае оказания услуг по регулируемому виду деятельности на территории нескольких муниципальных районов (муниципальных образований) данные по каждому их них указываются в отдельной строке."]
[2,null,null,null,null,{"$f":"\"2.\" &mergeValue(A14)","v":"2.2"},"Наименование централизованной системы коммунальной инфраструктуры",{"$f":"IF('Перечень тарифов'!R22=\"\",\"наименование отсутствует\",\"\" & 'Перечень тарифов'!R22 & \"\")","v":"Централизованная система водоотведения Комсомольского района"},"Указывается наименование централизованной системы холодного водоснабжения/горячего водоснабжения/водоотведения/теплоснабжения, к которой относится размещаемая информация.\nВ случае наличия нескольких централизованных систем коммунальной инфраструктуры, информация по каждой из них указывается в отдельной строке."]
[null,null,null,null,null,{"$f":"\"3.\" &mergeValue(A15)","v":"3.2"},"Наименование регулируемого вида деятельности",{"$f":"IF('Перечень тарифов'!F21=\"\",\"наименование отсутствует\",\"\" & 'Перечень тарифов'!F21 & \"\")","v":"Водоотведение"},"Указывается наименование вида регулируемой деятельности."]
[null,null,null,null,null,{"$f":"\"4.\"&mergeValue(A16)","v":"4.2"},"Территория оказания услуги по регулируемому виду деятельности","x"]
[null,1,null,null,null,{"$f":"\"4.\"&mergeValue(A17) &\".\"&mergeValue(B17)","v":"4.2.1"},"Субъект Российской Федерации",{"$f":"IF(region_name=\"\",\"\",region_name)","v":"Самарская область"},"Указывается наименование субъекта Российской Федерации"]
[null,null,1,null,null,{"$f":"\"4.\"&mergeValue(A18) &\".\"&mergeValue(B18)&\".\"&mergeValue(C18)","v":"4.2.1.1"},"муниципальный район",{"$f":"IF(Территории!H13=\"\",\"\",\"\" & Территории!H13 & \"\")","v":"городской округ Тольятти"},"Указывается наименование муниципального района, на территории которого организация оказывает услуги по регулируемому виду деятельности."]
[null,null,null,1,null,{"$f":"\"4.\"&mergeValue(A19) &\".\"&mergeValue(B19)&\".\"&mergeValue(C19)&\".\"&mergeValue(D19)","v":"4.2.1.1.1"},"муниципальное образование",{"$f":"IF(Территории!R14=\"\",\"\",\"\" & Территории!R14 & \"\")","v":"городской округ Тольятти (36740000)"},"Указывается наименование и код муниципального района, муниципального образования в соответствии с Общероссийским классификатором территорий муниципальных образований (далее - ОКТМО), входящего в муниципальный район, на территории которого организация оказывает услуги по регулируемому виду деятельности.\nВ случае оказания услуг по регулируемому виду деятельности на территории нескольких муниципальных районов (муниципальных образований) данные по каждому их них указываются в отдельной строке."]
[]
[null,null,null,null,null,null,"  1 Информация размещается при раскрытии информации по каждой из форм."]

{"sheet":"Форма 3.10","index":17,"n_rows":45,"n_cols":12,"rows_kept":45,"cut":false,"hidden":false,"merged":[[44,4,44,8],[39,4,39,7],[30,4,30,7],[33,4,33,7],[36,4,36,7],[31,8,32,8],[34,8,35,8],[37,8,38,8],[40,8,42,8],[24,8,28,8],[29,4,29,7],[4,3,4,7],[6,3,6,7],[6,8,7,8],[9,4,9,7],[13,4,13,7],[14,8,22,8],[23,4,23,7]]}
[]
[]
[]
[]
[null,null,null,"Форма 3.10 Информация о порядке выполнения технологических, технических и других мероприятий, связанных с подключением к централизованной системе водоотведения1"]
[]
[null,null,null,"Параметры формы",null,null,null,null,"Описание параметров формы"]
[null,null,null,"№ п/п","Наименование параметра",null,"Информация","Ссылка на документ"]
[null,null,null,"1","2",null,"3","4","5"]
[null,null,null,1,"Информация о размещении данных на сайте регулируемой организации"]
[null,null,null,"1.1","дата размещения информации",null,"14.12.2018","x","Дата размещения информации указывается в виде «ДД.ММ.ГГГГ»."]
[null,null,null,"1.2","адрес страницы сайта в сети «Интернет» и ссылка на документ",null,"http://www.pokx.net","https://portal.eias.ru/Portal/DownloadPage.aspx?type=12&guid=b01f8ca6-8a85-4ccd-9d5c-24895514ab29","В колонке «Информация» указывается адрес страницы сайта в сети «Интернет», на которой размещена информация.\nВ колонке «Ссылка на документ» указывается ссылка на скриншот страницы сайта в сети «Интернет», предварительно загруженный в хранилище файлов ФГИС ЕИАС, на которой размещена информация."]
[null,3,null,2,"Форма заявки о подключении к централизованной системе водоотведения",null,"x","https://portal.eias.ru/Portal/DownloadPage.aspx?type=12&guid=4ece50cb-ecb9-4277-b6dc-725ba75538b8","Указывается ссылка на документ, предварительно загруженный в хранилище файлов ФГИС ЕИАС."]
[null,null,null,3,"Перечень документов и сведений, представляемых одновременно с заявкой о подключении к централизованной системе водоотведения, и указание на запрет требовать представления документов и сведений или осуществления действий, представление или осуществление которых не предусмотрено законодательством Российской Федерации о градостроительной деятельности и законодательством в сфере водоснабжения и водоотведения"]
[null,null,null,"3.1","копии учредительных документов, а также документы, подтверждающие полномочия лица, подписавшего заявление;",null,"x","https://portal.eias.ru/Portal/DownloadPage.aspx?type=12&guid=7bf22bf7-ddc9-4c71-ac56-2abb664b899c","Указывается ссылка на документ, предварительно загруженный в хранилище файлов ФГИС ЕИАС.\nВ случае наличия дополнительных сведений информация по ним указывается в отдельных строках."]
[null,null,"О","3.2","нотариально заверенные копии правоустанавливающих документов на земельный участок","x","x","https://portal.eias.ru/Portal/DownloadPage.aspx?type=12&guid=7bf22bf7-ddc9-4c71-ac56-2abb664b899c"]
[null,null,"О","3.3","ситуационный план расположения объекта с привязкой к территории населенного пункта","x","x","https://portal.eias.ru/Portal/DownloadPage.aspx?type=12&guid=7bf22bf7-ddc9-4c71-ac56-2abb664b899c"]
[null,null,"О","3.4","топографическая карта участка в масштабе 1:500 (со всеми наземными и подземными коммуникациями и сооружениями), согласованная с эксплуатирующими организациями;","x","x","https://portal.eias.ru/Portal/DownloadPage.aspx?type=12&guid=7bf22bf7-ddc9-4c71-ac56-2abb664b899c"]
[null,null,"О","3.5","информация о сроках строительства (реконструкции) и ввода в эксплуатацию строящегося (реконструируемого) объекта;","x","x","https://portal.eias.ru/Portal/DownloadPage.aspx?type=12&guid=7bf22bf7-ddc9-4c71-ac56-2abb664b899c"]
[null,null,"О","3.6","баланс водоотведения подключаемого объекта в период использования максимальной величины мощности (нагрузки) с указанием объемов подключаемой нагрузки по целям использования, в том числе прием поверхностных сточных вод;","x","x","https://portal.eias.ru/Portal/DownloadPage.aspx?type=12&guid=7bf22bf7-ddc9-4c71-ac56-2abb664b899c"]
[null,null,"О","3.7","сведения о составе и свойствах сточных вод, намеченных к отведению в централизованную систему водоотведения;","x","x","https://portal.eias.ru/Portal/DownloadPage.aspx?type=12&guid=7bf22bf7-ddc9-4c71-ac56-2abb664b899c"]
[null,null,"О","3.8","свдения о назначении объекта, высоте и об этажности зданий, строений, сооружений.","x","x","https://portal.eias.ru/Portal/DownloadPage.aspx?type=12&guid=7bf22bf7-ddc9-4c71-ac56-2abb664b899c"]
[null,null,null,null,"Добавить сведения"]
[null,3,null,4,"Реквизиты НПА, регламентирующих порядок действий заявителя и регулируемой организации при подаче, приеме, обработке заявки о подключении к централизованной системе водоотведения (в том числе в форме электронного документа), принятии решения и информировании о принятом по результатам рассмотрения указанной заявки решении (возврат документов, прилагаемых к заявке о подключении к централизованной системе водоотведения, либо направление подписанного проекта договора о подключении к централизованной системе водоотведения), основания для отказа в принятии к рассмотрению документов, прилагаемых к заявлению о подключении к централизованной системе водоотведения, в подписании договора о подключении к централизованной системе водоотведения"]
[null,null,null,"4.1","наименование НПА",null,"Федеральный закон от07.12.2011г. № 416-ФЗ \"О водоснабжении и водоотведении\"","x","В колонке «Информация» указывается полное наименование и реквизиты НПА.\nВ случае наличия нескольких НПА каждое из них указывается в отдельной строке."]
[null,null,"О","4.2",{"$f":"E25","v":"наименование НПА"},"x","Постановление Правительства РФ от 29.07.2013г. № 644 \"Обутверждении правил холодного водоснабжения и водоотведения и о внесении изменений в некоторые акты Правительства РФ\"","x"]
[null,null,"О","4.3",{"$f":"E26","v":"наименование НПА"},"x","Постановление Правительства РФ от 13.02.2006г. № 83 №Об утверждении правил определения и предоставления технических условий подключения объекта капитального строительства к сетям инженерно-технического обеспечения и правил подключения объекта капитального строительства к сетям инженерно-технического обеспечения\"","x"]
[null,null,"О","4.4",{"$f":"E27","v":"наименование НПА"},"x","Постановление Правительства РФ от 29.07.2013г. № 645 \"Об утверждении типовых договоров в области холодного водоснабжения и водоотведения\"","x"]
[null,null,null,null,"Добавить сведения"]
[null,3,null,5,"Телефоны, адреса и график работы службы, ответственной за прием и обработку заявок о подключении к централизованной системе водоотведения"]
[null,null,null,"5.1","телефоны службы, ответственной за прием и обработку заявок о подключении к централизованной системе водоотведения"]
[null,null,null,"5.1.1","контактный телефон службы",null,"(8482) 772-525","x","Указывается номер контактного телефона службы, ответственной за прием и обработку заявок о подключении к централизованной системе водоотведения. \nВ случае наличия нескольких служб и (или) номеров телефонов, информация по каждому из них указывается в отдельной строке."]
[null,null,null,null,"Добавить сведения"]
[null,null,null,"5.2","адреса службы, ответственной за прием и обработку заявок о подключении к централизованной системе водоотведения"]
[null,null,null,"5.2.1","адрес службы",null,"445035, Самарская обл., г.о.Тольятти, ул.Комсомольская, д.92, Литера АА1","x","Указывается наименование субъекта Российской Федерации, муниципального района, города, иного населенного пункта, улицы, номер дома, при необходимости указывается корпус, строение, литера или дополнительная территория. Данные указываются согласно наименованиям адресных объектов в ФИАС.\nВ случае наличия нескольких служб и (или) адресов, информация по каждому из них указывается в отдельной строке."]
[null,null,null,null,"Добавить сведения"]
[null,null,null,"5.3","график работы службы, ответственной за прием и обработку заявок о подключении к централизованной системе водоотведения"]
[null,null,null,"5.3.1","график работы службы",null,"c 08:00 до 17:00","x","Указывается график работы службы, ответственной за прием и обработку заявок о подключении к централизованной системе водоотведения. \nВ случае наличия нескольких служб и (или) графиков работы, информация по каждому из них указывается в отдельной строке.",null,null,"c 08:00 до 17:00"]
[null,null,null,null,"Добавить сведения"]
[null,3,null,"6","Регламент подключения к централизованной системе водоотведения, утверждаемый регулируемой организацией, включающий сроки, состав и последовательность действий при осуществлении подключения к централизованной системе водоотведения, сведения о размере платы за услуги по подключению к централизованной системе водоотведения, информацию о месте нахождения и графике работы, справочных телефонах, адресе официального сайта регулируемой организации в сети «Интернет» и блок-схему, отражающую графическое изображение последовательности действий, осуществляемых при подключении к централизованной системе водоотведения"]
[null,null,null,"6.1","Регламент подключения (технологического присоединения) объектов капитального строительства к централизованным системам водоотведения АО \"ПО КХ г.о.Тольятти\"",null,"x","https://portal.eias.ru/Portal/DownloadPage.aspx?type=12&guid=732df9ad-77ef-4d73-a48f-0d65cedf979a","Указывается ссылка на документ, предварительно загруженный в хранилище файлов ФГИС ЕИАС.\nВ случае наличия дополнительных сведений информация по ним указывается в отдельных строках."]
[null,null,"О","6.2","Блок-схема последовательности действий, осуществляемых при подключении к централизованным системам водоотведения","x","x","https://portal.eias.ru/Portal/DownloadPage.aspx?type=12&guid=0023d973-6127-4c86-9160-d4b8c6e3673d"]
[null,null,null,null,"Добавить сведения"]
[]
[null,null,null,1,"Информация раскрывается в случае, если регулируемая организация осуществляет услуги по подключению (технологическому присоединению) к централизованной системе водоотведения."]

{"sheet":"Форма 1.0.2","index":18,"n_rows":15,"n_cols":13,"rows_kept":15,"cut":false,"hidden":true,"merged":[[4,3,4,9],[14,4,14,9],[11,10,12,10],[7,3,7,9],[8,4,8,5],[7,10,9,10],[8,6,8,9],[8,3,9,3]]}
[]
[]
[]
[]
[null,null,null,"Форма 1.0.2 Информация о публикации в печатных изданиях 2"]
[]
[]
[null,null,null,"Параметры формы",null,null,null,null,null,null,"Описание параметров формы"]
[null,null,null,"№ п/п","Форма публикации",null,"Официальное печатное издание"]
[null,null,null,null,"Номер","Наименование","Наименование","Номер","Дата выпуска","Ссылка на документ"]
[null,null,null,"1","2","3","4","5","6","7","8"]
["3","",null,"1",null,null,null,null,null,null,"В колонке «Дата выпуска» дата выпуска печатного издания указывается в виде «ДД.ММ.ГГГГ».\nВ колонке «Ссылка на документ» указывается ссылка на отсканированную копию печатного издания, предварительно загруженную в хранилище федеральной государственной информационной системы «Единая информационно-аналитическая система «Федеральный орган регулирования - региональные органы регулирования - субъекты регулирования» (далее – ФГИС ЕИАС), с опубликованной информацией.\nВ случае публикации информации в нескольких печатных изданиях информация по каждому из них указывается в отдельной строке.",null,{"$f":"IF(ISERROR(INDEX(kind_of_nameforms,MATCH(E12,kind_of_forms,0),1)),\"\",INDEX(kind_of_nameforms,MATCH(E12,kind_of_forms,0),1))","v":""}]
[null,null,null,null,"Добавить строку"]
[]
[null,null,null,null,"2 Размещается информация по каждой из форм раскрытия, данные в которой относятся к муниципальному образованию, в котором отсутствует доступ в сеть «Интернет»."]

{"sheet":"Сведения об изменении","index":19,"n_rows":15,"n_cols":5,"rows_kept":15,"cut":false,"hidden":true,"merged":[[6,3,6,4],[14,3,14,4]]}
[]
[]
[]
[]
[]
[]
[null,null,null,"Сведения об изменениях в первоначально опубликованной информации*"]
[]
[null,null,null,"№ п/п","Сведения"]
[null,null,null,"1","2"]
[null,null,null,0]
[null,null,null,1]
[null,null,null,null,"Добавить"]
[]
[null,null,null,"* Лист заполняется в случае, если на Титульном листе в поле \"Тип отчета\" выбрано значение «Изменения в раскрытой ранее информации»."]

{"sheet":"Комментарии","index":20,"n_rows":12,"n_cols":5,"rows_kept":12,"cut":false,"hidden":false,"merged":[[6,3,6,4]]}
[]
[]
[]
[]
[]
[]
[null,null,null,"Комментарии"]
[]
[null,null,null,"№ п/п","Комментарий"]
[null,null,null,"1","2"]
[null,null,null,0]
[null,null,null,null,"Добавить"]

{"sheet":"Проверка","index":21,"n_rows":4,"n_cols":4,"rows_kept":4,"cut":false,"hidden":false,"merged":[[1,1,1,3]]}
[]
[null,"Результат проверки"]
[]
[null,"Ссылка","Причина","Статус"]

{"sheet":"modListTempFilter","index":22,"n_rows":0,"n_cols":0,"rows_kept":0,"cut":false,"hidden":true,"merged":[]}

{"sheet":"modCheckCyan","index":23,"n_rows":143,"n_cols":1,"rows_kept":143,"cut":false,"hidden":true,"merged":[]}
[{"$f":"IF('Форма 3.2 | Т-ВО'!$O$22=\"\",1,0)","v":0}]
[{"$f":"IF('Форма 3.2 | Т-ВО'!$R$23=\"\",1,0)","v":0}]
[{"$f":"IF('Форма 3.2 | Т-ВО'!$T$23=\"\",1,0)","v":0}]
[{"$f":"IF('Форма 3.2 | Т-ВО'!$S$23=\"\",1,0)","v":0}]
[{"$f":"IF('Форма 3.2 | Т-ВО'!$U$23=\"\",1,0)","v":0}]
[{"$f":"IF('Форма 3.2 | Т-транс'!$O$22=\"\",1,0)","v":1}]
[{"$f":"IF('Форма 3.2 | Т-транс'!$R$23=\"\",1,0)","v":1}]
[{"$f":"IF('Форма 3.2 | Т-транс'!$T$23=\"\",1,0)","v":1}]
[{"$f":"IF('Форма 3.2 | Т-транс'!$S$23=\"\",1,0)","v":0}]
[{"$f":"IF('Форма 3.2 | Т-транс'!$U$23=\"\",1,0)","v":0}]
[{"$f":"IF('Форма 3.4 | Т-подкл(инд)'!$M$22=\"\",1,0)","v":1}]
[{"$f":"IF('Форма 3.4 | Т-подкл(инд)'!$Q$22=\"\",1,0)","v":1}]
[{"$f":"IF('Форма 3.4 | Т-подкл(инд)'!$AD$22=\"\",1,0)","v":1}]
[{"$f":"IF('Форма 3.4 | Т-подкл(инд)'!$AE$22=\"\",1,0)","v":1}]
[{"$f":"IF('Форма 3.4 | Т-подкл(инд)'!$AF$22=\"\",1,0)","v":1}]
[{"$f":"IF('Форма 3.4 | Т-подкл(инд)'!$AG$22=\"\",1,0)","v":1}]
[{"$f":"IF('Форма 3.4 | Т-подкл(инд)'!$AH$22=\"\",1,0)","v":1}]
[{"$f":"IF('Форма 3.4 | Т-подкл(инд)'!$AJ$22=\"\",1,0)","v":1}]
[{"$f":"IF('Форма 3.4 | Т-подкл(инд)'!$N$22=\"\",1,0)","v":0}]
[{"$f":"IF('Форма 3.4 | Т-подкл(инд)'!$R$22=\"\",1,0)","v":0}]
[{"$f":"IF('Форма 3.4 | Т-подкл(инд)'!$V$22=\"\",1,0)","v":0}]
[{"$f":"IF('Форма 3.4 | Т-подкл(инд)'!$Z$22=\"\",1,0)","v":0}]
[{"$f":"IF('Форма 3.4 | Т-подкл(инд)'!$AI$22=\"\",1,0)","v":0}]
[{"$f":"IF('Форма 3.4 | Т-подкл(инд)'!$AK$22=\"\",1,0)","v":0}]
[{"$f":"IF('Форма 3.4 | Т-подкл'!$P$22=\"\",1,0)","v":1}]
[{"$f":"IF('Форма 3.4 | Т-подкл'!$AC$22=\"\",1,0)","v":1}]
[{"$f":"IF('Форма 3.4 | Т-подкл'!$AD$22=\"\",1,0)","v":1}]
[{"$f":"IF('Форма 3.4 | Т-подкл'!$AE$22=\"\",1,0)","v":1}]
[{"$f":"IF('Форма 3.4 | Т-подкл'!$AF$22=\"\",1,0)","v":1}]
[{"$f":"IF('Форма 3.4 | Т-подкл'!$AG$22=\"\",1,0)","v":1}]
[{"$f":"IF('Форма 3.4 | Т-подкл'!$AI$22=\"\",1,0)","v":1}]
[{"$f":"IF('Форма 3.4 | Т-подкл'!$Q$22=\"\",1,0)","v":0}]
[{"$f":"IF('Форма 3.4 | Т-подкл'!$U$22=\"\",1,0)","v":0}]
[{"$f":"IF('Форма 3.4 | Т-подкл'!$Y$22=\"\",1,0)","v":0}]
[{"$f":"IF('Форма 3.4 | Т-подкл'!$AH$22=\"\",1,0)","v":0}]
[{"$f":"IF('Форма 3.4 | Т-подкл'!$AJ$22=\"\",1,0)","v":0}]
[{"$f":"IF('Форма 3.9'!$E$12=\"\",1,0)","v":0}]
[{"$f":"IF('Форма 3.9'!$F$12=\"\",1,0)","v":0}]
[{"$f":"IF('Форма 3.10'!$G$11=\"\",1,0)","v":0}]
[{"$f":"IF('Форма 3.10'!$G$12=\"\",1,0)","v":0}]
[{"$f":"IF('Форма 3.10'!$H$12=\"\",1,0)","v":0}]
[{"$f":"IF('Форма 3.10'!$H$13=\"\",1,0)","v":0}]
[{"$f":"IF('Форма 3.10'!$E$15=\"\",1,0)","v":0}]
[{"$f":"IF('Форма 3.10'!$H$15=\"\",1,0)","v":0}]
[{"$f":"IF('Форма 3.10'!$G$25=\"\",1,0)","v":0}]
[{"$f":"IF('Форма 3.10'!$G$32=\"\",1,0)","v":0}]
[{"$f":"IF('Форма 3.10'!$G$35=\"\",1,0)","v":0}]
[{"$f":"IF('Форма 3.10'!$E$41=\"\",1,0)","v":0}]
[{"$f":"IF('Форма 3.10'!$H$41=\"\",1,0)","v":0}]
[{"$f":"IF('Форма 3.10'!$G$38=\"\",1,0)","v":0}]
[{"$f":"IF('Форма 1.0.2'!$E$12=\"\",1,0)","v":1}]
[{"$f":"IF('Форма 1.0.2'!$F$12=\"\",1,0)","v":1}]
[{"$f":"IF('Форма 1.0.2'!$G$12=\"\",1,0)","v":1}]
[{"$f":"IF('Форма 1.0.2'!$H$12=\"\",1,0)","v":1}]
[{"$f":"IF('Форма 1.0.2'!$I$12=\"\",1,0)","v":1}]
[{"$f":"IF('Форма 1.0.2'!$J$12=\"\",1,0)","v":1}]
[{"$f":"IF('Сведения об изменении'!$E$12=\"\",1,0)","v":1}]
[{"$f":"IF('Форма 3.9'!$F$15=\"\",1,0)","v":0}]
[{"$f":"IF('Форма 3.9'!$E$15=\"\",1,0)","v":0}]
[{"$f":"IF('Перечень тарифов'!$E$21=\"\",1,0)","v":0}]
[{"$f":"IF('Перечень тарифов'!$F$21=\"\",1,0)","v":0}]
[{"$f":"IF('Перечень тарифов'!$G$21=\"\",1,0)","v":0}]
[{"$f":"IF('Перечень тарифов'!$K$21=\"\",1,0)","v":0}]
[{"$f":"IF('Перечень тарифов'!$O$21=\"\",1,0)","v":0}]
[{"$f":"IF('Перечень тарифов'!$R$21=\"\",1,0)","v":0}]
[{"$f":"IF('Перечень тарифов'!$R$22=\"\",1,0)","v":0}]
[{"$f":"IF(Территории!$E$12=\"\",1,0)","v":0}]
[{"$f":"IF('Форма 3.2 | Т-ВО'!$O$23=\"\",1,0)","v":0}]
[{"$f":"IF('Форма 3.2 | Т-ВО'!$O$30=\"\",1,0)","v":0}]
[{"$f":"IF('Форма 3.2 | Т-ВО'!$O$31=\"\",1,0)","v":0}]
[{"$f":"IF('Форма 3.2 | Т-ВО'!$R$31=\"\",1,0)","v":0}]
[{"$f":"IF('Форма 3.2 | Т-ВО'!$T$31=\"\",1,0)","v":0}]
[{"$f":"IF('Форма 3.2 | Т-ВО'!$S$31=\"\",1,0)","v":0}]
[{"$f":"IF('Форма 3.2 | Т-ВО'!$U$31=\"\",1,0)","v":0}]
[{"$f":"IF('Форма 3.2 | Т-ВО'!$Y$23=\"\",1,0)","v":0}]
[{"$f":"IF('Форма 3.2 | Т-ВО'!$AA$23=\"\",1,0)","v":0}]
[{"$f":"IF('Форма 3.2 | Т-ВО'!$V$23=\"\",1,0)","v":0}]
[{"$f":"IF('Форма 3.2 | Т-ВО'!$Z$23=\"\",1,0)","v":0}]
[{"$f":"IF('Форма 3.2 | Т-ВО'!$AB$23=\"\",1,0)","v":0}]
[{"$f":"IF('Форма 3.2 | Т-ВО'!$Y$31=\"\",1,0)","v":0}]
[{"$f":"IF('Форма 3.2 | Т-ВО'!$AA$31=\"\",1,0)","v":0}]
[{"$f":"IF('Форма 3.2 | Т-ВО'!$V$31=\"\",1,0)","v":0}]
[{"$f":"IF('Форма 3.2 | Т-ВО'!$Z$31=\"\",1,0)","v":0}]
[{"$f":"IF('Форма 3.2 | Т-ВО'!$AB$31=\"\",1,0)","v":0}]
[{"$f":"IF('Форма 3.2 | Т-ВО'!$AF$31=\"\",1,0)","v":0}]
[{"$f":"IF('Форма 3.2 | Т-ВО'!$AH$31=\"\",1,0)","v":0}]
[{"$f":"IF('Форма 3.2 | Т-ВО'!$AC$31=\"\",1,0)","v":0}]
[{"$f":"IF('Форма 3.2 | Т-ВО'!$AG$31=\"\",1,0)","v":0}]
[{"$f":"IF('Форма 3.2 | Т-ВО'!$AI$31=\"\",1,0)","v":0}]
[{"$f":"IF('Форма 3.2 | Т-ВО'!$AF$23=\"\",1,0)","v":0}]
[{"$f":"IF('Форма 3.2 | Т-ВО'!$AH$23=\"\",1,0)","v":0}]
[{"$f":"IF('Форма 3.2 | Т-ВО'!$AC$23=\"\",1,0)","v":0}]
[{"$f":"IF('Форма 3.2 | Т-ВО'!$AG$23=\"\",1,0)","v":0}]
[{"$f":"IF('Форма 3.2 | Т-ВО'!$AI$23=\"\",1,0)","v":0}]
[{"$f":"IF('Форма 3.2 | Т-ВО'!$AM$23=\"\",1,0)","v":0}]
[{"$f":"IF('Форма 3.2 | Т-ВО'!$AO$23=\"\",1,0)","v":0}]
[{"$f":"IF('Форма 3.2 | Т-ВО'!$AJ$23=\"\",1,0)","v":0}]
[{"$f":"IF('Форма 3.2 | Т-ВО'!$AN$23=\"\",1,0)","v":0}]
[{"$f":"IF('Форма 3.2 | Т-ВО'!$AP$23=\"\",1,0)","v":0}]
[{"$f":"IF('Форма 3.2 | Т-ВО'!$AM$31=\"\",1,0)","v":0}]
[{"$f":"IF('Форма 3.2 | Т-ВО'!$AO$31=\"\",1,0)","v":0}]
[{"$f":"IF('Форма 3.2 | Т-ВО'!$AJ$31=\"\",1,0)","v":0}]
[{"$f":"IF('Форма 3.2 | Т-ВО'!$AN$31=\"\",1,0)","v":0}]
[{"$f":"IF('Форма 3.2 | Т-ВО'!$AP$31=\"\",1,0)","v":0}]
[{"$f":"IF('Форма 3.2 | Т-ВО'!$AT$31=\"\",1,0)","v":0}]
[{"$f":"IF('Форма 3.2 | Т-ВО'!$AV$31=\"\",1,0)","v":0}]
[{"$f":"IF('Форма 3.2 | Т-ВО'!$AQ$31=\"\",1,0)","v":0}]
[{"$f":"IF('Форма 3.2 | Т-ВО'!$AU$31=\"\",1,0)","v":0}]
[{"$f":"IF('Форма 3.2 | Т-ВО'!$AW$31=\"\",1,0)","v":0}]
[{"$f":"IF('Форма 3.2 | Т-ВО'!$AT$23=\"\",1,0)","v":0}]
[{"$f":"IF('Форма 3.2 | Т-ВО'!$AV$23=\"\",1,0)","v":0}]
[{"$f":"IF('Форма 3.2 | Т-ВО'!$AQ$23=\"\",1,0)","v":0}]
[{"$f":"IF('Форма 3.2 | Т-ВО'!$AU$23=\"\",1,0)","v":0}]
[{"$f":"IF('Форма 3.2 | Т-ВО'!$AW$23=\"\",1,0)","v":0}]
[{"$f":"IF('Форма 3.2 | Т-ВО'!$BA$23=\"\",1,0)","v":0}]
[{"$f":"IF('Форма 3.2 | Т-ВО'!$BC$23=\"\",1,0)","v":0}]
[{"$f":"IF('Форма 3.2 | Т-ВО'!$AX$23=\"\",1,0)","v":0}]
[{"$f":"IF('Форма 3.2 | Т-ВО'!$BB$23=\"\",1,0)","v":0}]
[{"$f":"IF('Форма 3.2 | Т-ВО'!$BD$23=\"\",1,0)","v":0}]
[{"$f":"IF('Форма 3.2 | Т-ВО'!$BA$31=\"\",1,0)","v":0}]
[{"$f":"IF('Форма 3.2 | Т-ВО'!$BC$31=\"\",1,0)","v":0}]
[{"$f":"IF('Форма 3.2 | Т-ВО'!$AX$31=\"\",1,0)","v":0}]
[{"$f":"IF('Форма 3.2 | Т-ВО'!$BB$31=\"\",1,0)","v":0}]
[{"$f":"IF('Форма 3.2 | Т-ВО'!$BD$31=\"\",1,0)","v":0}]
[{"$f":"IF('Форма 3.10'!$G$26=\"\",1,0)","v":0}]
[{"$f":"IF('Форма 3.10'!$G$27=\"\",1,0)","v":0}]
[{"$f":"IF('Форма 3.10'!$G$28=\"\",1,0)","v":0}]
[{"$f":"IF('Форма 3.10'!$E$16=\"\",1,0)","v":0}]
[{"$f":"IF('Форма 3.10'!$H$16=\"\",1,0)","v":0}]
[{"$f":"IF('Форма 3.10'!$E$17=\"\",1,0)","v":0}]
[{"$f":"IF('Форма 3.10'!$H$17=\"\",1,0)","v":0}]
[{"$f":"IF('Форма 3.10'!$E$18=\"\",1,0)","v":0}]
[{"$f":"IF('Форма 3.10'!$H$18=\"\",1,0)","v":0}]
[{"$f":"IF('Форма 3.10'!$E$19=\"\",1,0)","v":0}]
[{"$f":"IF('Форма 3.10'!$H$19=\"\",1,0)","v":0}]
[{"$f":"IF('Форма 3.10'!$E$20=\"\",1,0)","v":0}]
[{"$f":"IF('Форма 3.10'!$H$20=\"\",1,0)","v":0}]
[{"$f":"IF('Форма 3.10'!$E$21=\"\",1,0)","v":0}]
[{"$f":"IF('Форма 3.10'!$H$21=\"\",1,0)","v":0}]
[{"$f":"IF('Форма 3.10'!$E$22=\"\",1,0)","v":0}]
[{"$f":"IF('Форма 3.10'!$H$22=\"\",1,0)","v":0}]
[{"$f":"IF('Форма 3.10'!$E$42=\"\",1,0)","v":0}]
[{"$f":"IF('Форма 3.10'!$H$42=\"\",1,0)","v":0}]

{"sheet":"REESTR_LINK","index":24,"n_rows":3,"n_cols":3,"rows_kept":3,"cut":false,"hidden":true,"merged":[]}
["ID","LINK_NAME","REGION"]
[4189678,"https://portal.eias.ru/Portal/DownloadPage.aspx?type=12&guid=????????-????-????-????-????????????","ALL"]
[4190415,"https://eias.fstrf.ru/disclo/get_file?p_guid=????????-????-????-????-????????????","ALL"]

{"sheet":"REESTR_DS","index":25,"n_rows":6,"n_cols":2,"rows_kept":6,"cut":false,"hidden":true,"merged":[]}
[]
[]
[null,"городской округ Тольятти, городской округ Тольятти (36740000);"]
[null,"территория 2"]
[null,"территория 3"]
[null,"территория 4"]

{"sheet":"modHTTP","index":26,"n_rows":0,"n_cols":0,"rows_kept":0,"cut":false,"hidden":true,"merged":[]}

{"sheet":"modfrmRezimChoose","index":27,"n_rows":0,"n_cols":0,"rows_kept":0,"cut":false,"hidden":true,"merged":[]}

{"sheet":"modSheetMain","index":28,"n_rows":1,"n_cols":2,"rows_kept":1,"cut":false,"hidden":true,"merged":[]}
["Форма","Листы"]

{"sheet":"REESTR_VT","index":29,"n_rows":5,"n_cols":2,"rows_kept":5,"cut":false,"hidden":true,"merged":[]}
["ID_TARIFF_NAME","TARIFF_NAME"]
[4213771,"Тариф на подключение (технологическое присоединение) к централизованной системе водоотведения в индивидуальном порядке"]
[4213772,"Тариф на подключение (технологическое присоединение) к централизованной системе водоотведения"]
[4213773,"Тариф на транспортировку сточных вод"]
[4213774,"Тариф на водоотведение"]

{"sheet":"REESTR_VED","index":30,"n_rows":4,"n_cols":2,"rows_kept":4,"cut":false,"hidden":true,"merged":[]}
["ID_TARIFF_NAME","VED_NAME"]
[4189714,"Водоотведение"]
[4189713,"Транспортировка"]
[4189712,"Подключение (технологическое присоединение) к централизованной системе водоотведения"]

{"sheet":"modfrmReestrObj","index":31,"n_rows":0,"n_cols":0,"rows_kept":0,"cut":false,"hidden":true,"merged":[]}

{"sheet":"AllSheetsInThisWorkbook","index":32,"n_rows":42,"n_cols":2,"rows_kept":42,"cut":false,"hidden":true,"merged":[]}
["Расчетные листы","Скрытые листы"]
["Instruction","modList00"]
["modUpdTemplLogger","modListTempFilter"]
["List00","modCheckCyan"]
["List01","REESTR_LINK"]
["List02","REESTR_DS"]
["List05_1","modHTTP"]
["List06_1","modfrmRezimChoose"]
["List05_2","modSheetMain"]
["List06_2","REESTR_VT"]
["List05_9","REESTR_VED"]
["List06_9","modfrmReestrObj"]
["List05_10","AllSheetsInThisWorkbook"]
["List06_10","TSH_et_union_vert"]
["List05_11","modInstruction"]
["List11","modRegion"]
["List12","modReestr"]
["List03","modfrmReestr"]
["List07","modUpdTemplMain"]
["ListComm","TSH_REESTR_ORG"]
["ListCheck","modClassifierValidate"]
[null,"modProv"]
[null,"modHyp"]
[null,"modServiceModule"]
[null,"modList01"]
[null,"modList02"]
[null,"modList03"]
[null,"TSH_et_union_hor"]
[null,"TSH_REESTR_MO_FILTER"]
[null,"TSH_REESTR_MO"]
[null,"TEHSHEET"]
[null,"modInfo"]
[null,"modList05"]
[null,"modList06"]
[null,"modList07"]
[null,"modList11"]
[null,"modList12"]
[null,"modfrmDateChoose"]
[null,"modComm"]
[null,"modThisWorkbook"]
[null,"modfrmReestrMR"]
[null,"modfrmCheckUpdates"]

{"sheet":"et_union_vert","index":33,"n_rows":0,"n_cols":0,"rows_kept":0,"cut":false,"hidden":true,"merged":[]}

{"sheet":"modInstruction","index":34,"n_rows":0,"n_cols":0,"rows_kept":0,"cut":false,"hidden":true,"merged":[]}

{"sheet":"modRegion","index":35,"n_rows":0,"n_cols":0,"rows_kept":0,"cut":false,"hidden":true,"merged":[]}

{"sheet":"modReestr","index":36,"n_rows":0,"n_cols":0,"rows_kept":0,"cut":false,"hidden":true,"merged":[]}

{"sheet":"modfrmReestr","index":37,"n_rows":0,"n_cols":0,"rows_kept":0,"cut":false,"hidden":true,"merged":[]}

{"sheet":"modUpdTemplMain","index":38,"n_rows":0,"n_cols":0,"rows_kept":0,"cut":false,"hidden":true,"merged":[]}

{"sheet":"REESTR_ORG","index":39,"n_rows":122,"n_cols":10,"rows_kept":122,"cut":false,"hidden":true,"merged":[]}
["№","REGION_ID","REGION_NAME","RST_ORG_ID","ORG_NAME","INN_NAME","KPP_NAME","ORG_START_DATE","ORG_END_DATE"]
[1,"2638","Самарская область","26322473","АО \"Арконик СМЗ\"","6310000160","631050001",null,null,"VO"]
[2,"2638","Самарская область","30385470","АО \"Водные технологии\"","3328462474","631401001",null,null,"VO"]
[3,"2638","Самарская область","26774461","АО \"Водоканал\"","6330042722","633001001","30-11-2010 00:00:00","31-12-2017 00:00:00","VO"]
[4,"2638","Самарская область","26783848","АО \"Водоканал\"","6377011416","637701001","16-03-2010 00:00:00",null,"VO"]
[5,"2638","Самарская область","30354412","АО \"Главное управление жилищно-коммунального хозяйства\"","5116000922","631743001",null,null,"VO"]
[6,"2638","Самарская область","26485575","АО \"КНПЗ\"","6314006396","997250001","15-10-2002 00:00:00",null,"VO"]
[7,"2638","Самарская область","26485577","АО \"Международный аэропорт \"Курумоч\"","6313036408","631050001",null,null,"VO"]
[8,"2638","Самарская область","26485720","АО \"ННК\"","6330017980","631050001",null,null,"VO"]
[9,"2638","Самарская область","30918061","АО \"Особая экономическая зона промышленно-производственного типа \"Тольятти\"","6321345424","638201001",null,null,"VO"]
[10,"2638","Самарская область","28047458","АО \"Тольяттисинтез\"","6323106975","632401001",null,null,"VO"]
[11,"2638","Самарская область","26485289","АО \"Транснефть - Дружба\"","3235002178","631702001",null,null,"VO"]
[12,"2638","Самарская область","26485550","АО “Волгабурмаш”","6314041136","631401001",null,null,"VO"]
[13,"2638","Самарская область","26485717","АО “Новокуйбышевский нефтеперерабатывающий завод”","6330000553","997150001","15-10-2002 00:00:00",null,"VO"]
[14,"2638","Самарская область","26485308","АО “РЭУ” “Самарский”","7714783092","631143001",null,null,"VO"]
[15,"2638","Самарская область","30398817","АО «ПО КХ г.о. Тольятти»","6324014124","632401001",null,null,"VO"]
[16,"2638","Самарская область","26485294","АО «Транснефть-Приволга» (филиал РНУ)","6317024749","631702003",null,null,"VO"]
[17,"2638","Самарская область","31014933","ГАУ «ЦИК СО»","6315856452","631501001",null,null,"VO"]
[18,"2638","Самарская область","30403609","ЗАО \"Нефтефлот\"","6314010931","631401001",null,null,"VO"]
[19,"2638","Самарская область","28461911","ЗАО \"СВ-Поволжское\"","6322025804","638201001",null,null,"VO"]
[20,"2638","Самарская область","26798257","ЗАО \"Энергетик\"","6379000459","635701001",null,null,"VO"]
[21,"2638","Самарская область","26774814","ЗАО \"Энергетика и связь строительства","6320005633","632401001","16-08-2002 00:00:00",null,"VO"]
[22,"2638","Самарская область","26485546","ЗАО “Самарский завод Нефтемаш”","6314007537","631401001",null,null,"VO"]
[23,"2638","Самарская область","26485128","ЗАО “Северный ключ”","6379000674","635701001",null,null,"VO"]
[24,"2638","Самарская область","28237568","ИП Гращенков В.В.","637200358828","отсутствует",null,null,"VO"]
[25,"2638","Самарская область","28546014","ИП Самородов С.Ф.","637101834265","отсутствует",null,null,"VO"]
[26,"2638","Самарская область","26812367","Куйбышевская дирекция  по тепловодоснабжению структурное подразделение Центральной дирекции по тепловодоснабжению филиала ПАО «РЖД»","7708503727","631145034",null,null,"VO"]
[27,"2638","Самарская область","26641429","МКП “Волжское”","6325053743","632501001","01-01-2011 00:00:00",null,"VO"]
[28,"2638","Самарская область","28982060","МП \"УК ЖКХ\" муниципального района Шигонский","6325042903","632501001",null,null,"VO"]
[29,"2638","Самарская область","26485278","МП “ПО ЖКХ” Клявлинского района","6373002805","637301001",null,null,"VO"]
[30,"2638","Самарская область","30354190","МП г. Самары \"Самараводоканал\"","6316029945","631801001",null,null,"VO"]
[31,"2638","Самарская область","28875201","МП городского округа Самара \"Инженерные системы\"","6315946321","631901001",null,null,"VO"]
[32,"2638","Самарская область","27271268","МП м.р. Ставропольский \"СтавропольРесурсСервис\"","6382061363","638201001","18-04-2011 00:00:00",null,"VO"]
[33,"2638","Самарская область","27567358","МУП \"Балашейское ЖКХ\"","6325056600","632501001",null,null,"VO"]
[34,"2638","Самарская область","30894268","МУП \"Вода-16\"","6330074114","633001001",null,null,"VO"]
[35,"2638","Самарская область","28869900","МУП \"Водоканал Подстепки\"","6382067750","638201001",null,null,"VO"]
[36,"2638","Самарская область","27540133","МУП \"Водоканал\"","6330043412","633001001","01-02-2011 00:00:00",null,"VO"]
[37,"2638","Самарская область","27973110","МУП \"ВодоканалСервис\"","6330052128","633001001","01-05-2012 00:00:00",null,"VO"]
[38,"2638","Самарская область","26374844","МУП \"Водопроводно-канализационное хозяйство","6357020250","635701001",null,null,"VO"]
[39,"2638","Самарская область","26777219","МУП \"Водоснабжение\"","6375193506","637501001",null,null,"VO"]
[40,"2638","Самарская область","28823110","МУП \"Волга\"","6330061877","633001001",null,null,"VO"]
[41,"2638","Самарская область","28155005","МУП \"Жилищно-комунальная служба муниципального района Алексеевский Самарской области\"","6377015989","637701001",null,null,"VO"]
[42,"2638","Самарская область","30946548","МУП \"Жилкомхоз\"","6376020626","637601001",null,null,"VO"]
[43,"2638","Самарская область","30949553","МУП \"Каскад\"","6330077637","633001001",null,null,"VO"]
[44,"2638","Самарская область","27400625","МУП \"Коммунальщик\"","6330048844","633001001","11-08-2011 00:00:00","01-01-2018 00:00:00","VO"]
[45,"2638","Самарская область","30391476","МУП \"Обшаровская коммунальная служба\"","6330068953","633001001",null,null,"VO"]
[46,"2638","Самарская область","28545946","МУП \"Петра Дубрава\"","6330061820","633001001",null,null,"VO"]
[47,"2638","Самарская область","28819333","МУП \"Прогресс\"","6330062126","633001001",null,null,"VO"]
[48,"2638","Самарская область","26381101","МУП \"Производственное объединение жилищно-коммунального хозяйства муниципального оайона Кошкинский","6374000825","637401001",null,null,"VO"]
[49,"2638","Самарская область","27567296","МУП \"Смышляевское\"","6367057958","636701001",null,null,"VO"]
[50,"2638","Самарская область","29646308","МУП \"Тепло - 11\"","6330048851","633001001",null,"01-01-2017 00:00:00","VO"]
[51,"2638","Самарская область","28817364","МУП \"Юбилейный\" Волжского района","6330061860","633001001",null,null,"VO"]
[52,"2638","Самарская область","26485191","МУП “Волжское ЖКХ”","6376002176","637601001",null,null,"VO"]
[53,"2638","Самарская область","26485216","МУП “ЖИЛКОМСЕРВИС”","6376017704","637601001",null,null,"VO"]
[54,"2638","Самарская область","26485135","МУП “ЖКХ Пестравского района”","6378000209","637501001",null,null,"VO"]
[55,"2638","Самарская область","26485224","МУП “КОММУНАЛЬНИК”","6376016605","637601001",null,null,"VO"]
[56,"2638","Самарская область","26485237","МУП “МИРНЕНСКОЕ ЖКХ”","6376003719","637601001",null,null,"VO"]
[57,"2638","Самарская область","26485110","МУП “Райжилкомхоз Сызранского района”","6325043985","632501001","30-05-2007 00:00:00",null,"VO"]
[58,"2638","Самарская область","28534239","МУП «Волжское ЖКХ»","6330061891","633001001",null,null,"VO"]
[59,"2638","Самарская область","28535855","МУП «Воскресенское»","6330062020","633001001",null,null,"VO"]
[60,"2638","Самарская область","28534882","МУП «Подстепновка»","6330060947","633001001",null,null,"VO"]
[61,"2638","Самарская область","26485771","МУП Алексеевский комбинат коммунальных предприятий и благоустройства","6350000400","635001001",null,null,"VO"]
[62,"2638","Самарская область","26485795","МУП Большеглушицкого района Самарской области “ЖЭК № 1”","6364003023","636401001",null,null,"VO"]
[63,"2638","Самарская область","26485797","МУП Большеглушицкого района Самарской области ПОЖКХ","6364000199","636401001",null,null,"VO"]
[64,"2638","Самарская область","28869887","МУП ЖКХ \"Коммунальщик\"","6382067630","638201001",null,null,"VO"]
[65,"2638","Самарская область","26485318","МУП ЖКХ “Малышевка”","6371004885","637101001",null,null,"VO"]
[66,"2638","Самарская область","26485226","МУП КРАСНОЯРСКОЕ ЖКХ","6376002095","637601001",null,null,"VO"]
[67,"2638","Самарская область","26485100","МУП Усольское ЖКХ","6387003855","638701001",null,null,"VO"]
[68,"2638","Самарская область","28974646","МУП Чистый поселок","6330053474","633001001",null,null,"VO"]
[69,"2638","Самарская область","26485769","МУП г.о. Октябрьск “Жилищное управление”","6325037090","632501001",null,null,"VO"]
[70,"2638","Самарская область","26485131","МУПП ЖКХ Похвистневского района","6379000089","635701001",null,null,"VO"]
[71,"2638","Самарская область","28874521","Муниципальное унитарное предприятие жилищно-коммунального хозяйства сельского поселения Курумоч","6330063874","633001001",null,null,"VO"]
[72,"2638","Самарская область","26374826","Новокуйбышевский МУП \"Водоканал\"","6330002381","633001001",null,null,"VO"]
[73,"2638","Самарская область","26781302","ОАО \"КуйбышевАзот\"","6320005915","997350001","14-12-1992 00:00:00",null,"VO"]
[74,"2638","Самарская область","26381078","ОАО \"Новокуйбышевские очистные сооружения\"","6330024522","633001001",null,null,"VO"]
[75,"2638","Самарская область","26798861","ОАО \"Тольяттиазот\"","6320004728","997350001",null,null,"VO"]
[76,"2638","Самарская область","26381116","ОАО \"Тольяттинская птицефабрика\"","6382000434","638201001",null,null,"VO"]
[77,"2638","Самарская область","26485395","ОАО “ТЕВИС”","6320000561","632001001",null,null,"VO"]
[78,"2638","Самарская область","27675710","ООО \"АВТОГРАД-ВОДОКАНАЛ\"","6321280368","632101001",null,null,"VO"]
[79,"2638","Самарская область","28145005","ООО \"Аква-Строй\"","6313539031","613301001",null,null,"VO"]
[80,"2638","Самарская область","26374836","ООО \"Алакаевское ЖКХ\"","6350010983","635001001","10-01-2007 00:00:00",null,"VO"]
[81,"2638","Самарская область","26322451","ООО \"БИАКСПЛЕН\"","5244013331","633043001",null,null,"VO"]
[82,"2638","Самарская область","30924132","ООО \"Водеко\"","6312135727","631201001",null,null,"VO"]
[83,"2638","Самарская область","30933675","ООО \"Водоканал\"","6330076954","633001001",null,null,"VO"]
[84,"2638","Самарская область","31213195","ООО \"Волжский магистральный коллектор\"","6350025355","635001001",null,null,"VO"]
[85,"2638","Самарская область","27633259","ООО \"Жилкомсервис\"","6372018947","637201001",null,"01-01-2018 00:00:00","VO"]
[86,"2638","Самарская область","27883109","ООО \"Комфорт Дом\"","6324016308","632401001",null,null,"VO"]
[87,"2638","Самарская область","26805950","ООО \"МНСК\"","6350009547","636701001",null,null,"VO"]
[88,"2638","Самарская область","26779428","ООО \"Резонанс\"","6362015023","636201001","18-02-2009 00:00:00",null,"VO"]
[89,"2638","Самарская область","26801687","ООО \"Родник\"","6369012230","636901001","04-06-2009 00:00:00",null,"VO"]
[90,"2638","Самарская область","26485397","ООО \"СИБУР Тольятти\"","6323049893","631050001","14-05-1999 00:00:00",null,"VO"]
[91,"2638","Самарская область","28262841","ООО \"СПЕЦАВТОМАТИКА\"","6323074392","632401001",null,null,"VO"]
[92,"2638","Самарская область","28262360","ООО \"СамРЭК-Эксплуатация\"","6315648332","631201001",null,null,"VO"]
[93,"2638","Самарская область","27945272","ООО \"Самарские коммунальные системы\"","6312110828","631601001",null,null,"VO"]
[94,"2638","Самарская область","26852799","ООО \"Сервисная коммунальная компания\"","6381013776","638101001","01-05-2011 00:00:00",null,"VO"]
[95,"2638","Самарская область","30351848","ООО \"Спектр\"","6372022439","637201001",null,"01-09-2017 00:00:00","VO"]
[96,"2638","Самарская область","26798594","ООО \"СтройБытСервис\"","6372014396","637201001",null,null,"VO"]
[97,"2638","Самарская область","26374821","ООО \"Сызраньводоканал\"","6325028144","632501001",null,null,"VO"]
[98,"2638","Самарская область","27775925","ООО \"ТрансЭкоСервис\"","6377011670","637701001",null,null,"VO"]
[99,"2638","Самарская область","28817169","ООО \"УК \"Промкомстрой\"","6325058004","632501001",null,null,"VO"]
[100,"2638","Самарская область","27357607","ООО \"Уют\"","6350005366","635001001","02-06-2011 00:00:00",null,"VO"]
[101,"2638","Самарская область","28874702","ООО \"Энергоресурс\"","6317101591","631701001",null,null,"VO"]
[102,"2638","Самарская область","28983650","ООО \"Энергоресурс\"","6376021010","637601001","11-04-2011 00:00:00",null,"VO"]
[103,"2638","Самарская область","30875705","ООО \"Юг сети\"","6319163931","631901001",null,null,"VO"]
[104,"2638","Самарская область","26641452","ООО “ВоКС”","6312101799","632401001","01-01-2011 00:00:00",null,"VO"]
[105,"2638","Самарская область","26485708","ООО “Газпром ПХГ” филиал - “Похвистневское управление подземного хранения газа”","5003065767","635702001",null,null,"VO"]
[106,"2638","Самарская область","26485554","ООО “ЗИМ-Энерго”","6316138623","631601001",null,null,"VO"]
[107,"2638","Самарская область","26485765","ООО “КСК г. Отрадного”","6372008843","637201001",null,null,"VO"]
[108,"2638","Самарская область","26641457","ООО “КинельВодоканал”","6318181670","635001001",null,"01-07-2017 00:00:00","VO"]
[109,"2638","Самарская область","26641470","ООО “СовМежХоз”","6369011980","636901001","01-01-2011 00:00:00",null,"VO"]
[110,"2638","Самарская область","26485325","ООО “Теплосеть”","6350011458","635001001",null,null,"VO"]
[111,"2638","Самарская область","30801371","ООО «Водоканал»","6312131916","631201001",null,null,"VO"]
[112,"2638","Самарская область","31211254","ООО «УК «Гарант-Сервис»","6377000799","632501001",null,null,"VO"]
[113,"2638","Самарская область","28857939","ООО Управляющая Компания Региональный Ремонтно-Строительный Холдинг","6316196897","631601001",null,null,"VO"]
[114,"2638","Самарская область","26485603","ПАО “КУЗНЕЦОВ”","6319033379","631901001",null,null,"VO"]
[115,"2638","Самарская область","30354094","Самарский областной фонд поддержки индивидуального жилищного строительства на селе","6316042424","631601001",null,null,"VO"]
[116,"2638","Самарская область","30947961","ФГБУ \"ЦЖКУ\" Министерства Обороны","7729314745","631745002",null,"08-09-2017 00:00:00","VO"]
[117,"2638","Самарская область","26485102","ФГБУ “Санаторий “Волжский утес” Управление делами Президента Российской Федерации","6387002139","638701001",null,null,"VO"]
[118,"2638","Самарская область","26485122","ФГБУЗ МРЦ \"Сергиевские минеральные воды\" ФМБА России","6381000103","638101001",null,null,"VO"]
[119,"2638","Самарская область","28874710","Филиал АО «Водные технологии» «Самарский»","3328462474","631443001",null,null,"VO"]
[120,"2638","Самарская область","30914574","Филиал ФГБУ \"ЦЖКУ\" МИНОБОРОНЫ РОССИИ (по ЦВО)","7729314745","667043001",null,null,"VO"]
[121,"2638","Самарская область","26485106","Челно – Вершинское МУП ПОЖКХ","6385000802","638501001",null,null,"VO"]

{"sheet":"modClassifierValidate","index":40,"n_rows":0,"n_cols":0,"rows_kept":0,"cut":false,"hidden":true,"merged":[]}

{"sheet":"modProv","index":41,"n_rows":0,"n_cols":0,"rows_kept":0,"cut":false,"hidden":true,"merged":[]}

{"sheet":"modHyp","index":42,"n_rows":0,"n_cols":0,"rows_kept":0,"cut":false,"hidden":true,"merged":[]}

{"sheet":"modServiceModule","index":43,"n_rows":0,"n_cols":0,"rows_kept":0,"cut":false,"hidden":true,"merged":[]}

{"sheet":"modList01","index":44,"n_rows":0,"n_cols":0,"rows_kept":0,"cut":false,"hidden":true,"merged":[]}

{"sheet":"modList02","index":45,"n_rows":0,"n_cols":0,"rows_kept":0,"cut":false,"hidden":true,"merged":[]}

{"sheet":"modList03","index":46,"n_rows":0,"n_cols":0,"rows_kept":0,"cut":false,"hidden":true,"merged":[]}

{"sheet":"et_union_hor","index":47,"n_rows":298,"n_cols":61,"rows_kept":298,"cut":false,"hidden":true,"merged":[[115,14,115,21],[65,20,66,20],[116,14,116,21],[152,14,152,21],[119,19,120,19],[118,14,118,21],[149,14,149,21],[136,18,137,18],[132,14,132,21],[119,20,120,20],[130,14,130,21],[150,14,150,21],[119,17,120,17],[131,14,131,21],[133,14,133,21],[93,14,93,26],[79,14,79,21],[80,14,80,21],[119,18,120,18],[65,17,66,17],[147,14,147,21],[183,15,186,15],[148,14,148,21],[183,16,186,16],[168,14,171,14],[183,11,187,11],[183,12,187,12],[183,21,184,21],[168,19,170,19],[151,14,151,21],[153,19,154,19],[168,21,170,21],[183,20,185,20],[183,14,186,14],[183,18,185,18],[288,0,296,0],[292,2,294,2],[293,8,294,8],[168,13,172,13],[181,1,189,1],[253,7,254,7],[166,1,174,1],[183,8,187,8],[183,9,187,9],[183,13,186,13],[168,3,172,3],[180,0,190,0],[165,0,175,0],[291,1,295,1],[248,2,249,2],[253,2,254,2],[183,10,187,10],[168,10,172,10],[168,8,172,8],[168,9,172,9],[183,37,188,37],[153,20,154,20],[136,17,137,17],[153,17,154,17],[168,11,172,11],[153,18,154,18],[168,38,173,38],[168,25,169,25],[168,24,169,24],[168,20,170,20],[136,20,137,20],[168,18,170,18],[182,13,182,36],[168,16,171,16],[168,22,169,22],[181,13,181,36],[183,23,184,23],[183,17,185,17],[183,19,185,19],[168,15,171,15],[183,22,184,22],[168,12,172,12],[168,17,171,17],[168,23,169,23],[80,4,83,4],[63,3,68,3],[253,5,254,5],[253,6,254,6],[182,2,188,2],[167,2,173,2],[64,4,67,4],[248,3,249,3],[248,4,249,4],[183,3,187,3],[61,1,70,1],[62,2,69,2],[76,0,87,0],[77,1,86,1],[78,2,85,2],[28,0,39,0],[29,1,38,1],[30,2,37,2],[31,3,36,3],[32,4,35,4],[44,0,55,0],[48,4,51,4],[45,1,54,1],[46,2,53,2],[114,14,114,21],[97,24,98,24],[113,14,113,21],[49,22,51,22],[49,20,50,20],[97,23,98,23],[63,14,63,21],[64,14,64,21],[65,22,67,22],[65,19,66,19],[60,14,60,21],[61,14,61,21],[62,14,62,21],[47,3,52,3],[81,20,82,20],[77,14,77,21],[78,14,78,21],[60,0,71,0],[79,3,84,3],[33,57,35,57],[46,14,46,21],[47,14,47,21],[48,14,48,21],[49,13,50,13],[33,24,34,24],[33,25,34,25],[33,26,34,26],[33,27,34,27],[33,52,34,52],[33,53,34,53],[33,54,34,54],[33,55,34,55],[33,33,34,33],[33,34,34,34],[13,6,16,6],[24,22,26,22],[49,18,50,18],[33,17,34,17],[33,19,34,19],[48,9,51,9],[49,17,50,17],[32,9,35,9],[25,15,25,16],[28,14,28,56],[29,14,29,56],[30,14,30,56],[31,14,31,56],[32,14,32,56],[33,45,34,45],[33,46,34,46],[33,47,34,47],[33,48,34,48],[33,38,34,38],[33,39,34,39],[33,40,34,40],[33,41,34,41],[33,31,34,31],[33,32,34,32],[8,11,9,11],[64,9,67,9],[25,14,26,14],[27,14,27,20],[33,13,34,13],[13,13,14,13],[8,4,11,4],[8,13,9,13],[8,10,10,10],[8,9,10,9],[8,5,11,5],[13,4,16,4],[13,8,15,8],[8,12,9,12],[13,5,16,5],[8,6,11,6],[31,8,36,8],[47,8,52,8],[8,7,10,7],[33,20,34,20],[24,20,26,20],[65,18,66,18],[44,14,44,21],[45,14,45,21],[8,3,11,3],[13,3,16,3],[33,18,34,18],[8,14,9,14],[24,17,25,19],[8,8,10,8],[13,7,15,7],[13,9,15,9],[151,8,156,8],[134,8,139,8],[117,8,122,8],[13,10,15,10],[49,19,50,19],[118,9,121,9],[152,9,155,9],[13,12,14,12],[13,14,14,14],[94,14,94,26],[81,17,82,17],[13,11,14,11],[24,14,24,16],[135,14,135,21],[92,14,92,26],[26,18,26,19],[199,24,200,24],[199,23,200,23],[199,22,200,22],[183,24,184,24],[199,21,200,21],[199,16,202,16],[199,20,201,20],[199,19,201,19],[199,17,201,17],[199,18,201,18],[65,13,66,13],[180,13,180,36],[63,8,68,8],[79,8,84,8],[81,18,82,18],[91,14,91,26],[99,23,100,23],[80,9,83,9],[96,8,102,8],[76,14,76,21],[81,22,83,22],[97,22,98,22],[99,25,100,25],[99,22,100,22],[99,24,100,24],[97,9,101,9],[97,25,98,25],[81,19,82,19],[165,13,165,37],[166,13,166,37],[167,13,167,37],[96,14,96,26],[135,9,138,9],[136,19,137,19]]}
[]
["et_Comm"]
[]
[]
[]
[]
["et_List02(_1,_2,_3)"]
[]
[null,null,null,1,null,null,"нет",null,1,null,"нет",null,"1",null,"нет",null,"1"]
[null,null,null,null,null,null,null,null,null,null,null,null,null,null,null,null,null,"Добавить ЦС ВО для дифференциации"]
[null,null,null,null,null,null,null,null,null,null,null,null,null,"Добавить территорию для дифференциации"]
[]
[]
[null,null,null,null,null,null,null,null,1,null,"нет",null,"1",null,"нет",null,"1"]
[null,null,null,null,null,null,null,null,null,null,null,null,null,null,null,null,null,"Добавить ЦС ВО для дифференциации"]
[null,null,null,null,null,null,null,null,null,null,null,null,null,"Добавить территорию для дифференциации"]
[]
[]
["et_List06(_1,_2,_3)",null,"1"]
[]
[]
[]
[]
[]
[null,null,null,null,null,null,null,null,null,null,null,null,null,null,"Величина установленного тарифа",null,null,"Срок действия цены (тарифа) на тепловую энергию (мощность)",null,null,"Наличие других периодов действия тарифа"]
[null,null,null,null,null,null,null,null,null,null,null,null,null,null,"Одноставочный тариф, руб./Гкал","Двухставочный тариф"]
[null,null,null,null,null,null,null,null,null,null,null,null,null,null,null,"ставка за тепловую  энергию, руб./Гкал","ставка за содержание тепловой мощности, тыс.руб./Гкал/ч/мес","дата начала","дата окончания"]
[null,null,null,null,null,null,null,null,null,null,null,null,"7"]
[1,null,null,null,null,null,null,null,null,null,null,{"$f":"mergeValue(A29)","v":1},"Наименование тарифа",null,null,null,null,null,null,null,null,null,null,null,null,null,null,null,null,null,null,null,null,null,null,null,null,null,null,null,null,null,null,null,null,null,null,null,null,null,null,null,null,null,null,null,null,"Указывается наименование тарифа в случае утверждения нескольких тарифов.\nВ случае наличия нескольких тарифов информация по ним указывается в отдельных строках."]
[null,1,null,null,null,null,null,null,null,null,null,{"$f":"mergeValue(A30) &\".\"& mergeValue(B30)","v":"1.1"},"Территория действия тарифа",null,null,null,null,null,null,null,null,null,null,null,null,null,null,null,null,null,null,null,null,null,null,null,null,null,null,null,null,null,null,null,null,null,null,null,null,null,null,null,null,null,null,null,null,"Указывается наименование территории действия тарифа при наличии дифференциации тарифа по территориальному признаку.\nВ случае дифференциации тарифов по территориальному признаку информация по ним указывается в отдельных строках."]
[null,null,1,null,null,null,null,null,null,null,null,{"$f":"mergeValue(A31) &\".\"& mergeValue(B31)&\".\"& mergeValue(C31)","v":"1.1.1"},"Наименование централизованной системы водоотведения",null,null,null,null,null,null,null,null,null,null,null,null,null,null,null,null,null,null,null,null,null,null,null,null,null,null,null,null,null,null,null,null,null,null,null,null,null,null,null,null,null,null,null,null,"Указывается наименование централизованной системы водоотведения при наличии дифференциации тарифа по централизованным системам водоотведения.\nВ случае дифференциации тарифов по централизованным системам водоотведения информация по ним указывается в отдельных строках."]
[null,null,null,1,null,null,null,null,null,null,null,{"$f":"mergeValue(A32) &\".\"& mergeValue(B32)&\".\"& mergeValue(C32)&\".\"& mergeValue(D32)","v":"1.1.1.1"},"Наименование признака дифференциации",null,null,null,null,null,null,null,null,null,null,null,null,null,null,null,null,null,null,null,null,null,null,null,null,null,null,null,null,null,null,null,null,null,null,null,null,null,null,null,null,null,null,null,null,"Указывается наименование дополнительного признака дифференциации (при наличии).\nДифференциация тарифа осуществляется в соответствии с законодательством в сфере водоснабжении и водоотведении.\nВ случае дифференциации тарифов по дополнительным признакам информация по ним указывается в отдельных строках."]
[null,null,null,null,1,null,null,null,null,null,null,{"$f":"mergeValue(A33) &\".\"& mergeValue(B33)&\".\"& mergeValue(C33)&\".\"& mergeValue(D33)&\".\"& mergeValue(E33)","v":"1.1.1.1.1"},"Группа потребителей",null,null,null,null,null,null,null,null,null,null,null,null,null,null,null,null,null,null,null,null,null,null,null,null,null,null,null,null,null,null,null,null,null,null,null,null,null,null,null,null,null,null,null,null,"Указывается группа потребителей при наличии дифференциации тарифа по группам потребителей.\nЗначение выбирается из перечня: Организации-перепродавцы; Бюджетные организации; Население; Прочие; Без дифференциации.\nВ случае дифференциации тарифов группам потребителей информация по ним указывается в отдельных строках.",null,{"$f":"strCheckUnique(BI33:BI36)","v":""}]
[null,null,null,null,null,1,null,null,null,null,null,{"$f":"mergeValue(A34) &\".\"& mergeValue(B34)&\".\"& mergeValue(C34)&\".\"& mergeValue(D34)&\".\"& mergeValue(E34)&\".\"& mergeValue(F34)","v":"1.1.1.1.1.1"},null,null,null,null,null,null,"да",null,"да",null,null,null,null,"да",null,"да",null,null,null,null,"да",null,"да",null,null,null,null,"да",null,"да",null,null,null,null,"да",null,"да",null,null,null,null,"да",null,"нет",null,"В колонке «Параметр дифференциации тарифов» указывается значение дополнительного признака дифференциации.\nПри утверждении двухставочного тарифа колонка «Одноставочный тариф» не заполняется.\nПри утверждении одноставочного тарифа колонки в блоке «Двухставочный тариф» не заполняются.\nДаты начала и окончания действия тарифов указываются в виде «ДД.ММ.ГГГГ».\nВ случае отсутствия даты окончания действия тарифа в колонке «Дата окончания» указывается «Нет».\nВ случае наличия нескольких значений признака дифференциации тарифов информация по ним указывается в отдельных строках.\nВ случае дифференциации тарифов по периодам действия тарифа информация по ним указывается в отдельных колонках.",{"$f":"strCheckDate(O35:BE35)","v":""},null,{"$f":"IF(M34=\"\",\"\",M34 )","v":""}]
[null,null,null,null,null,null,null,null,null,null,null,null,null,null,null,null,{"$f":"R34 & \"-\" & T34","v":"-"},null,null,null,null,null,null,{"$f":"Y34 & \"-\" & AA34","v":"-"},null,null,null,null,null,null,{"$f":"AF34 & \"-\" & AH34","v":"-"},null,null,null,null,null,null,{"$f":"AM34 & \"-\" & AO34","v":"-"},null,null,null,null,null,null,{"$f":"AT34 & \"-\" & AV34","v":"-"},null,null,null,null,null,null,{"$f":"BA34 & \"-\" & BC34","v":"-"}]
[null,null,null,null,null,null,null,null,null,null,null,null,"Добавить значение признака дифференциации"]
[null,null,null,null,null,null,null,null,null,null,null,null,"Добавить группу потребителей"]
[null,null,null,null,null,null,null,null,null,null,null,null,"Добавить наименование признака дифференциации"]
[null,null,null,null,null,null,null,null,null,null,null,null,"Добавить наименование системы водоотведения"]
[null,null,null,null,null,null,null,null,null,null,null,null,"Добавить территорию действия тарифа"]
[null,null,null,null,null,null,null,null,null,null,null,null,"Добавить наименование тарифа"]
[]
["et_List06(_1,_2,_3)",null,"2"]
[]
[1,null,null,null,null,null,null,null,null,null,null,{"$f":"mergeValue(A45)","v":1},"Наименование тарифа",null,null,null,null,null,null,null,null,null,"Указывается наименование тарифа в случае утверждения нескольких тарифов.\nВ случае наличия нескольких тарифов информация по ним указывается в отдельных строках."]
[null,1,null,null,null,null,null,null,null,null,null,{"$f":"mergeValue(A46) &\".\"& mergeValue(B46)","v":"1.1"},"Территория действия тарифа",null,null,null,null,null,null,null,null,null,"Указывается наименование территории действия тарифа при наличии дифференциации тарифа по территориальному признаку.\nВ случае дифференциации тарифов по территориальному признаку информация по ним указывается в отдельных строках."]
[null,null,1,null,null,null,null,null,null,null,null,{"$f":"mergeValue(A47) &\".\"& mergeValue(B47)&\".\"& mergeValue(C47)","v":"1.1.1"},"Наименование централизованной системы водоотведения",null,null,null,null,null,null,null,null,null,"Указывается наименование централизованной системы водоотведения при наличии дифференциации тарифа по централизованным системам водоотведения.\nВ случае дифференциации тарифов по централизованным системам водоотведения информация по ним указывается в отдельных строках."]
[null,null,null,1,null,null,null,null,null,null,null,{"$f":"mergeValue(A48) &\".\"& mergeValue(B48)&\".\"& mergeValue(C48)&\".\"& mergeValue(D48)","v":"1.1.1.1"},"Наименование признака дифференциации",null,null,null,null,null,null,null,null,null,"Указывается наименование дополнительного признака дифференциации (при наличии).\nДифференциация тарифа осуществляется в соответствии с законодательством в сфере водоснабжении и водоотведении.\nВ случае дифференциации тарифов по дополнительным признакам информация по ним указывается в отдельных строках."]
[null,null,null,null,1,null,null,null,null,null,null,{"$f":"mergeValue(A49) &\".\"& mergeValue(B49)&\".\"& mergeValue(C49)&\".\"& mergeValue(D49)&\".\"& mergeValue(E49)","v":"1.1.1.1.1"},"Группа потребителей",null,null,null,null,null,null,null,null,null,"Указывается группа потребителей при наличии дифференциации тарифа по группам потребителей.\nЗначение выбирается из перечня: Организации-перепродавцы; Бюджетные организации; Население; Прочие; Без дифференциации.\nВ случае дифференциации тарифов группам потребителей информация по ним указывается в отдельных строках.",null,{"$f":"strCheckUnique(Z49:Z52)","v":""}]
[null,null,null,null,null,1,null,null,null,null,null,{"$f":"mergeValue(A50) &\".\"& mergeValue(B50)&\".\"& mergeValue(C50)&\".\"& mergeValue(D50)&\".\"& mergeValue(E50)&\".\"& mergeValue(F50)","v":"1.1.1.1.1.1"},null,null,null,null,null,null,"да",null,"нет",null,"В колонке «Параметр дифференциации тарифов» указывается значение дополнительного признака дифференциации.\nПри утверждении двухставочного тарифа колонка «Одноставочный тариф» не заполняется.\nПри утверждении одноставочного тарифа колонки в блоке «Двухставочный тариф» не заполняются.\nДаты начала и окончания действия тарифов указываются в виде «ДД.ММ.ГГГГ».\nВ случае отсутствия даты окончания действия тарифа в колонке «Дата окончания» указывается «Нет».\nВ случае наличия нескольких значений признака дифференциации тарифов информация по ним указывается в отдельных строках.\nВ случае дифференциации тарифов по периодам действия тарифа информация по ним указывается в отдельных колонках.",{"$f":"strCheckDate(O51:V51)","v":""},null,{"$f":"IF(M50=\"\",\"\",M50 )","v":""}]
[null,null,null,null,null,null,null,null,null,null,null,null,null,null,null,null,{"$f":"R50 & \"-\" & T50","v":"-"}]
[null,null,null,null,null,null,null,null,null,null,null,null,"Добавить значение признака дифференциации"]
[null,null,null,null,null,null,null,null,null,null,null,null,"Добавить группу потребителей"]
[null,null,null,null,null,null,null,null,null,null,null,null,"Добавить наименование признака дифференциации"]
[null,null,null,null,null,null,null,null,null,null,null,null,"Добавить наименование системы водоотведения"]
[null,null,null,null,null,null,null,null,null,null,null,null,"Добавить территорию действия тарифа"]
[null,null,null,null,null,null,null,null,null,null,null,null,"Добавить наименование тарифа"]
[]
["et_List06(_1,_2,_3)",null,"3"]
[]
[1,null,null,null,null,null,null,null,null,null,null,{"$f":"mergeValue(A61)","v":1},"Наименование тарифа",null,null,null,null,null,null,null,null,null,"Указывается наименование тарифа в случае утверждения нескольких тарифов.\nВ случае наличия нескольких тарифов информация по ним указывается в отдельных строках."]
[null,1,null,null,null,null,null,null,null,null,null,{"$f":"mergeValue(A62) &\".\"& mergeValue(B62)","v":"1.1"},"Территория действия тарифа",null,null,null,null,null,null,null,null,null,"Указывается наименование территории действия тарифа при наличии дифференциации тарифа по территориальному признаку.\nВ случае дифференциации тарифов по территориальному признаку информация по ним указывается в отдельных строках."]
[null,null,1,null,null,null,null,null,null,null,null,{"$f":"mergeValue(A63) &\".\"& mergeValue(B63)&\".\"& mergeValue(C63)","v":"1.1.1"},"Наименование централизованной системы водоотведения",null,null,null,null,null,null,null,null,null,"Указывается наименование централизованной системы водоотведения при наличии дифференциации тарифа по централизованным системам водоотведения.\nВ случае дифференциации тарифов по централизованным системам водоотведения информация по ним указывается в отдельных строках."]
[null,null,null,1,null,null,null,null,null,null,null,{"$f":"mergeValue(A64) &\".\"& mergeValue(B64)&\".\"& mergeValue(C64)&\".\"& mergeValue(D64)","v":"1.1.1.1"},"Наименование признака дифференциации",null,null,null,null,null,null,null,null,null,"Указывается наименование дополнительного признака дифференциации (при наличии).\nДифференциация тарифа осуществляется в соответствии с законодательством в сфере водоснабжении и водоотведении.\nВ случае дифференциации тарифов по дополнительным признакам информация по ним указывается в отдельных строках."]
[null,null,null,null,1,null,null,null,null,null,null,{"$f":"mergeValue(A65) &\".\"& mergeValue(B65)&\".\"& mergeValue(C65)&\".\"& mergeValue(D65)&\".\"& mergeValue(E65)","v":"1.1.1.1.1"},"Группа потребителей",null,null,null,null,null,null,null,null,null,"Указывается группа потребителей при наличии дифференциации тарифа по группам потребителей.\nЗначение выбирается из перечня: Организации-перепродавцы; Бюджетные организации; Население; Прочие; Без дифференциации.\nВ случае дифференциации тарифов группам потребителей информация по ним указывается в отдельных строках.",null,{"$f":"strCheckUnique(Z65:Z68)","v":""}]
[null,null,null,null,null,1,null,null,null,null,null,{"$f":"mergeValue(A66) &\".\"& mergeValue(B66)&\".\"& mergeValue(C66)&\".\"& mergeValue(D66)&\".\"& mergeValue(E66)&\".\"& mergeValue(F66)","v":"1.1.1.1.1.1"},null,null,null,null,null,null,"да",null,"нет",null,"В колонке «Параметр дифференциации тарифов» указывается значение дополнительного признака дифференциации.\nПри утверждении двухставочного тарифа колонка «Одноставочный тариф» не заполняется.\nПри утверждении одноставочного тарифа колонки в блоке «Двухставочный тариф» не заполняются.\nДаты начала и окончания действия тарифов указываются в виде «ДД.ММ.ГГГГ».\nВ случае отсутствия даты окончания действия тарифа в колонке «Дата окончания» указывается «Нет».\nВ случае наличия нескольких значений признака дифференциации тарифов информация по ним указывается в отдельных строках.\nВ случае дифференциации тарифов по периодам действия тарифа информация по ним указывается в отдельных колонках.",{"$f":"strCheckDate(O67:V67)","v":""},null,{"$f":"IF(M66=\"\",\"\",M66 )","v":""}]
[null,null,null,null,null,null,null,null,null,null,null,null,null,null,null,null,{"$f":"R66 & \"-\" & T66","v":"-"}]
[null,null,null,null,null,null,null,null,null,null,null,null,"Добавить значение признака дифференциации"]
[null,null,null,null,null,null,null,null,null,null,null,null,"Добавить группу потребителей"]
[null,null,null,null,null,null,null,null,null,null,null,null,"Добавить наименование признака дифференциации"]
[null,null,null,null,null,null,null,null,null,null,null,null,"Добавить наименование системы водоотведения"]
[null,null,null,null,null,null,null,null,null,null,null,null,"Добавить территорию действия тарифа"]
[null,null,null,null,null,null,null,null,null,null,null,null,"Добавить наименование тарифа"]
[]
["et_List06(_1,_2,_3)",null,"4"]
[]
[1,null,null,null,null,null,null,null,null,null,null,{"$f":"mergeValue(A77)","v":1},"Наименование тарифа",null,null,null,null,null,null,null,null,null,"Указывается наименование тарифа в случае утверждения нескольких тарифов.\nВ случае наличия нескольких тарифов информация по ним указывается в отдельных строках."]
[null,1,null,null,null,null,null,null,null,null,null,{"$f":"mergeValue(A78) &\".\"& mergeValue(B78)","v":"1.1"},"Территория действия тарифа",null,null,null,null,null,null,null,null,null,"Указывается наименование территории действия тарифа при наличии дифференциации тарифа по территориальному признаку.\nВ случае дифференциации тарифов по территориальному признаку информация по ним указывается в отдельных строках."]
[null,null,1,null,null,null,null,null,null,null,null,{"$f":"mergeValue(A79) &\".\"& mergeValue(B79)&\".\"& mergeValue(C79)","v":"1.1.1"},"Наименование централизованной системы водоотведения",null,null,null,null,null,null,null,null,null,"Указывается наименование централизованной системы водоотведения при наличии дифференциации тарифа по централизованным системам водоотведения.\nВ случае дифференциации тарифов по централизованным системам водоотведения информация по ним указывается в отдельных строках."]
[null,null,null,1,null,null,null,null,null,null,null,{"$f":"mergeValue(A80) &\".\"& mergeValue(B80)&\".\"& mergeValue(C80)&\".\"& mergeValue(D80)","v":"1.1.1.1"},"Наименование признака дифференциации",null,null,null,null,null,null,null,null,null,"Указывается наименование дополнительного признака дифференциации (при наличии).\nДифференциация тарифа осуществляется в соответствии с законодательством в сфере водоснабжении и водоотведении.\nВ случае дифференциации тарифов по дополнительным признакам информация по ним указывается в отдельных строках."]
[null,null,null,null,1,null,null,null,null,null,null,{"$f":"mergeValue(A81) &\".\"& mergeValue(B81)&\".\"& mergeValue(C81)&\".\"& mergeValue(D81)&\".\"& mergeValue(E81)","v":"1.1.1.1.1"},"Группа потребителей",null,null,null,null,null,null,null,null,null,"Указывается группа потребителей при наличии дифференциации тарифа по группам потребителей.\nЗначение выбирается из перечня: Организации-перепродавцы; Бюджетные организации; Население; Прочие; Без дифференциации.\nВ случае дифференциации тарифов группам потребителей информация по ним указывается в отдельных строках.",null,{"$f":"strCheckUnique(Z81:Z84)","v":""}]
[null,null,null,null,null,1,null,null,null,null,null,{"$f":"mergeValue(A82) &\".\"& mergeValue(B82)&\".\"& mergeValue(C82)&\".\"& mergeValue(D82)&\".\"& mergeValue(E82)&\".\"& mergeValue(F82)","v":"1.1.1.1.1.1"},null,null,null,null,null,null,"да",null,"нет",null,"В колонке «Параметр дифференциации тарифов» указывается значение дополнительного признака дифференциации.\nПри утверждении двухставочного тарифа колонка «Одноставочный тариф» не заполняется.\nПри утверждении одноставочного тарифа колонки в блоке «Двухставочный тариф» не заполняются.\nДаты начала и окончания действия тарифов указываются в виде «ДД.ММ.ГГГГ».\nВ случае отсутствия даты окончания действия тарифа в колонке «Дата окончания» указывается «Нет».\nВ случае наличия нескольких значений признака дифференциации тарифов информация по ним указывается в отдельных строках.\nВ случае дифференциации тарифов по периодам действия тарифа информация по ним указывается в отдельных колонках.",{"$f":"strCheckDate(O83:V83)","v":""},null,{"$f":"IF(M82=\"\",\"\",M82 )","v":""}]
[null,null,null,null,null,null,null,null,null,null,null,null,null,null,null,null,{"$f":"R82 & \"-\" & T82","v":"-"}]
[null,null,null,null,null,null,null,null,null,null,null,null,"Добавить значение признака дифференциации"]
[null,null,null,null,null,null,null,null,null,null,null,null,"Добавить группу потребителей"]
[null,null,null,null,null,null,null,null,null,null,null,null,"Добавить наименование признака дифференциации"]
[null,null,null,null,null,null,null,null,null,null,null,null,"Добавить наименование системы водоотведения"]
[null,null,null,null,null,null,null,null,null,null,null,null,"Добавить территорию действия тарифа"]
[null,null,null,null,null,null,null,null,null,null,null,null,"Добавить наименование тарифа"]
[null,null,null,null,null,null,"et_List06(_1,_2,_3)",null,"5"]
[]
[null,null,null,null,null,null,null,null,null,null,null,"1","Наименование тарифа"]
[null,null,null,null,null,null,null,null,null,null,null,"1.1","Территория действия тарифа"]
[null,null,null,null,null,null,null,null,null,null,null,"1.1.1","Наименование системы теплоснабжения "]
[null,null,null,null,null,null,null,null,null,null,null,"1.1.1.1","Источник тепловой энергии  "]
[]
[null,null,null,null,null,null,null,null,null,null,null,"1.1.1.1.1.1","Группа потребителей",null,null,null,null,null,null,null,null,null,null,null,null,null,null,null,null,{"$f":"strCheckUnique(AE97:AE103)","v":""}]
[null,null,null,null,null,null,null,1,null,null,null,null,null,null,null,null,null,null,null,null,null,{"$f":"W98 & \"-\" & Y98","v":"-"},null,"да",null,"нет",null,null,{"$f":"strCheckDate(O98:AA98)","v":""},null,{"$f":"IF(M98=\"\",\"\",M98 )","v":""}]
[null,null,null,null,null,null,null,null,null,null,null,null,null,null,null,null,null,null,null,null,null,null,null,null,null,null,null,null,null,null,null,{"$f":"OFFSET(AF99,-1,0)","v":0}]
[null,null,null,null,null,null,null,null,null,null,null,null,null,null,null,null,null,null,null,null,null,{"$f":"W100 & \"-\" & Y100","v":"-"},null,"да",null,"нет",null,null,{"$f":"strCheckDate(O100:AA100)","v":""}]
[null,null,null,null,null,null,null,null,null,null,null,null,null,null,null,null,null,null,null,null,null,null,null,null,null,null,null,null,null,null,null,{"$f":"OFFSET(AF101,-1,0)","v":0}]
[null,null,null,null,null,null,null,null,null,null,null,null,"Добавить поставщика"]
[null,null,null,null,null,null,null,null,null,null,null,null,"Добавить вид теплоносителя (параметры теплоносителя)"]
[null,null,null,null,null,null,null,null,null,null,null,null,"Добавить группу потребителей"]
[]
[null,null,null,null,null,null,null,null,null,null,null,null,"Добавить источник тепловой энергии"]
[null,null,null,null,null,null,null,null,null,null,null,null,"Добавить наименование системы теплоснабжения"]
[null,null,null,null,null,null,null,null,null,null,null,null,"Добавить территорию действия тарифа"]
[null,null,null,null,null,null,null,null,null,null,null,null,null,null,null,null,null,null,null,null,null,null,null,"да",null,"нет"]
[]
[]
[null,null,null,null,null,null,"et_List06(_1,_2,_3)",null,"6"]
[]
[null,null,null,null,null,null,null,null,null,null,null,"1","Наименование тарифа"]
[null,null,null,null,null,null,null,null,null,null,null,"1.1","Территория действия тарифа"]
[null,null,null,null,null,null,null,null,null,null,null,"1.1.1","Наименование системы теплоснабжения "]
[null,null,null,null,null,null,null,null,null,null,null,"1.1.1.1","Источник тепловой энергии  "]
[]
[null,null,null,null,null,null,null,null,null,null,null,"1.1.1.1.1.1","Группа потребителей",null,null,null,null,null,null,null,null,null,null,null,{"$f":"strCheckUnique(Z119:Z122)","v":""}]
[null,null,null,null,null,null,null,1,null,null,null,null,null,null,null,null,null,null,"да",null,"нет",null,null,{"$f":"strCheckDate(O121:V121)","v":""},null,{"$f":"IF(M120=\"\",\"\",M120 )","v":""}]
[null,null,null,null,null,null,null,null,null,null,null,null,null,null,null,null,{"$f":"R120 & \"-\" & T120","v":"-"}]
[null,null,null,null,null,null,null,null,null,null,null,null,"Добавить вид теплоносителя (параметры теплоносителя)"]
[null,null,null,null,null,null,null,null,null,null,null,null,"Добавить группу потребителей"]
[]
[null,null,null,null,null,null,null,null,null,null,null,null,"Добавить источник тепловой энергии"]
[null,null,null,null,null,null,null,null,null,null,null,null,"Добавить наименование системы теплоснабжения"]
[null,null,null,null,null,null,null,null,null,null,null,null,"Добавить территорию действия тарифа"]
[]
[null,null,null,null,null,null,"et_List06(_1,_2,_3)",null,"7"]
[]
[null,null,null,null,null,null,null,null,null,null,null,"1","Наименование тарифа"]
[null,null,null,null,null,null,null,null,null,null,null,"1.1","Территория действия тарифа"]
[null,null,null,null,null,null,null,null,null,null,null,"1.1.1","Наименование системы теплоснабжения "]
[null,null,null,null,null,null,null,null,null,null,null,"1.1.1.1","Источник тепловой энергии  "]
[]
[null,null,null,null,null,null,null,null,null,null,null,"1.1.1.1.1.1","Группа потребителей",null,null,null,null,null,null,null,null,null,null,null,{"$f":"strCheckUnique(Z136:Z139)","v":""}]
[null,null,null,null,null,null,null,1,null,null,null,null,null,null,null,null,null,null,"да",null,"нет",null,null,{"$f":"strCheckDate(O138:V138)","v":""},null,{"$f":"IF(M137=\"\",\"\",M137 )","v":""}]
[null,null,null,null,null,null,null,null,null,null,null,null,null,null,null,null,{"$f":"R137 & \"-\" & T137","v":"-"}]
[null,null,null,null,null,null,null,null,null,null,null,null,"Добавить вид теплоносителя (параметры теплоносителя)"]
[null,null,null,null,null,null,null,null,null,null,null,null,"Добавить группу потребителей"]
[]
[null,null,null,null,null,null,null,null,null,null,null,null,"Добавить источник тепловой энергии"]
[null,null,null,null,null,null,null,null,null,null,null,null,"Добавить наименование системы теплоснабжения"]
[null,null,null,null,null,null,null,null,null,null,null,null,"Добавить территорию действия тарифа"]
[]
[null,null,null,null,null,null,"et_List06(_1,_2,_3)",null,"8"]
[]
[null,null,null,null,null,null,null,null,null,null,null,"1","Наименование тарифа"]
[null,null,null,null,null,null,null,null,null,null,null,"1.1","Территория действия тарифа"]
[null,null,null,null,null,null,null,null,null,null,null,"1.1.1","Наименование системы теплоснабжения "]
[null,null,null,null,null,null,null,null,null,null,null,"1.1.1.1","Источник тепловой энергии  "]
[null,null,null,null,null,null,null,null,null,null,null,"1.1.1.1.1","Схема подключения теплопотребляющей установки к коллектору источника тепловой энергии"]
[null,null,null,null,null,null,null,null,null,null,null,"1.1.1.1.1.1","Группа потребителей",null,null,null,null,null,null,null,null,null,null,null,{"$f":"strCheckUnique(Z153:Z156)","v":""}]
[null,null,null,null,null,null,null,1,null,null,null,null,null,null,null,null,null,null,"да",null,"нет",null,null,{"$f":"strCheckDate(O155:V155)","v":""},null,{"$f":"IF(M154=\"\",\"\",M154 )","v":""}]
[null,null,null,null,null,null,null,null,null,null,null,null,null,null,null,null,{"$f":"R154 & \"-\" & T154","v":"-"}]
[null,null,null,null,null,null,null,null,null,null,null,null,"Добавить вид теплоносителя (параметры теплоносителя)"]
[null,null,null,null,null,null,null,null,null,null,null,null,"Добавить группу потребителей"]
[null,null,null,null,null,null,null,null,null,null,null,null,"Добавить схему подключения"]
[null,null,null,null,null,null,null,null,null,null,null,null,"Добавить источник тепловой энергии"]
[null,null,null,null,null,null,null,null,null,null,null,null,"Добавить наименование системы теплоснабжения"]
[null,null,null,null,null,null,null,null,null,null,null,null,"Добавить территорию действия тарифа"]
[]
["et_List06(_1,_2,_3)",null,"9"]
[]
[]
[1,null,null,null,null,null,null,null,null,null,null,{"$f":"mergeValue(A166)","v":1},"Наименование тарифа",null,null,null,null,null,null,null,null,null,null,null,null,null,null,null,null,null,null,null,null,null,null,null,null,null,"Указывается наименование тарифа в случае утверждения нескольких тарифов.\nВ случае наличия нескольких тарифов информация по ним указывается в отдельных строках."]
[null,1,null,null,null,null,null,null,null,null,null,{"$f":"mergeValue(A167) &\".\"& mergeValue(B167)","v":"1.1"},"Территория действия тарифа",null,null,null,null,null,null,null,null,null,null,null,null,null,null,null,null,null,null,null,null,null,null,null,null,null,"Указывается наименование территории действия тарифа при наличии дифференциации тарифа по территориальному признаку.\nВ случае дифференциации тарифов по территориальному признаку информация по ним указывается в отдельных строках."]
[null,null,1,null,null,null,null,null,null,null,null,{"$f":"mergeValue(A168) &\".\"& mergeValue(B168)&\".\"& mergeValue(C168)","v":"1.1.1"},"Наименование централизованной системы водоотведения",null,null,null,null,null,null,null,null,null,null,null,null,null,null,null,null,null,null,null,null,null,null,null,null,null,"Указывается наименование централизованной системы водоотведения при наличии дифференциации тарифа по централизованным системам водоотведения.\nВ случае дифференциации тарифов по централизованным системам водоотведения информация по ним указывается в отдельных строках."]
[null,null,null,1,null,null,null,null,null,null,null,{"$f":"mergeValue(A169) &\".\"& mergeValue(B169)&\".\"& mergeValue(C169)&\".\"& mergeValue(D169)","v":"1.1.1.1"},null,"да",null,"1",null,"нет",null,1,null,"нет",null,1,null,"нет",null,1,null,null,null,null,null,null,"да",null,"нет",null,"В колодке «Параметр дифференциации тарифа/Заявитель» указывается наименование категории потребителей, к которой относится тариф.\nДаты начала и окончания указываются в виде «ДД.ММ.ГГГГ».\nВ случае отсутствия даты окончания тарифа в колонке «Дата окончания» указывается «Нет».\nВ случае наличия дифференциации по подключаемой нагрузке, диапазону диаметров, протяженности, условиям прокладки канализационной сети информация по ним указывается в отдельных строках.\nВ случае дифференциации тарифов по периодам действия тарифа информация по ним указывается в отдельных колонках.",{"$f":"strCheckDateOnDP(AD169:AL169,List06_9_DP)","v":""},{"$f":"IF(AND(COUNTIF(AP165:AP165,AP169)>1,AP169<>\"\"),\"ErrUnique:HasDoubleConn\",\"\")","v":""}]
[null,null,null,null,null,null,null,null,null,null,null,null,null,null,null,null,null,null,null,null,null,null,null,null,null,null,null,null,null,null,null,null,{"$f":"AH169 & \"-\" & AJ169","v":"-"},null,null,null,"нет"]
[]
[]
[null,null,null,null,null,null,null,null,null,null,null,null,null,null,null,null,"Добавить подключаемую нагрузку"]
[null,null,null,null,null,null,null,null,null,null,null,null,"Добавить строку"]
[null,null,null,null,null,null,null,null,null,null,null,null,"Добавить наименование системы водоотведения"]
[null,null,null,null,null,null,null,null,null,null,null,null,"Добавить территорию действия тарифа"]
[null,null,null,null,null,null,null,null,null,null,null,null,"Добавить наименование тарифа"]
[]
["et_List06(_1,_2,_3)",null,"10"]
[]
[1,null,null,null,null,null,null,null,null,null,null,{"$f":"mergeValue(A181)","v":1},"Наименование тарифа",null,null,null,null,null,null,null,null,null,null,null,null,null,null,null,null,null,null,null,null,null,null,null,null,"Указывается наименование тарифа в случае утверждения нескольких тарифов.\nВ случае наличия нескольких тарифов информация по ним указывается в отдельных строках."]
[null,1,null,null,null,null,null,null,null,null,null,{"$f":"mergeValue(A182) &\".\"& mergeValue(B182)","v":"1.1"},"Территория действия тарифа",null,null,null,null,null,null,null,null,null,null,null,null,null,null,null,null,null,null,null,null,null,null,null,null,"Указывается наименование территории действия тарифа при наличии дифференциации тарифа по территориальному признаку.\nВ случае дифференциации тарифов по территориальному признаку информация по ним указывается в отдельных строках."]
[null,null,1,null,null,null,null,null,null,null,null,{"$f":"mergeValue(A183) &\".\"& mergeValue(B183)&\".\"& mergeValue(C183)","v":"1.1.1"},"Наименование централизованной системы водоотведения",null,null,null,null,null,null,null,null,null,null,null,null,null,null,null,null,null,null,null,null,null,null,null,null,"Указывается наименование централизованной системы водоотведения при наличии дифференциации тарифа по централизованным системам водоотведения.\nВ случае дифференциации тарифов по централизованным системам водоотведения информация по ним указывается в отдельных строках."]
[null,null,null,1,null,null,null,null,null,null,null,{"$f":"mergeValue(A184) &\".\"& mergeValue(B184)&\".\"& mergeValue(C184)&\".\"& mergeValue(D184)","v":"1.1.1.1"},null,null,"1",null,"нет",null,1,null,"нет",null,"1",null,"нет",null,1,null,null,null,null,null,null,"да",null,"нет",null,"В колодке «Параметр дифференциации тарифа/Заявитель» указывается наименование категории потребителей, к которой относится тариф.\nДаты начала и окончания указываются в виде «ДД.ММ.ГГГГ».\nВ случае отсутствия даты окончания тарифа в колонке «Дата окончания» указывается «Нет».\nВ случае наличия дифференциации по подключаемой нагрузке, диапазону диаметров, протяженности, условиям прокладки канализационной сети информация по ним указывается в отдельных строках.\nВ случае дифференциации тарифов по периодам действия тарифа информация по ним указывается в отдельных колонках.",{"$f":"strCheckDateOnDP(AC184:AK184,List06_10_DP)","v":""},{"$f":"IF(AND(COUNTIF(AO180:AO180,AO184)>1,AO184<>\"\"),\"ErrUnique:HasDoubleConn\",\"\")","v":""}]
[null,null,null,null,null,null,null,null,null,null,null,null,null,null,null,null,null,null,null,null,null,null,null,null,null,null,null,null,null,null,null,{"$f":"AG184 & \"-\" & AI184","v":"-"},null,null,null,"нет"]
[]
[]
[null,null,null,null,null,null,null,null,null,null,null,null,null,null,null,"Добавить подключаемую нагрузку"]
[null,null,null,null,null,null,null,null,null,null,null,null,"Добавить строку"]
[null,null,null,null,null,null,null,null,null,null,null,null,"Добавить наименование системы водоотведения"]
[null,null,null,null,null,null,null,null,null,null,null,null,"Добавить территорию действия тарифа"]
[null,null,null,null,null,null,null,null,null,null,null,null,"Добавить наименование тарифа"]
[]
[]
[]
[]
[]
[]
[]
[null,null,null,null,null,null,null,null,null,null,null,null,null,null,null,null,"нет",null,1,null,"да",null,1,null,"да",null,1]
[null,null,null,null,null,null,null,null,null,null,null,null,null,null,null,null,null,null,null,null,null,null,null,null,null,null,null,"Добавить условия прокладки сетей"]
[null,null,null,null,null,null,null,null,null,null,null,null,null,null,null,null,null,null,null,null,null,null,null,"Добавить протяженность канализационной сети"]
[]
[]
[]
["et_List07"]
[]
[]
[]
["et_List06"]
[]
[null,null,null,null,1]
[]
["et_List07"]
[]
[null,null,null,null,"1"]
[]
["et_List08"]
[]
[null,null,null,null,"1"]
[]
["et_List00_01","et_List00_02","et_List00_03"]
[]
[null,null,null,null,null,"Адрес регулируемой организации"]
[null,null,null,null,"Юридический адрес"]
[null,null,null,null,"Почтовый адрес"]
[]
[null,null,null,null,null,"Руководитель"]
[null,null,null,null,"Фамилия, имя, отчество"]
[null,null,null,null,"(код) номер телефона"]
[]
[null,null,null,null,null,"Главный бухгалтер"]
[null,null,null,null,"Фамилия, имя, отчество"]
[null,null,null,null,"(код) номер телефона"]
[]
[null,null,null,null,null,"Должностное лицо, ответственное за составление формы"]
[null,null,null,null,"Фамилия, имя, отчество"]
[null,null,null,null,"Должность"]
[null,null,null,null,"(код) номер телефона"]
[null,null,null,null,"e-mail"]
[]
["et_List03"]
[]
["3","",null,null,null,"","","",null,null,null,null,{"$f":"IF(ISERROR(INDEX(kind_of_nameforms,MATCH(E244,kind_of_forms,0),1)),\"\",INDEX(kind_of_nameforms,MATCH(E244,kind_of_forms,0),1))","v":""}]
[]
[]
["et_List01_0"]
[]
[null,"auto",null,1,null,null,0,null,null,"0",null,null,{"$f":"mergeValue(H249)","v":0},null,null,{"$f":"IF(ISERROR(MATCH(Q249,MODesc,0)),\"n\",\"y\")","v":"n"},null,{"$f":"K249&\"(\"&L249&\")\"","v":"()"}]
[null,null,null,null,null,null,null,"Добавить МР"]
[]
["et_List01_1"]
[]
[null,"auto",null,null,null,null,0,null,null,"0",null,null,{"$f":"mergeValue(H254)","v":0},null,null,null,null,{"$f":"K254&\"(\"&L254&\")\"","v":"()"}]
[null,null,null,null,null,null,null,null,null,null,"Добавить МО"]
[]
["et_List01_2"]
[]
[null,"auto",null,null,null,null,null,null,null,0,null,null,{"$f":"mergeValue(H259)","v":0},null,null,null,null,{"$f":"K259&\" (\"&L259&\")\"","v":" ()"}]
[]
[]
["et_List11_1"]
[]
[]
[]
[]
["et_List12_1"]
[]
[null,null,null,null,null,"x","x"]
[]
[]
["et_List12_2"]
[]
[null,null,null,null,null,"x",null,"x"]
[]
[]
["et_List12_3"]
[]
[null,null,null,null,{"$f":"E278","v":0},"x",null,"x"]
[]
[]
["et_List12_4"]
[]
[null,null,null,null,{"$f":"E283","v":0},"x",null,"x"]
[]
[]
["et_List05(_1,_2,_3,_4)"]
[]
[1,null,null,null,null,{"$f":"\"2.\" &mergeValue(A289)","v":"2.1"},"Наименование централизованной системы коммунальной инфраструктуры",null,"Указывается наименование централизованной системы холодного водоснабжения/горячего водоснабжения/водоотведения/теплоснабжения, к которой относится размещаемая информация.\nВ случае наличия нескольких централизованных систем коммунальной инфраструктуры, информация по каждой из них указывается в отдельной строке."]
[null,null,null,null,null,{"$f":"\"3.\" &mergeValue(A290)","v":"3.1"},"Наименование регулируемого вида деятельности",null,"Указывается наименование вида регулируемой деятельности."]
[null,null,null,null,null,{"$f":"\"4.\"&mergeValue(A291)","v":"4.1"},"Территория оказания услуги по регулируемому виду деятельности","x"]
[null,1,null,null,null,{"$f":"\"4.\"&mergeValue(A292) &\".\"&mergeValue(B292)","v":"4.1.1"},"Субъект Российской Федерации",{"$f":"IF(region_name=\"\",\"\",region_name)","v":"Самарская область"},"Указывается наименование субъекта Российской Федерации"]
[null,null,1,null,null,{"$f":"\"4.\"&mergeValue(A293) &\".\"&mergeValue(B293)&\".\"&mergeValue(C293)","v":"4.1.1.1"},"муниципальный район",null,"Указывается наименование муниципального района, на территории которого организация оказывает услуги по регулируемому виду деятельности."]
[null,null,null,1,null,{"$f":"\"4.\"&mergeValue(A294) &\".\"&mergeValue(B294)&\".\"&mergeValue(C294)&\".\"&mergeValue(D294)","v":"4.1.1.1.1"},"муниципальное образование",null,"Указывается наименование и код муниципального района, муниципального образования в соответствии с Общероссийским классификатором территорий муниципальных образований (далее - ОКТМО), входящего в муниципальный район, на территории которого организация оказывает услуги по регулируемому виду деятельности.\nВ случае оказания услуг по регулируемому виду деятельности на территории нескольких муниципальных районов (муниципальных образований) данные по каждому их них указываются в отдельной строке."]
[null,null,null,null,null,null,"Добавить МО"]
[null,null,null,null,null,null,"Добавить МР"]
[null,null,null,null,null,null,"Добавить территорию"]
[null,null,null,null,null,null,"Добавить ЦС"]

{"sheet":"REESTR_MO_FILTER","index":48,"n_rows":0,"n_cols":0,"rows_kept":0,"cut":false,"hidden":true,"merged":[]}

{"sheet":"REESTR_MO","index":49,"n_rows":344,"n_cols":4,"rows_kept":344,"cut":false,"hidden":true,"merged":[]}
["№","МР","МО","МО_ОКТМО"]
[1,"Алексеевский муниципальный район","Алексеевский муниципальный район","36602000"]
[2,"Алексеевский муниципальный район","сельское поселение Авангард","36602404"]
[3,"Алексеевский муниципальный район","сельское поселение Алексеевка","36602408"]
[4,"Алексеевский муниципальный район","сельское поселение Гавриловка","36602412"]
[5,"Алексеевский муниципальный район","сельское поселение Герасимовка","36602416"]
[6,"Алексеевский муниципальный район","сельское поселение Летниково","36602420"]
[7,"Безенчукский муниципальный район","Безенчукский муниципальный район","36604000"]
[8,"Безенчукский муниципальный район","городское поселение Безенчук","36604151"]
[9,"Безенчукский муниципальный район","городское поселение Осинки","36604157"]
[10,"Безенчукский муниципальный район","сельское поселение Васильевка","36604408"]
[11,"Безенчукский муниципальный район","сельское поселение Екатериновка","36604412"]
[12,"Безенчукский муниципальный район","сельское поселение Звезда","36604416"]
[13,"Безенчукский муниципальный район","сельское поселение Купино","36604420"]
[14,"Безенчукский муниципальный район","сельское поселение Натальино","36604424"]
[15,"Безенчукский муниципальный район","сельское поселение Ольгино","36604440"]
[16,"Безенчукский муниципальный район","сельское поселение Переволоки","36604428"]
[17,"Безенчукский муниципальный район","сельское поселение Песочное","36604430"]
[18,"Безенчукский муниципальный район","сельское поселение Преполовенка","36604432"]
[19,"Безенчукский муниципальный район","сельское поселение Прибой","36604436"]
[20,"Богатовский муниципальный район","Богатовский муниципальный район","36606000"]
[21,"Богатовский муниципальный район","сельское поселение Арзамасцевка","36606404"]
[22,"Богатовский муниципальный район","сельское поселение Богатое","36606408"]
[23,"Богатовский муниципальный район","сельское поселение Виловатое","36606412"]
[24,"Богатовский муниципальный район","сельское поселение Максимовка","36606416"]
[25,"Богатовский муниципальный район","сельское поселение Печинено","36606420"]
[26,"Большеглушицкий муниципальный район","Большеглушицкий муниципальный район","36608000"]
[27,"Большеглушицкий муниципальный район","сельское поселение Александровка","36608404"]
[28,"Большеглушицкий муниципальный район","сельское поселение Большая Глушица","36608408"]
[29,"Большеглушицкий муниципальный район","сельское поселение Большая Дергуновка","36608412"]
[30,"Большеглушицкий муниципальный район","сельское поселение Малая Глушица","36608416"]
[31,"Большеглушицкий муниципальный район","сельское поселение Мокша","36608418"]
[32,"Большеглушицкий муниципальный район","сельское поселение Новопавловка","36608420"]
[33,"Большеглушицкий муниципальный район","сельское поселение Фрунзенское","36608424"]
[34,"Большеглушицкий муниципальный район","сельское поселение Южное","36608428"]
[35,"Большечерниговский муниципальный район","Большечерниговский муниципальный район","36610000"]
[36,"Большечерниговский муниципальный район","сельское поселение Августовка","36610404"]
[37,"Большечерниговский муниципальный район","сельское поселение Большая Черниговка","36610412"]
[38,"Большечерниговский муниципальный район","сельское поселение Восточный","36610416"]
[39,"Большечерниговский муниципальный район","сельское поселение Глушицкий","36610408"]
[40,"Большечерниговский муниципальный район","сельское поселение Краснооктябрьский","36610420"]
[41,"Большечерниговский муниципальный район","сельское поселение Пензено","36610424"]
[42,"Большечерниговский муниципальный район","сельское поселение Петровский","36610426"]
[43,"Большечерниговский муниципальный район","сельское поселение Поляков","36610427"]
[44,"Большечерниговский муниципальный район","сельское поселение Украинка","36610428"]
[45,"Борский муниципальный район","Борский муниципальный район","36612000"]
[46,"Борский муниципальный район","сельское поселение Большое Алдаркино","36612404"]
[47,"Борский муниципальный район","сельское поселение Борское","36612408"]
[48,"Борский муниципальный район","сельское поселение Гвардейцы","36612412"]
[49,"Борский муниципальный район","сельское поселение Долматовка","36612416"]
[50,"Борский муниципальный район","сельское поселение Заплавное","36612420"]
[51,"Борский муниципальный район","сельское поселение Коноваловка","36612424"]
[52,"Борский муниципальный район","сельское поселение Новоборское","36612434"]
[53,"Борский муниципальный район","сельское поселение Новый Кутулук","36612432"]
[54,"Борский муниципальный район","сельское поселение Петровка","36612436"]
[55,"Борский муниципальный район","сельское поселение Подгорное","36612440"]
[56,"Борский муниципальный район","сельское поселение Подсолнечное","36612444"]
[57,"Борский муниципальный район","сельское поселение Таволжанка","36612453"]
[58,"Борский муниципальный район","сельское поселение Усманка","36612456"]
[59,"Волжский муниципальный район","Волжский муниципальный район","36614000"]
[60,"Волжский муниципальный район","городское поселение Петра Дубрава","36614155"]
[61,"Волжский муниципальный район","городское поселение Рощинский","36614156"]
[62,"Волжский муниципальный район","городское поселение Смышляевка","36614157"]
[63,"Волжский муниципальный район","сельское поселение Верхняя Подстепновка","36614403"]
[64,"Волжский муниципальный район","сельское поселение Воскресенка","36614404"]
[65,"Волжский муниципальный район","сельское поселение Дубовый умет","36614416"]
[66,"Волжский муниципальный район","сельское поселение Курумоч","36614420"]
[67,"Волжский муниципальный район","сельское поселение Лопатино","36614421"]
[68,"Волжский муниципальный район","сельское поселение Подъем-Михайловка","36614432"]
[69,"Волжский муниципальный район","сельское поселение Просвет","36614436"]
[70,"Волжский муниципальный район","сельское поселение Рождествено","36614440"]
[71,"Волжский муниципальный район","сельское поселение Спиридоновка","36614444"]
[72,"Волжский муниципальный район","сельское поселение Сухая Вязовка","36614448"]
[73,"Волжский муниципальный район","сельское поселение Черновский","36614452"]
[74,"Волжский муниципальный район","сельское поселение Черноречье","36614456"]
[75,"Елховский муниципальный район","Елховский муниципальный район","36615000"]
[76,"Елховский муниципальный район","сельское поселение Березовка","36615405"]
[77,"Елховский муниципальный район","сельское поселение Елховка","36615420"]
[78,"Елховский муниципальный район","сельское поселение Красное Поселение","36615440"]
[79,"Елховский муниципальный район","сельское поселение Красные Дома","36615435"]
[80,"Елховский муниципальный район","сельское поселение Никитинка","36615450"]
[81,"Елховский муниципальный район","сельское поселение Сухие Аврали","36615460"]
[82,"Елховский муниципальный район","сельское поселение Теплый Стан","36615465"]
[83,"Исаклинский муниципальный район","Исаклинский муниципальный район","36616000"]
[84,"Исаклинский муниципальный район","сельское поселение Большое Микушкино","36616420"]
[85,"Исаклинский муниципальный район","сельское поселение Два Ключа","36616404"]
[86,"Исаклинский муниципальный район","сельское поселение Исаклы","36616408"]
[87,"Исаклинский муниципальный район","сельское поселение Ключи","36616416"]
[88,"Исаклинский муниципальный район","сельское поселение Мордово-Ишуткино","36616412"]
[89,"Исаклинский муниципальный район","сельское поселение Новое Ганькино","36616428"]
[90,"Исаклинский муниципальный район","сельское поселение Новое Якушкино","36616432"]
[91,"Исаклинский муниципальный район","сельское поселение Старое Вечканово","36616436"]
[92,"Камышлинский муниципальный район","Камышлинский муниципальный район","36617000"]
[93,"Камышлинский муниципальный район","сельское поселение Байтуган","36617404"]
[94,"Камышлинский муниципальный район","сельское поселение Балыкла","36617408"]
[95,"Камышлинский муниципальный район","сельское поселение Ермаково","36617416"]
[96,"Камышлинский муниципальный район","сельское поселение Камышла","36617420"]
[97,"Камышлинский муниципальный район","сельское поселение Новое Усманово","36617436"]
[98,"Камышлинский муниципальный район","сельское поселение Старое Усманово","36617458"]
[99,"Кинель-Черкасский муниципальный район","Кинель-Черкасский муниципальный район","36620000"]
[100,"Кинель-Черкасский муниципальный район","Межселенная территория Кинель-Черкасского муниципального района, включающая территорию чересполосного земельного участка","36620701"]
[101,"Кинель-Черкасский муниципальный район","сельское поселение Александровка","36620404"]
[102,"Кинель-Черкасский муниципальный район","сельское поселение Березняки","36620408"]
[103,"Кинель-Черкасский муниципальный район","сельское поселение Ерзовка","36620420"]
[104,"Кинель-Черкасский муниципальный район","сельское поселение Кабановка","36620428"]
[105,"Кинель-Черкасский муниципальный район","сельское поселение Кинель-Черкассы","36620432"]
[106,"Кинель-Черкасский муниципальный район","сельское поселение Красная Горка","36620440"]
[107,"Кинель-Черкасский муниципальный район","сельское поселение Кротовка","36620444"]
[108,"Кинель-Черкасский муниципальный район","сельское поселение Муханово","36620448"]
[109,"Кинель-Черкасский муниципальный район","сельское поселение Новые Ключи","36620452"]
[110,"Кинель-Черкасский муниципальный район","сельское поселение Подгорное","36620453"]
[111,"Кинель-Черкасский муниципальный район","сельское поселение Садгород","36620458"]
[112,"Кинель-Черкасский муниципальный район","сельское поселение Тимашево","36620466"]
[113,"Кинель-Черкасский муниципальный район","сельское поселение Черновка","36620468"]
[114,"Кинельский муниципальный район","Кинельский муниципальный район","36618000"]
[115,"Кинельский муниципальный район","сельское поселение Алакаевка","36618404"]
[116,"Кинельский муниципальный район","сельское поселение Бобровка","36618408"]
[117,"Кинельский муниципальный район","сельское поселение Богдановка","36618412"]
[118,"Кинельский муниципальный район","сельское поселение Георгиевка","36618416"]
[119,"Кинельский муниципальный район","сельское поселение Домашка","36618420"]
[120,"Кинельский муниципальный район","сельское поселение Кинельский","36618424"]
[121,"Кинельский муниципальный район","сельское поселение Комсомольский","36618428"]
[122,"Кинельский муниципальный район","сельское поселение Красносамарское","36618432"]
[123,"Кинельский муниципальный район","сельское поселение Малая Малышевка","36618436"]
[124,"Кинельский муниципальный район","сельское поселение Новый Сарбай","36618440"]
[125,"Кинельский муниципальный район","сельское поселение Сколково","36618444"]
[126,"Кинельский муниципальный район","сельское поселение Чубовка","36618448"]
[127,"Клявлинский муниципальный район","Клявлинский муниципальный район","36622000"]
[128,"Клявлинский муниципальный район","сельское поселение Борискино-Игар","36622412"]
[129,"Клявлинский муниципальный район","сельское поселение Назаровка","36622460"]
[130,"Клявлинский муниципальный район","сельское поселение Старое Семенкино","36622452"]
[131,"Клявлинский муниципальный район","сельское поселение Старый Маклауш","36622448"]
[132,"Клявлинский муниципальный район","сельское поселение Черный Ключ","36622468"]
[133,"Клявлинский муниципальный район","сельское поселение станция Клявлино","36622424"]
[134,"Кошкинский муниципальный район","Кошкинский муниципальный район","36624000"]
[135,"Кошкинский муниципальный район","сельское поселение Большая Константиновка","36624408"]
[136,"Кошкинский муниципальный район","сельское поселение Большая Романовка","36624412"]
[137,"Кошкинский муниципальный район","сельское поселение Большое Ермаково","36624424"]
[138,"Кошкинский муниципальный район","сельское поселение Кошки","36624432"]
[139,"Кошкинский муниципальный район","сельское поселение Надеждино","36624448"]
[140,"Кошкинский муниципальный район","сельское поселение Нижняя Быковка","36624452"]
[141,"Кошкинский муниципальный район","сельское поселение Новая Кармала","36624428"]
[142,"Кошкинский муниципальный район","сельское поселение Орловка","36624458"]
[143,"Кошкинский муниципальный район","сельское поселение Русская Васильевка","36624416"]
[144,"Кошкинский муниципальный район","сельское поселение Старое Максимкино","36624464"]
[145,"Кошкинский муниципальный район","сельское поселение Степная Шентала","36624468"]
[146,"Кошкинский муниципальный район","сельское поселение Четыровка","36624480"]
[147,"Кошкинский муниципальный район","сельское поселение Шпановка","36624484"]
[148,"Красноармейский муниципальный район","Красноармейский муниципальный район","36626000"]
[149,"Красноармейский муниципальный район","сельское поселение Алексеевский","36626402"]
[150,"Красноармейский муниципальный район","сельское поселение Андросовка","36626404"]
[151,"Красноармейский муниципальный район","сельское поселение Волчанка","36626408"]
[152,"Красноармейский муниципальный район","сельское поселение Гражданский","36626412"]
[153,"Красноармейский муниципальный район","сельское поселение Кировский","36626416"]
[154,"Красноармейский муниципальный район","сельское поселение Колывань","36626420"]
[155,"Красноармейский муниципальный район","сельское поселение Красноармейское","36626424"]
[156,"Красноармейский муниципальный район","сельское поселение Криволучье-Ивановка","36626426"]
[157,"Красноармейский муниципальный район","сельское поселение Куйбышевский","36626428"]
[158,"Красноармейский муниципальный район","сельское поселение Ленинский","36626432"]
[159,"Красноармейский муниципальный район","сельское поселение Павловка","36626434"]
[160,"Красноармейский муниципальный район","сельское поселение Чапаевский","36626436"]
[161,"Красноярский муниципальный район","Красноярский муниципальный район","36628000"]
[162,"Красноярский муниципальный район","городское поселение Волжский","36628155"]
[163,"Красноярский муниципальный район","городское поселение Мирный","36628158"]
[164,"Красноярский муниципальный район","городское поселение Новосемейкино","36628163"]
[165,"Красноярский муниципальный район","сельское поселение Большая Каменка","36628404"]
[166,"Красноярский муниципальный район","сельское поселение Большая Раковка","36628408"]
[167,"Красноярский муниципальный район","сельское поселение Коммунарский","36628412"]
[168,"Красноярский муниципальный район","сельское поселение Красный Яр","36628416"]
[169,"Красноярский муниципальный район","сельское поселение Новый Буян","36628420"]
[170,"Красноярский муниципальный район","сельское поселение Светлое Поле","36628424"]
[171,"Красноярский муниципальный район","сельское поселение Старая Бинарадка","36628428"]
[172,"Красноярский муниципальный район","сельское поселение Хилково","36628432"]
[173,"Красноярский муниципальный район","сельское поселение Хорошенькое","36628436"]
[174,"Красноярский муниципальный район","сельское поселение Шилан","36628440"]
[175,"Нефтегорский муниципальный район","Нефтегорский муниципальный район","36630000"]
[176,"Нефтегорский муниципальный район","городское поселение Нефтегорск","36630101"]
[177,"Нефтегорский муниципальный район","сельское поселение Бариновка","36630402"]
[178,"Нефтегорский муниципальный район","сельское поселение Богдановка","36630404"]
[179,"Нефтегорский муниципальный район","сельское поселение Дмитриевка","36630408"]
[180,"Нефтегорский муниципальный район","сельское поселение Зуевка","36630412"]
[181,"Нефтегорский муниципальный район","сельское поселение Кулешовка","36630413"]
[182,"Нефтегорский муниципальный район","сельское поселение Покровка","36630414"]
[183,"Нефтегорский муниципальный район","сельское поселение Семеновка","36630416"]
[184,"Нефтегорский муниципальный район","сельское поселение Утевка","36630420"]
[185,"Пестравский муниципальный район","Пестравский муниципальный район","36632000"]
[186,"Пестравский муниципальный район","сельское поселение Высокое","36632404"]
[187,"Пестравский муниципальный район","сельское поселение Красная Поляна","36632408"]
[188,"Пестравский муниципальный район","сельское поселение Майское","36632412"]
[189,"Пестравский муниципальный район","сельское поселение Марьевка","36632416"]
[190,"Пестравский муниципальный район","сельское поселение Михайло-Овсянка","36632420"]
[191,"Пестравский муниципальный район","сельское поселение Мосты","36632424"]
[192,"Пестравский муниципальный район","сельское поселение Падовка","36632428"]
[193,"Пестравский муниципальный район","сельское поселение Пестравка","36632432"]
[194,"Похвистневский муниципальный район","Похвистневский муниципальный район","36634000"]
[195,"Похвистневский муниципальный район","сельское поселение Алькино","36634408"]
[196,"Похвистневский муниципальный район","сельское поселение Большой Толкай","36634412"]
[197,"Похвистневский муниципальный район","сельское поселение Красные Ключи","36634426"]
[198,"Похвистневский муниципальный район","сельское поселение Кротково","36634428"]
[199,"Похвистневский муниципальный район","сельское поселение Малое Ибряйкино","36634420"]
[200,"Похвистневский муниципальный район","сельское поселение Малый Толкай","36634432"]
[201,"Похвистневский муниципальный район","сельское поселение Мочалеевка","36634436"]
[202,"Похвистневский муниципальный район","сельское поселение Новое Мансуркино","36634440"]
[203,"Похвистневский муниципальный район","сельское поселение Подбельск","36634444"]
[204,"Похвистневский муниципальный район","сельское поселение Рысайкино","36634446"]
[205,"Похвистневский муниципальный район","сельское поселение Савруха","36634448"]
[206,"Похвистневский муниципальный район","сельское поселение Среднее Аверкино","36634404"]
[207,"Похвистневский муниципальный район","сельское поселение Староганькино","36634460"]
[208,"Похвистневский муниципальный район","сельское поселение Старопохвистнево","36634468"]
[209,"Похвистневский муниципальный район","сельское поселение Старый Аманак","36634456"]
[210,"Приволжский муниципальный район","Приволжский муниципальный район","36636000"]
[211,"Приволжский муниципальный район","сельское поселение Давыдовка","36636404"]
[212,"Приволжский муниципальный район","сельское поселение Заволжье","36636405"]
[213,"Приволжский муниципальный район","сельское поселение Ильмень","36636406"]
[214,"Приволжский муниципальный район","сельское поселение Новоспасский","36636415"]
[215,"Приволжский муниципальный район","сельское поселение Обшаровка","36636408"]
[216,"Приволжский муниципальный район","сельское поселение Приволжье","36636412"]
[217,"Приволжский муниципальный район","сельское поселение Спасское","36636416"]
[218,"Сергиевский муниципальный район","Сергиевский муниципальный район","36638000"]
[219,"Сергиевский муниципальный район","городское поселение Суходол","36638158"]
[220,"Сергиевский муниципальный район","сельское поселение Антоновка","36638403"]
[221,"Сергиевский муниципальный район","сельское поселение Верхняя Орлянка","36638404"]
[222,"Сергиевский муниципальный район","сельское поселение Воротнее","36638406"]
[223,"Сергиевский муниципальный район","сельское поселение Елшанка","36638408"]
[224,"Сергиевский муниципальный район","сельское поселение Захаркино","36638409"]
[225,"Сергиевский муниципальный район","сельское поселение Калиновка","36638410"]
[226,"Сергиевский муниципальный район","сельское поселение Кандабулак","36638412"]
[227,"Сергиевский муниципальный район","сельское поселение Кармало-Аделяково","36638416"]
[228,"Сергиевский муниципальный район","сельское поселение Красносельское","36638420"]
[229,"Сергиевский муниципальный район","сельское поселение Кутузовский","36638424"]
[230,"Сергиевский муниципальный район","сельское поселение Липовка","36638426"]
[231,"Сергиевский муниципальный район","сельское поселение Светлодольск","36638430"]
[232,"Сергиевский муниципальный район","сельское поселение Сергиевск","36638432"]
[233,"Сергиевский муниципальный район","сельское поселение Серноводск","36638435"]
[234,"Сергиевский муниципальный район","сельское поселение Сургут","36638438"]
[235,"Сергиевский муниципальный район","сельское поселение Черновка","36638444"]
[236,"Ставропольский муниципальный район","Ставропольский муниципальный район","36640000"]
[237,"Ставропольский муниципальный район","сельское поселение Александровка","36640403"]
[238,"Ставропольский муниципальный район","сельское поселение Бахилово","36640406"]
[239,"Ставропольский муниципальный район","сельское поселение Большая Рязань","36640409"]
[240,"Ставропольский муниципальный район","сельское поселение Васильевка","36640412"]
[241,"Ставропольский муниципальный район","сельское поселение Верхнее Санчелеево","36640415"]
[242,"Ставропольский муниципальный район","сельское поселение Верхние Белозерки","36640414"]
[243,"Ставропольский муниципальный район","сельское поселение Выселки","36640418"]
[244,"Ставропольский муниципальный район","сельское поселение Жигули","36640421"]
[245,"Ставропольский муниципальный район","сельское поселение Кирилловка","36640423"]
[246,"Ставропольский муниципальный район","сельское поселение Луначарский","36640424"]
[247,"Ставропольский муниципальный район","сельское поселение Мусорка","36640427"]
[248,"Ставропольский муниципальный район","сельское поселение Нижнее Санчелеево","36640430"]
[249,"Ставропольский муниципальный район","сельское поселение Новая Бинарадка","36640433"]
[250,"Ставропольский муниципальный район","сельское поселение Осиновка","36640439"]
[251,"Ставропольский муниципальный район","сельское поселение Пискалы","36640436"]
[252,"Ставропольский муниципальный район","сельское поселение Подстепки","36640440"]
[253,"Ставропольский муниципальный район","сельское поселение Приморский","36640442"]
[254,"Ставропольский муниципальный район","сельское поселение Севрюкаево","36640448"]
[255,"Ставропольский муниципальный район","сельское поселение Сосновый Солонец","36640451"]
[256,"Ставропольский муниципальный район","сельское поселение Ташелка","36640454"]
[257,"Ставропольский муниципальный район","сельское поселение Тимофеевка","36640445"]
[258,"Ставропольский муниципальный район","сельское поселение Узюково","36640457"]
[259,"Ставропольский муниципальный район","сельское поселение Хрящевка","36640460"]
[260,"Ставропольский муниципальный район","сельское поселение Ягодное","36640463"]
[261,"Сызранский муниципальный район","Сызранский муниципальный район","36642000"]
[262,"Сызранский муниципальный район","городское поселение Балашейка","36642154"]
[263,"Сызранский муниципальный район","городское поселение Междуреченск","36642156"]
[264,"Сызранский муниципальный район","сельское поселение Варламово","36642406"]
[265,"Сызранский муниципальный район","сельское поселение Волжское","36642408"]
[266,"Сызранский муниципальный район","сельское поселение Жемковка","36642412"]
[267,"Сызранский муниципальный район","сельское поселение Заборовка","36642416"]
[268,"Сызранский муниципальный район","сельское поселение Ивашевка","36642418"]
[269,"Сызранский муниципальный район","сельское поселение Новая Рачейка","36642424"]
[270,"Сызранский муниципальный район","сельское поселение Новозаборовский","36642426"]
[271,"Сызранский муниципальный район","сельское поселение Печерское","36642428"]
[272,"Сызранский муниципальный район","сельское поселение Рамено","36642431"]
[273,"Сызранский муниципальный район","сельское поселение Старая Рачейка","36642436"]
[274,"Сызранский муниципальный район","сельское поселение Троицкое","36642440"]
[275,"Сызранский муниципальный район","сельское поселение Усинское","36642444"]
[276,"Сызранский муниципальный район","сельское поселение Чекалино","36642449"]
[277,"Хворостянский муниципальный район","Хворостянский муниципальный район","36644000"]
[278,"Хворостянский муниципальный район","сельское поселение Абашево","36644402"]
[279,"Хворостянский муниципальный район","сельское поселение Владимировка","36644403"]
[280,"Хворостянский муниципальный район","сельское поселение Липовка","36644406"]
[281,"Хворостянский муниципальный район","сельское поселение Масленниково","36644408"]
[282,"Хворостянский муниципальный район","сельское поселение Новокуровка","36644416"]
[283,"Хворостянский муниципальный район","сельское поселение Новотулка","36644420"]
[284,"Хворостянский муниципальный район","сельское поселение Прогресс","36644421"]
[285,"Хворостянский муниципальный район","сельское поселение Романовка","36644422"]
[286,"Хворостянский муниципальный район","сельское поселение Соловьево","36644425"]
[287,"Хворостянский муниципальный район","сельское поселение Студенецы","36644423"]
[288,"Хворостянский муниципальный район","сельское поселение Хворостянка","36644424"]
[289,"Челно-Вершинский муниципальный район","Челно-Вершинский муниципальный район","36646000"]
[290,"Челно-Вершинский муниципальный район","сельское поселение Девлезеркино","36646404"]
[291,"Челно-Вершинский муниципальный район","сельское поселение Каменный Брод","36646412"]
[292,"Челно-Вершинский муниципальный район","сельское поселение Краснояриха","36646416"]
[293,"Челно-Вершинский муниципальный район","сельское поселение Красный Строитель","36646408"]
[294,"Челно-Вершинский муниципальный район","сельское поселение Новое Аделяково","36646419"]
[295,"Челно-Вершинский муниципальный район","сельское поселение Озерки","36646420"]
[296,"Челно-Вершинский муниципальный район","сельское поселение Сиделькино","36646424"]
[297,"Челно-Вершинский муниципальный район","сельское поселение Токмакла","36646428"]
[298,"Челно-Вершинский муниципальный район","сельское поселение Челно-Вершины","36646432"]
[299,"Челно-Вершинский муниципальный район","сельское поселение Чувашское Урметьево","36646440"]
[300,"Челно-Вершинский муниципальный район","сельское поселение Эштебенькино","36646444"]
[301,"Шенталинский муниципальный район","Шенталинский муниципальный район","36648000"]
[302,"Шенталинский муниципальный район","сельское поселение Артюшкино","36648404"]
[303,"Шенталинский муниципальный район","сельское поселение Васильевка","36648432"]
[304,"Шенталинский муниципальный район","сельское поселение Денискино","36648408"]
[305,"Шенталинский муниципальный район","сельское поселение Каменка","36648412"]
[306,"Шенталинский муниципальный район","сельское поселение Канаш","36648414"]
[307,"Шенталинский муниципальный район","сельское поселение Салейкино","36648424"]
[308,"Шенталинский муниципальный район","сельское поселение Старая Шентала","36648440"]
[309,"Шенталинский муниципальный район","сельское поселение Туарма","36648444"]
[310,"Шенталинский муниципальный район","сельское поселение Четырла","36648446"]
[311,"Шенталинский муниципальный район","сельское поселение Шентала","36648448"]
[312,"Шигонский муниципальный район","Шигонский муниципальный район","36650000"]
[313,"Шигонский муниципальный район","сельское поселение Береговой","36650416"]
[314,"Шигонский муниципальный район","сельское поселение Бичевная","36650406"]
[315,"Шигонский муниципальный район","сельское поселение Волжский Утес","36650407"]
[316,"Шигонский муниципальный район","сельское поселение Малячкино","36650410"]
[317,"Шигонский муниципальный район","сельское поселение Муранка","36650411"]
[318,"Шигонский муниципальный район","сельское поселение Новодевичье","36650412"]
[319,"Шигонский муниципальный район","сельское поселение Пионерский","36650420"]
[320,"Шигонский муниципальный район","сельское поселение Подвалье","36650424"]
[321,"Шигонский муниципальный район","сельское поселение Суринск","36650432"]
[322,"Шигонский муниципальный район","сельское поселение Тайдаково","36650436"]
[323,"Шигонский муниципальный район","сельское поселение Усолье","36650440"]
[324,"Шигонский муниципальный район","сельское поселение Шигоны","36650444"]
[325,"городской округ Жигулевск","городской округ Жигулевск","36704000"]
[326,"городской округ Кинель","городской округ Кинель","36708000"]
[327,"городской округ Новокуйбышевск","городской округ Новокуйбышевск","36713000"]
[328,"городской округ Октябрьск","городской округ Октябрьск","36718000"]
[329,"городской округ Отрадный","городской округ Отрадный","36724000"]
[330,"городской округ Похвистнево","городской округ Похвистнево","36727000"]
[331,"городской округ Самара","Железнодорожный","36701305"]
[332,"городской округ Самара","Кировский","36701310"]
[333,"городской округ Самара","Красноглинский","36701315"]
[334,"городской округ Самара","Куйбышевский","36701320"]
[335,"городской округ Самара","Ленинский","36701325"]
[336,"городской округ Самара","Октябрьский","36701330"]
[337,"городской округ Самара","Промышленный","36701335"]
[338,"городской округ Самара","Самарский","36701340"]
[339,"городской округ Самара","Советский","36701345"]
[340,"городской округ Самара","городской округ Самара","36701000"]
[341,"городской округ Сызрань","городской округ Сызрань","36735000"]
[342,"городской округ Тольятти","городской округ Тольятти","36740000"]
[343,"городской округ Чапаевск","городской округ Чапаевск","36750000"]

{"sheet":"TEHSHEET","index":50,"n_rows":87,"n_cols":53,"rows_kept":87,"cut":false,"hidden":true,"merged":[[0,51,0,52]]}
["REGION","year_list1","year_list","logical","Месяц\n(MONTH)","Квартал\n(QUARTER)","Месяц\n(kind_of_publication)","НДС\n/kind_of_NDS/","Номер СЦХВ(СЦВО)\n/SKI_number/","Единица измерения объема оказываемых услуг ГВС\n/kind_of_unit_GVS/","Метод регулирования\n/kind_of_control_method/",null,null,"Вид деятельности, на которую установлен тариф /kind_of_activity_WARM/","Вид теплоносителя\n(kind_of_heat_transfer)","Тип данных\n(kind_of_data_type)","Схема подключения\n(kind_of_scheme_in)\n(kind_of_scheme_in2)","Группы потребителей\n(kind_of_cons)","Тип прокладки тепловых сетей\n(kind_of_nets)","Диапазаны диаметров тепловых сетей\n(kind_of_diameters)","Подключаемая тепловая нагрузка\n(kind_of_load)",null,"Форма 2, таблица Х","виды тарифа\n/kind_group_rates/","Заголовок таблицы",null,"name_rates_4",null,"name_rates_8",null,null,"Подключаемая тепловая нагрузка\n(kind_of_load3)",null,"Вид теплоносителя\n(kind_of_heat_transfer2)","Вид теплоносителя\n(kind_of_heat_transfer3)",null,"Вид топлива\n(kind_of_fuel)",null,"Способ закупки товаров\n(kind_of_zak)",null,null,"виды тарифа\n/kind_group_rates_load/","виды тарифа\n/kind_group_rates_load_filter/",null,"виды признаков дифференциации\n/kind_of_diff/",null,"Диапазаны диаметров водопроводных сетей\n(kind_of_diameters2)",null,"List_H","List_M",null,"Перечень форм\n(kind_of_forms)"]
["Алтайский край",2000,2013,"да","январь","I квартал","На официальном сайте организации","общий","1","тыс.куб.м/сутки","метод экономически обоснованных расходов (затрат)","метод экономически обоснованных расходов (затрат)",1,"Передача+Сбыт","Без дифференциации","первичное раскрытие информации","без дифференциации","организации-перепродавцы","надземная (наземная)","50 - 250 мм","не превышает 0,1 Гкал/ч",1,null,"Тариф на водоотведение","Информация о предложении об установлении тарифов на водоотведение",null,"Тариф на холодную воду питьевую","Тариф на холодную воду питьевую","Плата за услуги по поддержанию резервной тепловой мощности при отсутствии потребления тепловой энергии для отдельных категорий (групп) социально значимых потребителей","Плата за услуги по поддержанию резервной тепловой мощности при отсутствии потребления тепловой энергии для отдельных категорий (групп) социально значимых потребителей",null,"не превышает 0,1 Гкал/ч",null,"Вода","Вода",null,"Газ природный по регулируемой цене",null,"Конкурс",null,null,"Тариф на подключение (технологическое присоединение) к централизованной системе водоотведения в индивидуальном порядке","Тариф на подключение (технологическое присоединение) к централизованной системе водоотведения в индивидуальном порядке",null,"объемы потребления воды абонентами",null,"40 мм и менее",null,"00","00",null,"Форма 1.0.1","Основные параметры раскрываемой информации"]
["Амурская область",2001,2014,"нет","февраль","II квартал","На сайте регулирующего органа","общий с учетом освобождения от уплаты НДС","2","Гкал/ч","метод индексации установленных тарифов","метод индексации установленных тарифов",2,"Передача","Горячая вода","изменения в раскрытой ранее информации","к коллектору источника тепловой энергии","бюджетные организации","подземная (канальная)","251 - 400 мм","более 0,1 Гкал/ч и не превышает 1,5 Гкал/ч",2,null,"Тариф на транспортировку сточных вод","Информация о предложении об установлении тарифов на транспортировку сточных вод",null,"Тариф на холодную воду артезианскую","Тариф на холодную воду артезианскую","Плата за услуги по поддержанию резервной тепловой мощности, оказываемые регулируемой организацией, мощность источников тепловой энергии которой используется для поддержания резервной мощности в соответствии со схемой теплоснабжения","Плата за услуги по поддержанию резервной тепловой мощности, оказываемые регулируемой организацией, мощность источников тепловой энергии которой используется для поддержания резервной мощности в соответствии со схемой теплоснабжения",null,"более 0,1 Гкал/ч и не превышает 1,5 Гкал/ч",null,"Отборный пар, 1,2-2,5 кг/см2","Пар",null,"Газ природный по нерегулируемой цене",null,"Аукцион",null,null,"Тариф на подключение (технологическое присоединение) к централизованной системе водоотведения","Тариф на подключение (технологическое присоединение) к централизованной системе водоотведения",null,"соответствие качества питьевой воды и горячей воды требованиям, установленным санитарными нормами и правилами",null,"от 41 мм до 70 мм включительно",null,"01","01",null,"Форма 3.2","Информация о величинах тарифов на водоотведение, транспортировку воды"]
["Архангельская область",2002,2015,null,"март","III квартал",null,"специальный (упрощенная система налогообложения, система налогообложения для сельскохозяйственных производителей)","3","куб.м/ч","метод обеспечения доходности инвестированного капитала","метод обеспечения доходности инвестированного капитала",3,"производство комбинированная выработка","Холодная вода",null,"к тепловой сети без дополнительного преобразования на тепловых пунктах, эксплуатируемых теплоснабжающей организацией","население","подземная (бесканальная)","401 - 550 мм","превышает 1,5 Гкал/ч при наличии технической возможности подключения",3,null,222,null,null,"Тариф на холодную воду поверхностную","Тариф на холодную воду поверхностную","Плата за услуги по поддержанию резервной тепловой мощности, оказываемые регулируемой организацией, мощность тепловых сетей которой используется для поддержания резервной мощности в соответствии со схемой теплоснабжения","Плата за услуги по поддержанию резервной тепловой мощности, оказываемые регулируемой организацией, мощность тепловых сетей которой используется для поддержания резервной мощности в соответствии со схемой теплоснабжения",null,"превышает 1,5 Гкал/ч при наличии технической возможности подключения",null,"Отборный пар, 2,5-7 кг/см2",null,null,"Уголь",null,"Аукцион в электронной форме",null,null,"Тариф на транспортировку сточных вод","Тариф на транспортировку сточных вод",null,"иное",null,"от 71 мм до 100 мм включительно",null,"02","02",null,"Форма 3.4","Информация о величинах тарифов на подключение к централизованной системе водоотведения"]
["Астраханская область",2003,2016,null,"апрель","IV квартал",null,null,"4",null,"метод сравнения аналогов","метод сравнения аналогов",4,"производство (некомбинированная выработка)+передача+сбыт","Вода",null,"к тепловой сети после тепловых пунктов (на тепловых пунктах), эксплуатируемых теплоснабжающей организацией","прочие",null,"551 - 700 мм","превышает 1,5 Гкал/ч при отсутствии технической возможности подключения",4,null,333,null,1,"Добавить вариант …","Добавить вариант …",null,null,null,"не известна",null,"Отборный пар, 7-13 кг/см2",null,null,"Мазут",null,"Запрос котировок",null,null,"Тариф на водоотведение",null,null,null,null,"от 101 мм до 150 мм включительно",null,"03","03",null,"Форма 3.9","Информация об условиях, на которых осуществляется поставка регулируемых товаров и (или) оказание регулируемых услуг"]
["Белгородская область",2004,2017,null,"май",null,"НДС общий\n/kind_of_NDS_tariff/","НДС\n/kind_of_NDS_tariff/","5","Вид тарифа на передачу тепловой энергии /kind_of_tariff_unit/",null,null,null,"производство (некомбинированная выработка)+передача","Пар",null,null,"без дифференциации",null,"701 мм и выше","не известна",5,null,55,55,null,null,null,null,null,null,null,null,"Отборный пар, > 13 кг/см2",null,null,"Дизельное топливо",null,"Единственный поставщик",null,null,null,null,null,null,null,"от 151 мм до 200 мм включительно",null,"04","04",null,"Форма 3.10","Информация о порядке выполнения технологических, технических и других мероприятий, связанных с подключением к централизованной системе водоотведения"]
["Брянская область",2005,null,null,"июнь",null,"тариф указан с НДС для плательщиков НДС","тариф для организаций не являющихся плательщиками НДС","6","руб./Гкал/ч/мес",null,null,null,"производство (некомбинированная выработка)+сбыт","Отборный пар, 1,2-2,5 кг/см2",null,null,null,null,null,"нет","6",null,66666,null,null,null,null,null,null,null,null,null,"Острый и редуцированный пар",null,null,"Дрова",null,"Иное",null,null,null,null,null,null,null,"от 201 мм до 250 мм включительно",null,"05","05"]
["Владимирская область",2006,null,null,"июль",null,"тариф указан без НДС для плательщиков НДС","тариф не утверждался","7","руб./Гкал",null,null,null,"производство (некомбинированная выработка)","Отборный пар, 2,5-7 кг/см2",null,null,null,null,null,null,"7",null,77777,null,null,null,null,null,null,null,null,null,null,null,null,"Электроэнергия",null,null,null,null,null,null,null,null,null,"от 250  мм и более",null,"06","06"]
["Волгоградская область",2007,null,null,"август",null,"тариф не утверждался",null,"8",null,null,null,null,null,"Отборный пар, 7-13 кг/см2",null,null,null,null,null,null,"8",null,8888,null,1,null,null,null,null,null,null,null,null,null,null,"Прочее",null,null,null,null,null,null,null,null,null,null,null,"07","07"]
["Вологодская область",2008,null,null,"сентябрь",null,null,null,"9",null,null,null,null,null,"Отборный пар, > 13 кг/см2",null,null,null,null,null,null,"9",null,"Тариф на подключение (технологическое присоединение) к централизованной системе водоотведения в индивидуальном порядке","Информация о предложении об установлении платы за подключение к централизованной системе водоотведения (индивидуальной)",null,null,null,null,null,null,null,null,null,null,null,null,null,null,null,null,null,null,null,null,null,null,null,"08","08"]
["Воронежская область",2009,null,null,"октябрь",null,null,null,"10",null,null,null,null,null,"Острый и редуцированный пар",null,null,null,null,null,null,"10",null,"Тариф на подключение (технологическое присоединение) к централизованной системе водоотведения","Информация о предложении об установлении платы за подключение к централизованной системе водоотведения",null,null,null,null,null,null,null,null,null,null,null,null,null,null,null,null,null,null,null,null,null,null,null,"09","09"]
["г.Байконур",2010,null,null,"ноябрь",null,"НДС общий люди\n/kind_of_NDS_tariff_people/","НДС\n/kind_of_NDS_tariff_people/","11",null,null,null,null,null,"Горячая вода в системе централизованного теплоснабжения на отопление",null,null,null,null,null,null,null,null,null,null,null,null,null,null,null,null,null,null,null,null,null,null,null,null,null,null,null,null,null,null,null,null,null,"10","10"]
["г. Москва",2011,null,null,"декабрь",null,"тариф с НДС организаций-плательщиков НДС","тариф организаций не являющихся плательщиками НДС","12",null,null,null,null,null,"Прочее",null,null,null,null,null,null,null,null,null,null,null,null,null,null,null,null,null,null,null,null,null,null,null,null,null,null,null,null,null,null,null,null,null,"11","11"]
["г.Санкт-Петербург",2012,null,null,null,null,"тариф не утверждался","тариф не утверждался","13",null,null,null,null,"Вид деятельности /kind_of_activity/",null,null,null,null,null,null,null,null,null,null,null,null,null,null,null,null,null,null,null,null,null,null,null,null,null,null,null,null,null,null,null,null,null,null,"12","12"]
["г.Севастополь",2013,null,null,null,null,null,null,"14",null,null,null,null,"производство тепловой энергии (мощности) в режиме комбинированной выработки электрической и тепловой энергии источниками тепловой энергии с установленной генерирующей мощностью производства электрической энергии 25 МВт и более",null,null,null,null,null,null,null,null,null,null,null,null,null,null,null,null,null,null,null,null,null,null,null,null,null,null,null,null,null,null,null,null,null,null,"13","13"]
["Еврейская автономная область",2014,null,null,null,null,null,null,"15",null,null,null,null,"производство тепловой энергии (мощности) в режиме комбинированной выработки электрической и тепловой энергии источниками тепловой энергии с установленной генерирующей мощностью производства электрической энергии менее 25 МВт",null,null,null,null,null,null,null,null,null,null,null,null,null,null,null,null,null,null,null,null,null,null,null,null,null,null,null,null,null,null,null,null,null,null,"14","14"]
["Забайкальский край",2015,null,null,null,null,null,null,"16",null,null,null,null,"производство тепловой энергии (мощности) не в режиме комбинированной выработки электрической и тепловой энергии источниками тепловой энергии",null,null,null,null,null,null,null,null,null,null,null,null,null,null,null,null,null,null,null,null,null,null,null,null,null,null,null,null,null,null,null,null,null,null,"15","15"]
["Ивановская область",2016,null,null,null,null,null,null,"17",null,null,null,null,"производство теплоносителя",null,null,null,null,null,null,null,null,null,null,null,null,null,null,null,null,null,null,null,null,null,null,null,null,null,null,null,null,null,null,null,null,null,null,"16","16"]
["Иркутская область",2017,null,null,null,null,null,null,"18",null,null,null,null,"передача тепловой энергии и теплоносителя",null,null,null,null,null,null,null,null,null,null,null,null,null,null,null,null,null,null,null,null,null,null,null,null,null,null,null,null,null,null,null,null,null,null,"17","17"]
["Кабардино-Балкарская республика",2018,null,null,null,null,null,null,"19",null,null,null,null,"сбыт тепловой энергии и теплоносителя",null,null,null,null,null,null,null,null,null,null,null,null,null,null,null,null,null,null,null,null,null,null,null,null,null,null,null,null,null,null,null,null,null,null,"18","18"]
["Калининградская область",2019,null,null,null,null,null,null,"20",null,null,null,null,"подключение к системе теплоснабжения",null,null,null,null,null,null,null,null,null,null,null,null,null,null,null,null,null,null,null,null,null,null,null,null,null,null,null,null,null,null,null,null,null,null,"19","19"]
["Калужская область",2020,null,null,null,null,null,null,null,null,null,null,null,"поддержание резервной тепловой мощности при отсутствии потребления тепловой энергии",null,null,null,null,null,null,null,null,null,null,null,null,null,null,null,null,null,null,null,null,null,null,null,null,null,null,null,null,null,null,null,null,null,null,"20","20"]
["Камчатский край",2021,null,null,null,null,null,null,null,null,null,null,null,null,null,null,null,null,null,null,null,null,null,null,null,null,null,null,null,null,null,null,null,null,null,null,null,null,null,null,null,null,null,null,null,null,null,null,"21","21"]
["Карачаево-Черкесская республика",2022,null,null,null,null,null,null,null,null,null,null,null,null,null,null,null,null,null,null,null,null,null,null,null,null,null,null,null,null,null,null,null,null,null,null,null,null,null,null,null,null,null,null,null,null,null,null,"22","22"]
["Кемеровская область",2023,null,null,null,null,null,null,null,null,null,null,null,null,null,null,null,null,null,null,null,null,null,null,null,null,null,null,null,null,null,null,null,null,null,null,null,null,null,null,null,null,null,null,null,null,null,null,"23","23"]
["Кировская область",2024,null,null,null,null,null,null,null,null,null,null,null,null,null,null,null,null,null,null,null,null,null,null,null,null,null,null,null,null,null,null,null,null,null,null,null,null,null,null,null,null,null,null,null,null,null,null,null,"24"]
["Костромская область",2025,null,null,null,null,null,null,null,null,null,null,null,null,null,null,null,null,null,null,null,null,null,null,null,null,null,null,null,null,null,null,null,null,null,null,null,null,null,null,null,null,null,null,null,null,null,null,null,"25"]
["Краснодарский край",null,null,null,null,null,null,"Текущая дата",null,null,null,null,null,null,null,null,null,null,null,null,null,null,null,null,null,null,null,null,null,null,null,null,null,null,null,null,null,null,null,null,null,null,null,null,null,null,null,null,null,"26"]
["Красноярский край",null,null,"Организация",{"$f":"IF(periodStart = \"\",\"\", periodStart)","v":"01.01.2017"},{"$f":"IF(periodEnd = \"\",\"\", periodEnd)","v":"31.12.2019"},null,"14.12.2018 18:11:20",null,null,null,null,null,null,null,null,null,null,null,null,null,null,null,null,null,null,null,null,null,null,null,null,null,null,null,null,null,null,null,null,null,null,null,null,null,null,null,null,null,"27"]
["Курганская область",null,null,null,null,null,null,null,null,null,null,null,null,null,null,null,null,null,null,null,null,null,null,null,null,null,null,null,null,null,null,null,null,null,null,null,null,null,null,null,null,null,null,null,null,null,null,null,null,"28"]
["Курская область",null,null,null,null,null,null,null,null,null,null,null,null,null,null,null,null,null,null,null,null,null,null,null,null,null,null,null,null,null,null,null,null,null,null,null,null,null,null,null,null,null,null,null,null,null,null,null,null,"29"]
["Ленинградская область",null,null,"Виды деятельности",null,null,null,"https://appsrv.regportal-tariff.ru/procwsxls/",null,null,null,null,null,null,null,null,null,null,null,null,null,null,null,null,null,null,null,null,null,null,null,null,null,null,null,null,null,null,null,null,null,null,null,null,null,null,null,null,null,"30"]
["Липецкая область",null,null,null,null,null,null,null,null,null,null,null,null,null,null,null,null,null,null,null,null,null,null,null,null,null,null,null,null,null,null,null,null,null,null,null,null,null,null,null,null,null,null,null,null,null,null,null,null,"31"]
["Магаданская область",null,null,null,null,null,null,null,null,null,null,null,null,null,null,null,null,null,null,null,null,null,null,null,null,null,null,null,null,null,null,null,null,null,null,null,null,null,null,null,null,null,null,null,null,null,null,null,null,"32"]
["Московская область",null,null,null,null,null,null,null,null,null,null,null,null,null,null,null,null,null,null,null,null,null,null,null,null,null,null,null,null,null,null,null,null,null,null,null,null,null,null,null,null,null,null,null,null,null,null,null,null,"33"]
["Мурманская область",null,null,null,null,null,null,null,null,null,null,null,null,null,null,null,null,null,null,null,null,null,null,null,null,null,null,null,null,null,null,null,null,null,null,null,null,null,null,null,null,null,null,null,null,null,null,null,null,"34"]
["Ненецкий автономный округ",null,null,null,null,null,null,null,null,null,null,null,null,null,null,null,null,null,null,null,null,null,null,null,null,null,null,null,null,null,null,null,null,null,null,null,null,null,null,null,null,null,null,null,null,null,null,null,null,"35"]
["Нижегородская область",null,null,null,null,null,null,null,null,null,null,null,null,null,null,null,null,null,null,null,null,null,null,null,null,null,null,null,null,null,null,null,null,null,null,null,null,null,null,null,null,null,null,null,null,null,null,null,null,"36"]
["Новгородская область",null,null,null,null,null,null,null,null,null,null,null,null,null,null,null,null,null,null,null,null,null,null,null,null,null,null,null,null,null,null,null,null,null,null,null,null,null,null,null,null,null,null,null,null,null,null,null,null,"37"]
["Новосибирская область",null,null,null,null,null,null,null,null,null,null,null,null,null,null,null,null,null,null,null,null,null,null,null,null,null,null,null,null,null,null,null,null,null,null,null,null,null,null,null,null,null,null,null,null,null,null,null,null,"38"]
["Омская область",null,null,null,null,null,null,null,null,null,null,null,null,null,null,null,null,null,null,null,null,null,null,null,null,null,null,null,null,null,null,null,null,null,null,null,null,null,null,null,null,null,null,null,null,null,null,null,null,"39"]
["Оренбургская область",null,null,null,null,null,null,null,null,null,null,null,null,null,null,null,null,null,null,null,null,null,null,null,null,null,null,null,null,null,null,null,null,null,null,null,null,null,null,null,null,null,null,null,null,null,null,null,null,"40"]
["Орловская область",null,null,null,null,null,null,null,null,null,null,null,null,null,null,null,null,null,null,null,null,null,null,null,null,null,null,null,null,null,null,null,null,null,null,null,null,null,null,null,null,null,null,null,null,null,null,null,null,"41"]
["Пензенская область",null,null,null,null,null,null,null,null,null,null,null,null,null,null,null,null,null,null,null,null,null,null,null,null,null,null,null,null,null,null,null,null,null,null,null,null,null,null,null,null,null,null,null,null,null,null,null,null,"42"]
["Пермский край",null,null,null,null,null,null,null,null,null,null,null,null,null,null,null,null,null,null,null,null,null,null,null,null,null,null,null,null,null,null,null,null,null,null,null,null,null,null,null,null,null,null,null,null,null,null,null,null,"43"]
["Приморский край",null,null,null,null,null,null,null,null,null,null,null,null,null,null,null,null,null,null,null,null,null,null,null,null,null,null,null,null,null,null,null,null,null,null,null,null,null,null,null,null,null,null,null,null,null,null,null,null,"44"]
["Псковская область",null,null,null,null,null,null,null,null,null,null,null,null,null,null,null,null,null,null,null,null,null,null,null,null,null,null,null,null,null,null,null,null,null,null,null,null,null,null,null,null,null,null,null,null,null,null,null,null,"45"]
["Республика Адыгея",null,null,null,null,null,null,null,null,null,null,null,null,null,null,null,null,null,null,null,null,null,null,null,null,null,null,null,null,null,null,null,null,null,null,null,null,null,null,null,null,null,null,null,null,null,null,null,null,"46"]
["Республика Алтай",null,null,null,null,null,null,null,null,null,null,null,null,null,null,null,null,null,null,null,null,null,null,null,null,null,null,null,null,null,null,null,null,null,null,null,null,null,null,null,null,null,null,null,null,null,null,null,null,"47"]
["Республика Башкортостан",null,null,null,null,null,null,null,null,null,null,null,null,null,null,null,null,null,null,null,null,null,null,null,null,null,null,null,null,null,null,null,null,null,null,null,null,null,null,null,null,null,null,null,null,null,null,null,null,"48"]
["Республика Бурятия",null,null,null,null,null,null,null,null,null,null,null,null,null,null,null,null,null,null,null,null,null,null,null,null,null,null,null,null,null,null,null,null,null,null,null,null,null,null,null,null,null,null,null,null,null,null,null,null,"49"]
["Республика Дагестан",null,null,null,null,null,null,null,null,null,null,null,null,null,null,null,null,null,null,null,null,null,null,null,null,null,null,null,null,null,null,null,null,null,null,null,null,null,null,null,null,null,null,null,null,null,null,null,null,"50"]
["Республика Ингушетия",null,null,null,null,null,null,null,null,null,null,null,null,null,null,null,null,null,null,null,null,null,null,null,null,null,null,null,null,null,null,null,null,null,null,null,null,null,null,null,null,null,null,null,null,null,null,null,null,"51"]
["Республика Калмыкия",null,null,null,null,null,null,null,null,null,null,null,null,null,null,null,null,null,null,null,null,null,null,null,null,null,null,null,null,null,null,null,null,null,null,null,null,null,null,null,null,null,null,null,null,null,null,null,null,"52"]
["Республика Карелия",null,null,null,null,null,null,null,null,null,null,null,null,null,null,null,null,null,null,null,null,null,null,null,null,null,null,null,null,null,null,null,null,null,null,null,null,null,null,null,null,null,null,null,null,null,null,null,null,"53"]
["Республика Коми",null,null,null,null,null,null,null,null,null,null,null,null,null,null,null,null,null,null,null,null,null,null,null,null,null,null,null,null,null,null,null,null,null,null,null,null,null,null,null,null,null,null,null,null,null,null,null,null,"54"]
["Республика Крым",null,null,null,null,null,null,null,null,null,null,null,null,null,null,null,null,null,null,null,null,null,null,null,null,null,null,null,null,null,null,null,null,null,null,null,null,null,null,null,null,null,null,null,null,null,null,null,null,"55"]
["Республика Марий Эл",null,null,null,null,null,null,null,null,null,null,null,null,null,null,null,null,null,null,null,null,null,null,null,null,null,null,null,null,null,null,null,null,null,null,null,null,null,null,null,null,null,null,null,null,null,null,null,null,"56"]
["Республика Мордовия",null,null,null,null,null,null,null,null,null,null,null,null,null,null,null,null,null,null,null,null,null,null,null,null,null,null,null,null,null,null,null,null,null,null,null,null,null,null,null,null,null,null,null,null,null,null,null,null,"57"]
["Республика Саха (Якутия)",null,null,null,null,null,null,null,null,null,null,null,null,null,null,null,null,null,null,null,null,null,null,null,null,null,null,null,null,null,null,null,null,null,null,null,null,null,null,null,null,null,null,null,null,null,null,null,null,"58"]
["Республика Северная Осетия-Алания",null,null,null,null,null,null,null,null,null,null,null,null,null,null,null,null,null,null,null,null,null,null,null,null,null,null,null,null,null,null,null,null,null,null,null,null,null,null,null,null,null,null,null,null,null,null,null,null,"59"]
["Республика Татарстан"]
["Республика Тыва"]
["Республика Хакасия"]
["Ростовская область"]
["Рязанская область"]
["Самарская область"]
["Саратовская область"]
["Сахалинская область"]
["Свердловская область"]
["Смоленская область"]
["Ставропольский край"]
["Тамбовская область"]
["Тверская область"]
["Томская область"]
["Тульская область"]
["Тюменская область"]
["Удмуртская республика"]
["Ульяновская область"]
["Хабаровский край"]
["Ханты-Мансийский автономный округ"]
["Челябинская область"]
["Чеченская республика"]
["Чувашская республика"]
["Чукотский автономный округ"]
["Ямало-Ненецкий автономный округ"]
["Ярославская область"]

{"sheet":"modInfo","index":51,"n_rows":36,"n_cols":2,"rows_kept":36,"cut":false,"hidden":true,"merged":[]}
[null,"Титульный"]
[null,"Для выбора того или иного источника публикации выполните двойной щелчок по синей ячейке напротив соответствующего источника.\nВНИМАНИЕ! Если Вы снимаете галочку с пункта, то будут скрыты и очищены соответствующие строки на листе \"Форма 1.0.2\"!\n\nОпубликование перечисленных в шаблоне показателей на сайте организации в сети Интернет и в печатных изданиях не обязательно, если данный шаблон предоставлен по системе ЕИАС (региональный сегмент)."]
[null,"Обязательное опубликование на официальном сайте органа исполнительной власти субъекта Российской Федерации в области государственного регулирования цен (тарифов), и (или) на официальном сайте органа местного самоуправления поселения или городского округа в случае их наделения в соответствии с законом субъекта Российской Федерации полномочиями по государственному регулированию цен (тарифов)предусмотрено пунктом 3 (а) постановления Правительства №6 от 17.01.2013г."]
[null,"Задайте период регулирования, выбрав даты начала и окончания периода регулирования из календаря (иконка справа от указанной ячейки), либо введите дату непосредственно в ячейку в формате - 'ДД.ММ.ГГГГ'"]
[null,"Шаблон заполняется раздельно по каждому виду тарифа"]
[null,"В зависимости от указанного вида деятельности будут доступны для заполнения поля 'Производство', 'Передача' и 'Сбыт'"]
[null,"Если выбрано 'да', на листах с разбивкой по потребителям доступны для заполнения графы для двухставочного ставочного тарифа по группам потребителей"]
[null,"Если выбрано 'да', значения тарифов для групп потребителей на листах с разбивкой по потребителям заполнятся автоматически значениями первой группы"]
[null,"Если выбрано значение «да» - в шаблоне будет сформирован лист «Форма 1.0.2» для уведомления органа регулирования о публикации информации в печатных изданиях"]
[null,"По умолчанию установлено значение «первичное раскрытие информации» Это означает, что информация раскрывается в соответствии с установленными сроком и периодичностью. В случае, если в уже отправленном шаблоне обнаружена ошибка или произошло изменение информации, исправленный шаблон необходимо отправить с типом отчета «изменения в раскрытой ранее информации». "]
[null,"Укажите является ли данное юридическое лицо подразделением(филиалом) другой организации"]
[null,"Ссылки на публикации"]
[null,"Вводите адрес сайта, не нарушая цвет ячейки /если копируете гиперссылку из браузера, то выполните двойной щелчок по ячейке и только после этого можете вставить скопированный элемент/"]
[null,"Обосновывающие материалы необходимо загружать с помощью \"ЕИАС Мониторинг\". Ссылка на инструкцию по загрузке обосновывающих материалов расположена на листе 'Инструкция' в п.'Методология заполнения'.\n\nВвводите ссылку, не нарушая цвет ячейки /если копируете гиперссылку из браузера, то выполните двойной щелчок по ячейке и только после этого можете вставить скопированный элемент/."]
[null,"Если для какого-либо пункта графы 'Наименование источника (сайта или печатного издания)' информация не раскрывалась, то в соответствующем поле укажите - 'не раскрывалась'"]
[null,"Список МО"]
[null,"В случае, если тариф не дифференцируется по системам теплоснабжения, перечислите все муниципальные районы, в которых организация осуществляет услуги теплоснабжения и сфере оказания услуг по передаче тепловой энергии"]
[null,"В случае, если тариф не дифференцируется по системам теплоснабжения, перечислите все муниципальные образования, в которых организация осуществляет услуги теплоснабжения и сфере оказания услуг по передаче тепловой энергии"]
[null,"Признак дифференциации тарифа"]
[null,"В случае, если тариф не дифференцируется по системам теплоснабжения, укажите \"1\".\nВведите значение от 1 до 100, чтобы указать очередной условный порядковый номер системы теплоснабжения"]
[null,"Стандарты"]
[null,"В качестве примечания Вы можете указать единицу измерения"]
[]
[null,"Для корректного формирования Таблицы 25 Формы 1.10 необходимо задать разбивку по диаметрам и способу прокладки тепловых сетей"]
[]
[null,"Перечень тарифов"]
[null,"Указывается наименование тарифа в случае утверждения нескольких тарифов.\nВ случае наличия нескольких тарифов информация по ним указывается в отдельных строках."]
[null,"Укажите «Да» в поле «Да/Нет», если дифференциация используется.\nВ поле «Описание» указывается наименование территории действия тарифа при наличии дифференциации тарифа по территориальному признаку.\nВ случае дифференциации тарифов по территориальному признаку информация по ним указывается в отдельных строках."]
[null,"Признаки дифференциации указываются в соответствии с п.6 ст.32 ФЗ РФ от 07.12.2011 №416-ФЗ"]
[null,"Укажите «Да» в поле «Да/Нет», если дифференциация используется. В поле «Описание» укажите название ЦС ВО или любое другое описание"]
[]
[null,"Территории"]
[1,"Наименование территории действия тарифа для целей идентификации"]
[2,"Муниципальные районы и муниципальные образования, на территории которых действует тариф"]
[null,"Инструкция"]
[null,"Нет доступных обновлений, версия отчёта актуальна"]

{"sheet":"modList05","index":52,"n_rows":0,"n_cols":0,"rows_kept":0,"cut":false,"hidden":true,"merged":[]}

{"sheet":"modList06","index":53,"n_rows":0,"n_cols":0,"rows_kept":0,"cut":false,"hidden":true,"merged":[]}

{"sheet":"modList07","index":54,"n_rows":0,"n_cols":0,"rows_kept":0,"cut":false,"hidden":true,"merged":[]}

{"sheet":"modList11","index":55,"n_rows":0,"n_cols":0,"rows_kept":0,"cut":false,"hidden":true,"merged":[]}

{"sheet":"modList12","index":56,"n_rows":0,"n_cols":0,"rows_kept":0,"cut":false,"hidden":true,"merged":[]}

{"sheet":"modfrmDateChoose","index":57,"n_rows":0,"n_cols":0,"rows_kept":0,"cut":false,"hidden":true,"merged":[]}

{"sheet":"modComm","index":58,"n_rows":0,"n_cols":0,"rows_kept":0,"cut":false,"hidden":true,"merged":[]}

{"sheet":"modThisWorkbook","index":59,"n_rows":0,"n_cols":0,"rows_kept":0,"cut":false,"hidden":true,"merged":[]}

{"sheet":"modfrmReestrMR","index":60,"n_rows":0,"n_cols":0,"rows_kept":0,"cut":false,"hidden":true,"merged":[]}

{"sheet":"modfrmCheckUpdates","index":61,"n_rows":0,"n_cols":0,"rows_kept":0,"cut":false,"hidden":true,"merged":[]}